﻿FIN.POSTING DATE,FIN.ACCOUNTING CODE 02 VALUE,FIN.ACCOUNTING CODE 02 DESCRIPTION,MCH.MERCHANT CATEGORY CODE (MCC),MCH.MERCHANT NAME - ORIGINAL,MCH.MCC DESCRIPTION,FIN.TRANSACTION AMOUNT
23/10/2023,11507,CARE LEAVERS,5399,AMAZON  204-8313954-91,MISCELLANEOUS GENERAL MERCHANDISE,-219.00
23/10/2023,11879,IPS LD MAURICE EDELMAN HOUSE,5811,ARTHURBRETT.CO.UK,CATERERS,95.81
23/10/2023,11879,IPS LD MAURICE EDELMAN HOUSE,5811,ARTHURBRETT.CO.UK,CATERERS,89.94
23/10/2023,11879,IPS LD MAURICE EDELMAN HOUSE,5811,ARTHURBRETT.CO.UK,CATERERS,114.87
23/10/2023,11403,IPS HWC COTTAGE FARM,5811,ARTHURBRETT.CO.UK,CATERERS,21.65
23/10/2023,11021,LAC & CARE LEAVERS,5814,MCDONALDS,FAST FOOD RESTAURANTS,3.68
23/10/2023,11879,IPS LD MAURICE EDELMAN HOUSE,5811,ARTHURBRETT.CO.UK,CATERERS,89.44
23/10/2023,10488,IPS LD JENNER8,4111,WWW.WMCA.ORG.UK,"TRANSPRTN-SUBRBN & LOCAL COMTR PSNGR, INCL FERRIES",10.00
23/10/2023,11403,IPS HWC COTTAGE FARM,5811,ARTHURBRETT.CO.UK,CATERERS,22.73
23/10/2023,11879,IPS LD MAURICE EDELMAN HOUSE,5811,ARTHURBRETT.CO.UK,CATERERS,55.50
23/10/2023,11507,CARE LEAVERS,5651,KURTA HOUSE,FAMILY CLOTHING STORES,80.00
23/10/2023,11879,IPS LD MAURICE EDELMAN HOUSE,5811,ARTHURBRETT.CO.UK,CATERERS,73.37
23/10/2023,11984,IPS MAYMORN RESOURCE CENTRE,4111,WWW.WMCA.ORG.UK,"TRANSPRTN-SUBRBN & LOCAL COMTR PSNGR, INCL FERRIES",10.00
23/10/2023,11507,CARE LEAVERS,5814,PRET SELFRIDGES,FAST FOOD RESTAURANTS,7.30
23/10/2023,10360,JOB SHOP,4112,COVENTRY T/O,PASSENGER RAILWAYS,75.80
23/10/2023,11879,IPS LD MAURICE EDELMAN HOUSE,5811,ARTHURBRETT.CO.UK,CATERERS,71.26
23/10/2023,11507,CARE LEAVERS,5411,ASDA SUPERSTORE,"GROCERY STORES, SUPERMARKETS",67.94
23/10/2023,11507,CARE LEAVERS,5311,SELFRIDGES,DEPARTMENT STORES,48.41
23/10/2023,11507,CARE LEAVERS,5311,SELFRIDGES,DEPARTMENT STORES,38.69
23/10/2023,11021,LAC & CARE LEAVERS,5814,MCDONALDS,FAST FOOD RESTAURANTS,28.91
23/10/2023,11507,CARE LEAVERS,5311,WWW.ARGOS.CO.UK,DEPARTMENT STORES,55.95
23/10/2023,11403,IPS HWC COTTAGE FARM,5811,BRAKE BROS LIMITED,CATERERS,289.91
23/10/2023,11403,IPS HWC COTTAGE FARM,5811,ARTHURBRETT.CO.UK,CATERERS,21.58
23/10/2023,11879,IPS LD MAURICE EDELMAN HOUSE,5811,ARTHURBRETT.CO.UK,CATERERS,10.45
23/10/2023,11403,IPS HWC COTTAGE FARM,5811,ARTHURBRETT.CO.UK,CATERERS,23.37
23/10/2023,10040,IPS HWC COPTHORNE,5811,ARTHURBRETT.CO.UK,CATERERS,13.97
23/10/2023,11403,IPS HWC COTTAGE FARM,5811,BRAKE BROS LIMITED,CATERERS,-24.78
23/10/2023,11354,IPS DAY OPPS GILBERT RICHARDS CENTRE,5811,ARTHURBRETT.CO.UK,CATERERS,65.00
23/10/2023,11354,IPS DAY OPPS GILBERT RICHARDS CENTRE,5811,ARTHURBRETT.CO.UK,CATERERS,8.30
23/10/2023,11354,IPS DAY OPPS GILBERT RICHARDS CENTRE,5811,ARTHURBRETT.CO.UK,CATERERS,70.33
23/10/2023,11826,REPAIR & MAINTENANCE,5211,WWW.SCREWFIX.COM,"BUILDING MATERIALS, LUMBER STORES",119.99
23/10/2023,11826,REPAIR & MAINTENANCE,5211,WWW.BUILDANDPLUMB.CO.U,"BUILDING MATERIALS, LUMBER STORES",16.45
23/10/2023,11086,OUTDOOR EDUCATION CENTRE,9402,POST OFFICE COUNTER,POSTAL SERVICES-GOVERNMENT ONLY,11.95
23/10/2023,10291,SECTION17 PAYMENTS CENTRAL,3811,PREMIER INN,PREMIER INN,323.97
23/10/2023,11995,IPS HWC HARRY CAPLAN,5811,ARTHURBRETT.CO.UK,CATERERS,40.60
23/10/2023,11354,IPS DAY OPPS GILBERT RICHARDS CENTRE,5811,ARTHURBRETT.CO.UK,CATERERS,70.33
23/10/2023,11826,REPAIR & MAINTENANCE,5074,PIPESTOCK.COM,PLUMBING AND HEATING EQUIPMENT,58.32
23/10/2023,11086,OUTDOOR EDUCATION CENTRE,9402,POST OFFICE COUNTER,POSTAL SERVICES-GOVERNMENT ONLY,9.58
23/10/2023,10448,RESIDENTIAL - GRAVEL HILL,7997,WWW.COVENTRYRUGBY.CO.U,"CLUBS-CNTRY,MBRSHIP(ATHLET,REC,SPRTS,PRIVATE GOLF",54.00
23/10/2023,10291,SECTION17 PAYMENTS CENTRAL,4131,WEST MIDLANDS TRAV,BUS LINES,30.00
23/10/2023,11879,IPS LD MAURICE EDELMAN HOUSE,5811,ARTHURBRETT.CO.UK,CATERERS,2.44
23/10/2023,11995,IPS HWC HARRY CAPLAN,5811,ARTHURBRETT.CO.UK,CATERERS,61.03
23/10/2023,11995,IPS HWC HARRY CAPLAN,5811,ARTHURBRETT.CO.UK,CATERERS,48.12
23/10/2023,11771,STREETPRIDE SOUTH,5999,AMZNMKTPLACE,MISCELLANEOUS AND SPECIALTY RETAIL STORES,-23.79
23/10/2023,10448,RESIDENTIAL - GRAVEL HILL,7929,SANTA POD RACEWAY,"BANDS, ORCHESTRAS, & MISC ENTRTNRS-NOT ELSWHR CLAS",54.00
23/10/2023,11995,IPS HWC HARRY CAPLAN,5811,ARTHURBRETT.CO.UK,CATERERS,46.38
23/10/2023,11954,OCCUPIER SUPPORT,5231,JOHN ASTLEY & SONS LTD,"GLASS, PAINT, WALLPAPER STORES",47.08
23/10/2023,11826,REPAIR & MAINTENANCE,5065,RS COMPONENTS,ELECTRICAL PARTS AND EQUIPMENT,63.13
23/10/2023,10411,IPS HWC QUINTON LODGE,5811,ARTHURBRETT.CO.UK,CATERERS,26.76
23/10/2023,10333,14-16 ALTERNATIVE CURRICULUM,5968,AMAZON PRIME H07RH7FV4,DIRECT MARKETING-CONTINUITY/SUBSCRIPTION MERCHANTS,8.99
23/10/2023,10411,IPS HWC QUINTON LODGE,5811,ARTHURBRETT.CO.UK,CATERERS,25.36
23/10/2023,10411,IPS HWC QUINTON LODGE,5811,ARTHURBRETT.CO.UK,CATERERS,24.92
23/10/2023,10416,LAC PERMANENCY,4112,TRAINLINE,PASSENGER RAILWAYS,19.76
23/10/2023,10411,IPS HWC QUINTON LODGE,5811,ARTHURBRETT.CO.UK,CATERERS,23.15
23/10/2023,10411,IPS HWC QUINTON LODGE,5811,ARTHURBRETT.CO.UK,CATERERS,25.76
23/10/2023,10416,LAC PERMANENCY,4112,TRAINLINE,PASSENGER RAILWAYS,41.26
23/10/2023,10411,IPS HWC QUINTON LODGE,5811,ARTHURBRETT.CO.UK,CATERERS,34.54
23/10/2023,10411,IPS HWC QUINTON LODGE,5811,ARTHURBRETT.CO.UK,CATERERS,21.65
23/10/2023,10488,IPS LD JENNER8,4111,WWW.WMCA.ORG.UK,"TRANSPRTN-SUBRBN & LOCAL COMTR PSNGR, INCL FERRIES",10.00
23/10/2023,11507,CARE LEAVERS,7523,HIGHCROSS SHOPPING CEN,AUTOMOBILE PARKING LOTS AND GARAGES,5.50
23/10/2023,11507,CARE LEAVERS,5812,ZETTLE_ BOBBYS SANDWIC,"EATING PLACES, RESTAURANTS",3.60
23/10/2023,11307,IPS MH THE POD,5411,WM MORRISONS STORE,"GROCERY STORES, SUPERMARKETS",24.31
23/10/2023,11507,CARE LEAVERS,5311,WWW.ARGOS.CO.UK,DEPARTMENT STORES,291.94
23/10/2023,11507,CARE LEAVERS,5812,ZETTLE_ BOBBYS SANDWIC,"EATING PLACES, RESTAURANTS",8.90
23/10/2023,11507,CARE LEAVERS,5814,COSTA COFFEE 43011471,FAST FOOD RESTAURANTS,13.40
23/10/2023,11507,CARE LEAVERS,7523,RINGGO PARKING,AUTOMOBILE PARKING LOTS AND GARAGES,2.95
23/10/2023,11507,CARE LEAVERS,5311,WWW.ARGOS.CO.UK,DEPARTMENT STORES,18.00
23/10/2023,11879,IPS LD MAURICE EDELMAN HOUSE,5811,ARTHURBRETT.CO.UK,CATERERS,132.22
23/10/2023,11307,IPS MH THE POD,5411,SAINSBURYS S MKTS,"GROCERY STORES, SUPERMARKETS",2.25
23/10/2023,10040,IPS HWC COPTHORNE,5811,ARTHURBRETT.CO.UK,CATERERS,42.84
23/10/2023,11687,RESIDENTIAL - BROAD PARK HOUSE,5411,ASDA STORES 4602,"GROCERY STORES, SUPERMARKETS",4.00
23/10/2023,10040,IPS HWC COPTHORNE,5811,ARTHURBRETT.CO.UK,CATERERS,41.19
23/10/2023,11687,RESIDENTIAL - BROAD PARK HOUSE,5411,TESCO STORES 2328,"GROCERY STORES, SUPERMARKETS",3.15
23/10/2023,10040,IPS HWC COPTHORNE,5811,ARTHURBRETT.CO.UK,CATERERS,42.66
23/10/2023,10383,IPS HWC KNIGHTLOW,5811,ARTHURBRETT.CO.UK,CATERERS,37.32
23/10/2023,11464,DSG - FAMILY HUB BUDGET,5812,COFFEE NO 1 COVENTRY,"EATING PLACES, RESTAURANTS",8.85
23/10/2023,11354,IPS DAY OPPS GILBERT RICHARDS CENTRE,5811,ARTHURBRETT.CO.UK,CATERERS,87.08
23/10/2023,10383,IPS HWC KNIGHTLOW,5811,ARTHURBRETT.CO.UK,CATERERS,29.53
23/10/2023,10383,IPS HWC KNIGHTLOW,5811,ARTHURBRETT.CO.UK,CATERERS,23.36
23/10/2023,11135,YOUTH OFFENDING SERVICE,5399,HOME BARGAINS,MISCELLANEOUS GENERAL MERCHANDISE,1.49
23/10/2023,11135,YOUTH OFFENDING SERVICE,5311,EBAY O 14-10680-67354,DEPARTMENT STORES,49.99
23/10/2023,11135,YOUTH OFFENDING SERVICE,5411,ALDI 22 772,"GROCERY STORES, SUPERMARKETS",21.09
23/10/2023,10383,IPS HWC KNIGHTLOW,5811,ARTHURBRETT.CO.UK,CATERERS,3.80
23/10/2023,11464,DSG - FAMILY HUB BUDGET,5999,AMZNBUSINESS H00GD7JS4,MISCELLANEOUS AND SPECIALTY RETAIL STORES,35.39
23/10/2023,11354,IPS DAY OPPS GILBERT RICHARDS CENTRE,5811,ARTHURBRETT.CO.UK,CATERERS,65.00
23/10/2023,10383,IPS HWC KNIGHTLOW,5811,ARTHURBRETT.CO.UK,CATERERS,53.97
23/10/2023,11879,IPS LD MAURICE EDELMAN HOUSE,5811,ARTHURBRETT.CO.UK,CATERERS,3.66
23/10/2023,11879,IPS LD MAURICE EDELMAN HOUSE,5811,ARTHURBRETT.CO.UK,CATERERS,104.61
23/10/2023,11879,IPS LD MAURICE EDELMAN HOUSE,5811,ARTHURBRETT.CO.UK,CATERERS,52.76
23/10/2023,11507,CARE LEAVERS,5411,NEW MEDINA SUPERSTORE,"GROCERY STORES, SUPERMARKETS",33.36
20/10/2023,11771,STREETPRIDE SOUTH,5999,AMZNMKTPLACE,MISCELLANEOUS AND SPECIALTY RETAIL STORES,23.79
20/10/2023,11354,IPS DAY OPPS GILBERT RICHARDS CENTRE,5811,BRAKE BROS LIMITED,CATERERS,683.50
20/10/2023,11771,STREETPRIDE SOUTH,5999,AMZNMKTPLACE,MISCELLANEOUS AND SPECIALTY RETAIL STORES,23.79
20/10/2023,10416,LAC PERMANENCY,4131,WEST MIDLANDS TRAV,BUS LINES,60.00
20/10/2023,11021,LAC & CARE LEAVERS,5812,STAFFORD COSTA,"EATING PLACES, RESTAURANTS",57.14
20/10/2023,11166,SOUTH FAMILY HUB,5411,TESCO STORES 2335,"GROCERY STORES, SUPERMARKETS",15.06
20/10/2023,10448,RESIDENTIAL - GRAVEL HILL,5940,JARDINE CYCLES LTD,BICYCLE SHOPS-SALES AND SERVICE,8.00
20/10/2023,11307,IPS MH THE POD,5411,SAINSBURYS S/MKTS,"GROCERY STORES, SUPERMARKETS",6.55
20/10/2023,11307,IPS MH THE POD,5411,WM MORRISONS STORE,"GROCERY STORES, SUPERMARKETS",6.75
20/10/2023,10962,OUTDOOR EDUCATION SERVICE,5999,AMZNMKTPLACE,MISCELLANEOUS AND SPECIALTY RETAIL STORES,41.68
20/10/2023,11507,CARE LEAVERS,5734,UNILINK SOFTWARE LTD,COMPUTER SOFTWARE STORES,5.00
20/10/2023,11021,LAC & CARE LEAVERS,3579,HOTEL MERCURE,HOTEL MERCURE,11.95
20/10/2023,11166,SOUTH FAMILY HUB,5999,AMZNMKTPLACE,MISCELLANEOUS AND SPECIALTY RETAIL STORES,41.09
20/10/2023,11307,IPS MH THE POD,5411,SAINSBURYS S MKTS,"GROCERY STORES, SUPERMARKETS",1.10
20/10/2023,11021,LAC & CARE LEAVERS,5812,STAFFORD COSTA,"EATING PLACES, RESTAURANTS",9.55
20/10/2023,11984,IPS MAYMORN RESOURCE CENTRE,4111,WWW.WMCA.ORG.UK,"TRANSPRTN-SUBRBN & LOCAL COMTR PSNGR, INCL FERRIES",10.00
20/10/2023,11021,LAC & CARE LEAVERS,3579,HOTEL MERCURE,HOTEL MERCURE,15.55
20/10/2023,11307,IPS MH THE POD,5411,COSTCUTTER,"GROCERY STORES, SUPERMARKETS",8.99
20/10/2023,11879,IPS LD MAURICE EDELMAN HOUSE,5411,TESCO STORES 2328,"GROCERY STORES, SUPERMARKETS",61.90
20/10/2023,10416,LAC PERMANENCY,4131,WEST MIDLANDS TRAV,BUS LINES,60.00
20/10/2023,11307,IPS MH THE POD,5411,SAINSBURYS S MKTS,"GROCERY STORES, SUPERMARKETS",6.40
20/10/2023,11507,CARE LEAVERS,8398,ALLPAY  ORBIT GROUP LI,"ORGANIZATIONS, CHARITABLE AND SOCIAL SERVICES",488.67
20/10/2023,11507,CARE LEAVERS,4784,M6 TOLL,"BRIDGE AND ROAD FEES, TOLLS",12.30
20/10/2023,10118,LOOKED AFTER CHILDREN EDUCATION SERVIC,5999,AMZNMKTPLACE,MISCELLANEOUS AND SPECIALTY RETAIL STORES,16.31
20/10/2023,11602,IPS LD GOSFORD COMMUNITY HUB,5411,ADSA STORES LTD 4231,"GROCERY STORES, SUPERMARKETS",7.20
20/10/2023,11021,LAC & CARE LEAVERS,7523,MANCHESTER CITY COUNCI,AUTOMOBILE PARKING LOTS AND GARAGES,5.80
20/10/2023,11248,IPS ERIC WILLIAMS HOUSE,5411,ALDI 15 772,"GROCERY STORES, SUPERMARKETS",49.38
20/10/2023,11507,CARE LEAVERS,5814,COSTA COFFEE 43010820,FAST FOOD RESTAURANTS,3.75
20/10/2023,11507,CARE LEAVERS,4784,M6 TOLL,"BRIDGE AND ROAD FEES, TOLLS",12.30
20/10/2023,10300,INTERNAL FOSTERING TEAM,5311,WWW.ARGOS.CO.UK,DEPARTMENT STORES,130.00
20/10/2023,11894,ICT SYSTEMS,7372,FONT AWESOME PRO MAX,"COMP PROGRAMING,DATA PRCSNG,INTGRTD SYS DSGN SRVS",423.26
20/10/2023,11197,WEST FAMILY HUB,7523,COVENTRY CITY COUNCIL,AUTOMOBILE PARKING LOTS AND GARAGES,8.00
20/10/2023,10232,CHILDREN�S DISABILITY,4112,TRAINLINE,PASSENGER RAILWAYS,4.27
20/10/2023,11826,REPAIR & MAINTENANCE,5251,PAYPAL  TOOLSTOREUK,HARDWARE STORES,436.53
20/10/2023,11507,CARE LEAVERS,5814,JUST EAT,FAST FOOD RESTAURANTS,47.91
20/10/2023,10397,"AD - PLANNING, TRANSPORT & HIGHWAYS",5072,BIGDUG LIMITED,HARDWARE EQUIPMENT AND SUPPLIES,506.99
20/10/2023,10300,INTERNAL FOSTERING TEAM,5311,WWW.ARGOS.CO.UK,DEPARTMENT STORES,39.95
20/10/2023,10411,IPS HWC QUINTON LODGE,5811,BRAKE BROS LIMITED,CATERERS,126.15
19/10/2023,11995,IPS HWC HARRY CAPLAN,5422,WWW.MIDLANDFOODS.CO.UK,"FREEZER, LOCKER MEAT PROVISIONERS",75.47
19/10/2023,10333,14-16 ALTERNATIVE CURRICULUM,5999,AMZNMKTPLACE,MISCELLANEOUS AND SPECIALTY RETAIL STORES,47.92
19/10/2023,11932,LAC THROUGHCARE TEAM,5814,MCDONALDS,FAST FOOD RESTAURANTS,6.58
19/10/2023,10962,OUTDOOR EDUCATION SERVICE,5999,AMZNMKTPLACE,MISCELLANEOUS AND SPECIALTY RETAIL STORES,18.38
19/10/2023,10962,OUTDOOR EDUCATION SERVICE,5999,AMZNMKTPLACE,MISCELLANEOUS AND SPECIALTY RETAIL STORES,66.52
19/10/2023,11507,CARE LEAVERS,5813,COSY CLUB COVENTRY,"BAR,LOUNGE,DISCO,NIGHTCLUB,TAVERN-ALCOHOLIC DRINKS",8.30
19/10/2023,11932,LAC THROUGHCARE TEAM,5411,ONE BELOW,"GROCERY STORES, SUPERMARKETS",3.25
19/10/2023,11507,CARE LEAVERS,9399,DRIVING LICENCE WEB,GOVERNMENT SERVICES-NOT ELSEWHERE CLASSIFIED,34.00
19/10/2023,10383,IPS HWC KNIGHTLOW,5999,AMZNMKTPLACE,MISCELLANEOUS AND SPECIALTY RETAIL STORES,-138.48
19/10/2023,10962,OUTDOOR EDUCATION SERVICE,5999,AMZNMKTPLACE,MISCELLANEOUS AND SPECIALTY RETAIL STORES,16.69
19/10/2023,10962,OUTDOOR EDUCATION SERVICE,5999,AMZNMKTPLACE,MISCELLANEOUS AND SPECIALTY RETAIL STORES,26.99
19/10/2023,11507,CARE LEAVERS,4722,BKG HOTEL AT BOOKING.C,TRAVEL AGENCIES AND TOUR OPERATORS,69.95
19/10/2023,11507,CARE LEAVERS,5812,MCDONALDS,"EATING PLACES, RESTAURANTS",7.66
19/10/2023,10962,OUTDOOR EDUCATION SERVICE,5999,AMZNMKTPLACE,MISCELLANEOUS AND SPECIALTY RETAIL STORES,118.93
19/10/2023,10962,OUTDOOR EDUCATION SERVICE,5999,AMZNMKTPLACE,MISCELLANEOUS AND SPECIALTY RETAIL STORES,8.49
19/10/2023,11197,WEST FAMILY HUB,7523,COVENTRY CITY COUNCIL,AUTOMOBILE PARKING LOTS AND GARAGES,5.00
19/10/2023,11021,LAC & CARE LEAVERS,5310,POUNDLAND LTD - 1282,DISCOUNT STORES,16.25
19/10/2023,11307,IPS MH THE POD,5411,SAINSBURYS S MKTS,"GROCERY STORES, SUPERMARKETS",1.65
19/10/2023,11932,LAC THROUGHCARE TEAM,7523,PARKING EYE,AUTOMOBILE PARKING LOTS AND GARAGES,3.70
19/10/2023,11507,CARE LEAVERS,5999,TIMPSON LTD,MISCELLANEOUS AND SPECIALTY RETAIL STORES,12.99
19/10/2023,10541,COVENTRY EXTENDED LEARNING CENTRE,5411,ASDA GROCERIES ONLINE,"GROCERY STORES, SUPERMARKETS",-2.75
19/10/2023,11507,CARE LEAVERS,5999,AMZNMKTPLACE,MISCELLANEOUS AND SPECIALTY RETAIL STORES,65.96
19/10/2023,10457,SECONDARY SCHOOL: WOODLANDS,5211,SCREWFIX DIR LTD,"BUILDING MATERIALS, LUMBER STORES",14.38
19/10/2023,11507,CARE LEAVERS,4784,M6 TOLL,"BRIDGE AND ROAD FEES, TOLLS",8.90
19/10/2023,11307,IPS MH THE POD,5411,WM MORRISONS STORE,"GROCERY STORES, SUPERMARKETS",10.69
19/10/2023,11307,IPS MH THE POD,5411,COSTCUTTER,"GROCERY STORES, SUPERMARKETS",9.99
19/10/2023,11307,IPS MH THE POD,5811,BRAKE BROS LIMITED,CATERERS,514.51
19/10/2023,10300,INTERNAL FOSTERING TEAM,5812,MCDONALDS   539,"EATING PLACES, RESTAURANTS",9.87
19/10/2023,11984,IPS MAYMORN RESOURCE CENTRE,4111,WWW.WMCA.ORG.UK,"TRANSPRTN-SUBRBN & LOCAL COMTR PSNGR, INCL FERRIES",10.00
19/10/2023,10507,PARK RANGERS,7999,CROMA LOCKSMITHS & SEC,RECREATION SERVICES (NOT ELSEWHERE CLASSIFIED),17.40
19/10/2023,11879,IPS LD MAURICE EDELMAN HOUSE,5999,AMZNMKTPLACE,MISCELLANEOUS AND SPECIALTY RETAIL STORES,18.95
19/10/2023,11879,IPS LD MAURICE EDELMAN HOUSE,5964,NISBETS LTD,DIRECT MARKETING-CATALOG MERCHANTS,93.58
19/10/2023,11307,IPS MH THE POD,5411,SAINSBURYS S MKTS,"GROCERY STORES, SUPERMARKETS",2.24
19/10/2023,11129,INTERNAL FOSTERING FEES,5812,FALAFEL CORNER COVENTR,"EATING PLACES, RESTAURANTS",12.00
19/10/2023,11984,IPS MAYMORN RESOURCE CENTRE,4111,WWW.WMCA.ORG.UK,"TRANSPRTN-SUBRBN & LOCAL COMTR PSNGR, INCL FERRIES",10.00
19/10/2023,10448,RESIDENTIAL - GRAVEL HILL,5712,DUNELM SOFT FURNISHIN,"EQUIP, FURNITURE, HOME FURNSHNGS STRS (EXCPT APPL)",18.00
19/10/2023,11507,CARE LEAVERS,5814,JUST EAT,FAST FOOD RESTAURANTS,25.70
19/10/2023,10383,IPS HWC KNIGHTLOW,5811,BRAKE BROS LIMITED,CATERERS,-25.23
19/10/2023,10541,COVENTRY EXTENDED LEARNING CENTRE,5941,FITNESS SUPERSTORE,SPORTING GOODS STORES,"1,499.00"
19/10/2023,10541,COVENTRY EXTENDED LEARNING CENTRE,5411,ASDA GROCERIES ONLINE,"GROCERY STORES, SUPERMARKETS",41.75
19/10/2023,11984,IPS MAYMORN RESOURCE CENTRE,4111,WWW.WMCA.ORG.UK,"TRANSPRTN-SUBRBN & LOCAL COMTR PSNGR, INCL FERRIES",10.00
19/10/2023,11248,IPS ERIC WILLIAMS HOUSE,5912,CLAY LANE PHARMACY,"DRUG STORES, PHARMACIES",7.99
19/10/2023,11507,CARE LEAVERS,5814,JUST EAT,FAST FOOD RESTAURANTS,18.81
19/10/2023,11107,CENTRAL FAMILY HUB,5999,AMZNBUSINESS H89C17IX4,MISCELLANEOUS AND SPECIALTY RETAIL STORES,6.77
19/10/2023,11570,EARLY YEARS REGISTRATION & INSPECTION,5999,AMZNMKTPLACE,MISCELLANEOUS AND SPECIALTY RETAIL STORES,11.99
19/10/2023,10379,CHILDREN�S CRISIS INTERVENTION TEAM,7278,COSTCO WHOLESALE #122,"BUYING/SHOPPING CLUBS, SERVICES",16.78
19/10/2023,11826,REPAIR & MAINTENANCE,5331,PAYPAL  ARGOSDIRECT,VARIETY STORES,30.00
19/10/2023,11255,ADULT ED ADMIN & MANAGEMENT,5969,AMAZON.CO.UK H85O70UD4,DIRECT MARKETING-OTHER DIRECT MARKETERS/NOT ELSEW.,2.49
19/10/2023,11570,EARLY YEARS REGISTRATION & INSPECTION,5999,AMZNMKTPLACE,MISCELLANEOUS AND SPECIALTY RETAIL STORES,50.94
19/10/2023,11746,RESIDENTIAL - GRAYSWOOD,5399,B&M 526 - ANSTY ROAD,MISCELLANEOUS GENERAL MERCHANDISE,40.00
19/10/2023,10541,COVENTRY EXTENDED LEARNING CENTRE,8398,PAYPAL  SPORTS LEAD,"ORGANIZATIONS, CHARITABLE AND SOCIAL SERVICES",297.00
19/10/2023,11570,EARLY YEARS REGISTRATION & INSPECTION,5999,AMZNMKTPLACE,MISCELLANEOUS AND SPECIALTY RETAIL STORES,9.00
19/10/2023,11248,IPS ERIC WILLIAMS HOUSE,5411,PREMIER,"GROCERY STORES, SUPERMARKETS",5.50
19/10/2023,11995,IPS HWC HARRY CAPLAN,5422,WWW.MIDLANDFOODS.CO.UK,"FREEZER, LOCKER MEAT PROVISIONERS",58.00
19/10/2023,10448,RESIDENTIAL - GRAVEL HILL,5399,HOME BARGAINS,MISCELLANEOUS GENERAL MERCHANDISE,7.98
19/10/2023,11879,IPS LD MAURICE EDELMAN HOUSE,5422,WWW.MIDLANDFOODS.CO.UK,"FREEZER, LOCKER MEAT PROVISIONERS",88.81
19/10/2023,11507,CARE LEAVERS,9402,POST OFFICE COUNTER,POSTAL SERVICES-GOVERNMENT ONLY,2.75
19/10/2023,11570,EARLY YEARS REGISTRATION & INSPECTION,5999,AMZNMKTPLACE,MISCELLANEOUS AND SPECIALTY RETAIL STORES,71.96
19/10/2023,10448,RESIDENTIAL - GRAVEL HILL,5719,THE RANGE,MISCELLANEOUS HOUSE FURNISHING SPECIALTY SHOPS,11.04
19/10/2023,11879,IPS LD MAURICE EDELMAN HOUSE,5422,WWW.MIDLANDFOODS.CO.UK,"FREEZER, LOCKER MEAT PROVISIONERS",90.10
19/10/2023,11570,EARLY YEARS REGISTRATION & INSPECTION,5999,AMZNMKTPLACE,MISCELLANEOUS AND SPECIALTY RETAIL STORES,39.00
19/10/2023,11570,EARLY YEARS REGISTRATION & INSPECTION,5999,AMZNMKTPLACE,MISCELLANEOUS AND SPECIALTY RETAIL STORES,71.93
19/10/2023,10512,REGISTER OFFICE,5399,SHROPSHIRE PETALS LIMI,MISCELLANEOUS GENERAL MERCHANDISE,352.45
19/10/2023,11507,CARE LEAVERS,5812,GDK COVENTRY,"EATING PLACES, RESTAURANTS",10.48
19/10/2023,10962,OUTDOOR EDUCATION SERVICE,5999,AMZNMKTPLACE,MISCELLANEOUS AND SPECIALTY RETAIL STORES,17.20
19/10/2023,10962,OUTDOOR EDUCATION SERVICE,5999,AMZNMKTPLACE,MISCELLANEOUS AND SPECIALTY RETAIL STORES,7.59
18/10/2023,11197,WEST FAMILY HUB,5499,WWW.JOHALDAIRIES.CO.UK,"MISC FOOD STORE-CONVENIENCE,MRKT,SPLTY,VENDNG MACS",6.23
18/10/2023,11307,IPS MH THE POD,5999,AMZNMKTPLACE,MISCELLANEOUS AND SPECIALTY RETAIL STORES,21.56
18/10/2023,10448,RESIDENTIAL - GRAVEL HILL,7523,COVENTRY CITY COUNCIL,AUTOMOBILE PARKING LOTS AND GARAGES,1.00
18/10/2023,11870,IPS LD WILFRED SPENCER CENTRE,5499,WWW.JOHALDAIRIES.CO.UK,"MISC FOOD STORE-CONVENIENCE,MRKT,SPLTY,VENDNG MACS",7.80
18/10/2023,11354,IPS DAY OPPS GILBERT RICHARDS CENTRE,5499,WWW.JOHALDAIRIES.CO.UK,"MISC FOOD STORE-CONVENIENCE,MRKT,SPLTY,VENDNG MACS",21.75
18/10/2023,11879,IPS LD MAURICE EDELMAN HOUSE,5411,TESCO STORES 2328,"GROCERY STORES, SUPERMARKETS",267.80
18/10/2023,10397,"AD - PLANNING, TRANSPORT & HIGHWAYS",5072,BIGDUG LIMITED,HARDWARE EQUIPMENT AND SUPPLIES,"1,680.84"
18/10/2023,11984,IPS MAYMORN RESOURCE CENTRE,5411,WM MORRISONS STORE,"GROCERY STORES, SUPERMARKETS",10.70
18/10/2023,11570,EARLY YEARS REGISTRATION & INSPECTION,5999,AMZNMKTPLACE,MISCELLANEOUS AND SPECIALTY RETAIL STORES,10.33
18/10/2023,11984,IPS MAYMORN RESOURCE CENTRE,5411,WM MORRISONS STORE,"GROCERY STORES, SUPERMARKETS",3.50
18/10/2023,10383,IPS HWC KNIGHTLOW,5811,BRAKE BROS LIMITED,CATERERS,246.33
18/10/2023,11507,CARE LEAVERS,5499,MARKS & SPENCER SACA,"MISC FOOD STORE-CONVENIENCE,MRKT,SPLTY,VENDNG MACS",11.00
18/10/2023,11932,LAC THROUGHCARE TEAM,5814,MCDONALDS,FAST FOOD RESTAURANTS,4.39
18/10/2023,10040,IPS HWC COPTHORNE,5499,WWW.JOHALDAIRIES.CO.UK,"MISC FOOD STORE-CONVENIENCE,MRKT,SPLTY,VENDNG MACS",12.26
18/10/2023,11879,IPS LD MAURICE EDELMAN HOUSE,5499,WWW.JOHALDAIRIES.CO.UK,"MISC FOOD STORE-CONVENIENCE,MRKT,SPLTY,VENDNG MACS",110.38
18/10/2023,11746,RESIDENTIAL - GRAYSWOOD,5399,HOME BARGAINS,MISCELLANEOUS GENERAL MERCHANDISE,97.53
18/10/2023,10411,IPS HWC QUINTON LODGE,5811,BRAKE BROS LIMITED,CATERERS,208.61
18/10/2023,11021,LAC & CARE LEAVERS,5970,HOBBYCRAFT,"ARTIST SUPPLY STORES, CRAFT SHOPS",22.90
18/10/2023,10333,14-16 ALTERNATIVE CURRICULUM,5311,WWW.ARGOS.CO.UK,DEPARTMENT STORES,389.97
18/10/2023,11021,LAC & CARE LEAVERS,5200,B & Q 1258,HOME SUPPLY WAREHOUSE STORES,19.00
18/10/2023,10541,COVENTRY EXTENDED LEARNING CENTRE,5411,ASDA GROCERIES ONLINE,"GROCERY STORES, SUPERMARKETS",-1.50
18/10/2023,11746,RESIDENTIAL - GRAYSWOOD,5812,SONALI BALTI,"EATING PLACES, RESTAURANTS",82.25
18/10/2023,11984,IPS MAYMORN RESOURCE CENTRE,4111,WWW.WMCA.ORG.UK,"TRANSPRTN-SUBRBN & LOCAL COMTR PSNGR, INCL FERRIES",10.00
18/10/2023,11746,RESIDENTIAL - GRAYSWOOD,5399,B&M 526 - ANSTY ROAD,MISCELLANEOUS GENERAL MERCHANDISE,29.00
18/10/2023,11932,LAC THROUGHCARE TEAM,7523,PARKING EYE,AUTOMOBILE PARKING LOTS AND GARAGES,2.70
18/10/2023,11507,CARE LEAVERS,5969,AMAZON.CO.UK H88HK3D34,DIRECT MARKETING-OTHER DIRECT MARKETERS/NOT ELSEW.,219.00
18/10/2023,11746,RESIDENTIAL - GRAYSWOOD,5399,B&M 526 - ANSTY ROAD,MISCELLANEOUS GENERAL MERCHANDISE,70.49
18/10/2023,10541,COVENTRY EXTENDED LEARNING CENTRE,5411,ASDA GROCERIES ONLINE,"GROCERY STORES, SUPERMARKETS",51.36
18/10/2023,11826,REPAIR & MAINTENANCE,5099,PAYPAL  SCREWFIX,"DURABLE GOODS, NOT ELSEWHERE CLASSIFIED",23.74
18/10/2023,11507,CARE LEAVERS,5994,WH SMITH COVENTRY,NEWS DEALERS AND NEWSSTANDS,-6.48
18/10/2023,11995,IPS HWC HARRY CAPLAN,5499,WWW.JOHALDAIRIES.CO.UK,"MISC FOOD STORE-CONVENIENCE,MRKT,SPLTY,VENDNG MACS",8.47
18/10/2023,11507,CARE LEAVERS,5994,WH SMITH COVENTRY,NEWS DEALERS AND NEWSSTANDS,6.48
18/10/2023,11507,CARE LEAVERS,9402,POST OFFICE COUNTER,POSTAL SERVICES-GOVERNMENT ONLY,16.45
18/10/2023,11507,CARE LEAVERS,9399,2MAA040956060 TD E-PMT,GOVERNMENT SERVICES-NOT ELSEWHERE CLASSIFIED,82.00
18/10/2023,11157,IPS HWC ELSIE JONES,5811,BRAKE BROS LIMITED,CATERERS,330.90
17/10/2023,11507,CARE LEAVERS,5411,SAINSBURYS S/MKTS,"GROCERY STORES, SUPERMARKETS",7.00
17/10/2023,11687,RESIDENTIAL - BROAD PARK HOUSE,7278,COSTCO WHOLESALE #122,"BUYING/SHOPPING CLUBS, SERVICES",44.56
17/10/2023,11746,RESIDENTIAL - GRAYSWOOD,5999,AMZNMKTPLACE,MISCELLANEOUS AND SPECIALTY RETAIL STORES,5.79
17/10/2023,11507,CARE LEAVERS,9399,2MAA040932281 TD E-PMT,GOVERNMENT SERVICES-NOT ELSEWHERE CLASSIFIED,82.00
17/10/2023,11507,CARE LEAVERS,5310,POUNDLAND LTD - 2017,DISCOUNT STORES,6.05
17/10/2023,11507,CARE LEAVERS,5411,TESCO STORES 2849,"GROCERY STORES, SUPERMARKETS",48.55
17/10/2023,10541,COVENTRY EXTENDED LEARNING CENTRE,5411,ASDA GROCERIES ONLINE,"GROCERY STORES, SUPERMARKETS",-3.00
17/10/2023,11507,CARE LEAVERS,5411,TESCO STORES 6135,"GROCERY STORES, SUPERMARKETS",19.20
17/10/2023,10397,"AD - PLANNING, TRANSPORT & HIGHWAYS",5811,SQ  SIGNATURE CATERING,CATERERS,135.00
17/10/2023,10360,JOB SHOP,5999,AMZNBUSINESS H86C22HJ4,MISCELLANEOUS AND SPECIALTY RETAIL STORES,16.14
17/10/2023,11307,IPS MH THE POD,5411,DUBAI GATE LTD,"GROCERY STORES, SUPERMARKETS",9.17
17/10/2023,11307,IPS MH THE POD,5411,WM MORRISONS STORE,"GROCERY STORES, SUPERMARKETS",23.36
17/10/2023,11507,CARE LEAVERS,5712,DUNELM SOFT FURNISHIN,"EQUIP, FURNITURE, HOME FURNSHNGS STRS (EXCPT APPL)",74.00
17/10/2023,11691,PLACEMENTS & CHILDRENS HOMES,7399,EYDENS,BUSINESS SERVICES-NOT ELSEWHERE CLASSIFIED,121.50
17/10/2023,11995,IPS HWC HARRY CAPLAN,5811,BRAKE BROS LIMITED,CATERERS,622.51
17/10/2023,11691,PLACEMENTS & CHILDRENS HOMES,7399,EYDENS,BUSINESS SERVICES-NOT ELSEWHERE CLASSIFIED,26.20
17/10/2023,10448,RESIDENTIAL - GRAVEL HILL,5999,AMZNMKTPLACE,MISCELLANEOUS AND SPECIALTY RETAIL STORES,12.99
17/10/2023,11274,PUBLIC HEALTH STAFFING & OVERHEADS,7311,FACEBK  33C4QVB6H2,ADVERTISING SERVICES,125.00
17/10/2023,11995,IPS HWC HARRY CAPLAN,5411,ICELAND FOODS,"GROCERY STORES, SUPERMARKETS",91.25
17/10/2023,11932,LAC THROUGHCARE TEAM,5814,KFC-TILE HILL,FAST FOOD RESTAURANTS,4.98
17/10/2023,11746,RESIDENTIAL - GRAYSWOOD,5999,AMZNMKTPLACE,MISCELLANEOUS AND SPECIALTY RETAIL STORES,25.87
17/10/2023,10291,SECTION17 PAYMENTS CENTRAL,4112,TRAINLINE,PASSENGER RAILWAYS,70.30
17/10/2023,11049,CREMATORIUM,5399,ETSY.COM THESCGIFTSHOP,MISCELLANEOUS GENERAL MERCHANDISE,12.99
17/10/2023,11307,IPS MH THE POD,7399,EB  CW FOODIE AWARDS 2,BUSINESS SERVICES-NOT ELSEWHERE CLASSIFIED,65.00
17/10/2023,11474,BUILDING CLEANING,9399,HM PASSPORT OFFICE,GOVERNMENT SERVICES-NOT ELSEWHERE CLASSIFIED,93.50
17/10/2023,11474,BUILDING CLEANING,9399,DVLA DRIVER ONLINE,GOVERNMENT SERVICES-NOT ELSEWHERE CLASSIFIED,20.00
17/10/2023,11307,IPS MH THE POD,5200,B & Q 1231,HOME SUPPLY WAREHOUSE STORES,30.00
17/10/2023,11602,IPS LD GOSFORD COMMUNITY HUB,5411,ADSA STORES LTD 4231,"GROCERY STORES, SUPERMARKETS",6.50
17/10/2023,11932,LAC THROUGHCARE TEAM,5947,CARD FACTORY,"GIFT, CARD, NOVELTY AND SOUVENIR SHOPS",5.16
17/10/2023,10541,COVENTRY EXTENDED LEARNING CENTRE,5411,ASDA GROCERIES ONLINE,"GROCERY STORES, SUPERMARKETS",108.66
16/10/2023,11879,IPS LD MAURICE EDELMAN HOUSE,4899,NETFLIX.COM,"CABLE, SATELLITE, OTHER PAY TELEVISION, RADIO SVCS",15.99
16/10/2023,11507,CARE LEAVERS,5812,YO SUSHI,"EATING PLACES, RESTAURANTS",8.95
16/10/2023,10302,CPR0010 DOE BANK LANE 6,8011,SUMUP   FORREST MEDICA,"DOCTORS, (NOT ELSEWHERE CLASSIFIED)",45.00
16/10/2023,11103,RESIDENTIAL - BROAD LANE,5815,DAZN LIMITED,DIGITAL GOODS AUDIOVISUAL MEDIA,20.99
16/10/2023,11307,IPS MH THE POD,5411,SAINSBURYS S MKTS,"GROCERY STORES, SUPERMARKETS",2.15
16/10/2023,11687,RESIDENTIAL - BROAD PARK HOUSE,8299,TWINKL,SCHOOLS & EDUCATIONAL SVC-NOT ELSEWHERE CLASSIFIED,5.29
16/10/2023,11307,IPS MH THE POD,5499,BUYWHOLEFOODSONLINE,"MISC FOOD STORE-CONVENIENCE,MRKT,SPLTY,VENDNG MACS",101.31
16/10/2023,11307,IPS MH THE POD,5999,AMZNMKTPLACE,MISCELLANEOUS AND SPECIALTY RETAIL STORES,18.98
16/10/2023,10469,RESIDENTIAL - JOBS LANE,5411,MALCOLMS STORES LIMITE,"GROCERY STORES, SUPERMARKETS",26.19
16/10/2023,11307,IPS MH THE POD,5411,DUBAI GATE LTD,"GROCERY STORES, SUPERMARKETS",6.36
16/10/2023,11255,ADULT ED ADMIN & MANAGEMENT,5722,RADIOCOMS SYSTEMS LTD,HOUSEHOLD APPLIANCE STORES,"1,658.40"
16/10/2023,10448,RESIDENTIAL - GRAVEL HILL,5999,AMZNMKTPLACE,MISCELLANEOUS AND SPECIALTY RETAIL STORES,14.95
16/10/2023,11086,OUTDOOR EDUCATION CENTRE,5999,AMZNMKTPLACE,MISCELLANEOUS AND SPECIALTY RETAIL STORES,19.70
16/10/2023,10541,COVENTRY EXTENDED LEARNING CENTRE,5968,TESCO SUBSCRIPTION,DIRECT MARKETING-CONTINUITY/SUBSCRIPTION MERCHANTS,6.99
16/10/2023,11969,ICT SECURITY,4816,DNH GODADDY.COM EUROPE,COMPUTER NETWORK/INFORMATION SERVICES,14.39
16/10/2023,10448,RESIDENTIAL - GRAVEL HILL,5999,AMZNMKTPLACE,MISCELLANEOUS AND SPECIALTY RETAIL STORES,12.99
16/10/2023,10448,RESIDENTIAL - GRAVEL HILL,5968,TESCO SUBSCRIPTION,DIRECT MARKETING-CONTINUITY/SUBSCRIPTION MERCHANTS,83.88
16/10/2023,10291,SECTION17 PAYMENTS CENTRAL,4722,BKG HOTEL AT BOOKING.C,TRAVEL AGENCIES AND TOUR OPERATORS,839.16
16/10/2023,11248,IPS ERIC WILLIAMS HOUSE,5047,WWW.GOMPELS.CO.UK,DENTAL/LAB/MED/OPHTHALMIC HOSP EQUIP & SUPPLIES,247.76
16/10/2023,11307,IPS MH THE POD,5411,ALDI 15 772,"GROCERY STORES, SUPERMARKETS",6.97
16/10/2023,11507,CARE LEAVERS,4112,TRAINLINE,PASSENGER RAILWAYS,12.33
16/10/2023,11507,CARE LEAVERS,5411,TESCO STORES 2849,"GROCERY STORES, SUPERMARKETS",20.82
16/10/2023,11746,RESIDENTIAL - GRAYSWOOD,5411,CO-OP LATE SHOP,"GROCERY STORES, SUPERMARKETS",2.10
16/10/2023,11197,WEST FAMILY HUB,5411,WM MORRISONS STORE,"GROCERY STORES, SUPERMARKETS",21.00
16/10/2023,11507,CARE LEAVERS,5814,COSTA COFFEE 43010470,FAST FOOD RESTAURANTS,7.80
16/10/2023,11507,CARE LEAVERS,5812,DOMINO S PIZZA,"EATING PLACES, RESTAURANTS",62.77
16/10/2023,11507,CARE LEAVERS,5814,JUST EAT,FAST FOOD RESTAURANTS,24.92
16/10/2023,11507,CARE LEAVERS,5200,B & Q 1231,HOME SUPPLY WAREHOUSE STORES,25.00
16/10/2023,11307,IPS MH THE POD,5999,AMZNMKTPLACE,MISCELLANEOUS AND SPECIALTY RETAIL STORES,5.21
16/10/2023,11307,IPS MH THE POD,5999,AMZNMKTPLACE,MISCELLANEOUS AND SPECIALTY RETAIL STORES,11.00
16/10/2023,11307,IPS MH THE POD,5999,AMZNMKTPLACE,MISCELLANEOUS AND SPECIALTY RETAIL STORES,21.70
16/10/2023,11307,IPS MH THE POD,5999,AMZNMKTPLACE,MISCELLANEOUS AND SPECIALTY RETAIL STORES,17.94
16/10/2023,11507,CARE LEAVERS,5999,AMZNMKTPLACE,MISCELLANEOUS AND SPECIALTY RETAIL STORES,79.99
16/10/2023,11021,LAC & CARE LEAVERS,5812,MCDONALDS   539,"EATING PLACES, RESTAURANTS",9.37
16/10/2023,11374,PARTNERSHIPS & SOCIAL CARE OPERATIONAL,4111,WWW.WMCA.ORG.UK,"TRANSPRTN-SUBRBN & LOCAL COMTR PSNGR, INCL FERRIES",40.00
16/10/2023,11507,CARE LEAVERS,5719,SP DUSK.COM,MISCELLANEOUS HOUSE FURNISHING SPECIALTY SHOPS,283.29
16/10/2023,11507,CARE LEAVERS,5999,AMZNMKTPLACE,MISCELLANEOUS AND SPECIALTY RETAIL STORES,47.24
16/10/2023,11255,ADULT ED ADMIN & MANAGEMENT,4112,TRAINLINE,PASSENGER RAILWAYS,12.63
16/10/2023,10300,INTERNAL FOSTERING TEAM,5411,SAINSBURYS S/MKTS,"GROCERY STORES, SUPERMARKETS",7.75
16/10/2023,11157,IPS HWC ELSIE JONES,5811,BRAKE BROS LIMITED,CATERERS,-68.30
16/10/2023,11746,RESIDENTIAL - GRAYSWOOD,5999,AMZNMKTPLACE,MISCELLANEOUS AND SPECIALTY RETAIL STORES,29.99
16/10/2023,11135,YOUTH OFFENDING SERVICE,5999,AMZNMKTPLACE,MISCELLANEOUS AND SPECIALTY RETAIL STORES,50.99
16/10/2023,11021,LAC & CARE LEAVERS,5970,HOBBYCRAFT,"ARTIST SUPPLY STORES, CRAFT SHOPS",8.85
16/10/2023,11307,IPS MH THE POD,5655,TRESPASS COVENTRY,"SPORTS APPAREL, RIDING APPAREL STORES",56.99
16/10/2023,10378,CHILDREN�S SERVICES MANAGEMENT TEAM,7523,COVENTRY CITY COUNCIL,AUTOMOBILE PARKING LOTS AND GARAGES,6.00
16/10/2023,11507,CARE LEAVERS,5719,WWW.THERANGE.CO.UK,MISCELLANEOUS HOUSE FURNISHING SPECIALTY SHOPS,449.99
16/10/2023,11403,IPS HWC COTTAGE FARM,5811,BRAKE BROS LIMITED,CATERERS,387.78
16/10/2023,10317,MH COMMUNITY MENTAL HEALTH TEAM,9222,DERBYSHIRE010OFFIC,FINES,81.00
16/10/2023,10469,RESIDENTIAL - JOBS LANE,5411,ALDI STORES ATHERSTONE,"GROCERY STORES, SUPERMARKETS",251.91
16/10/2023,10676,HOUSING AND HOMELESSNESS,5999,AMZNBUSINESS H84M35PG4,MISCELLANEOUS AND SPECIALTY RETAIL STORES,30.98
16/10/2023,11179,PASSENGER TRANSPORT,5969,AMAZON.CO.UK H81CS0HJ4,DIRECT MARKETING-OTHER DIRECT MARKETERS/NOT ELSEW.,12.98
13/10/2023,11166,SOUTH FAMILY HUB,5411,TESCO STORES 2335,"GROCERY STORES, SUPERMARKETS",15.13
13/10/2023,10378,CHILDREN�S SERVICES MANAGEMENT TEAM,5999,AMZNMKTPLACE,MISCELLANEOUS AND SPECIALTY RETAIL STORES,7.99
13/10/2023,11507,CARE LEAVERS,5814,SUBWAY 64606 CORLEY SO,FAST FOOD RESTAURANTS,16.48
13/10/2023,11307,IPS MH THE POD,5411,SUMUP   BAIXING FOODS,"GROCERY STORES, SUPERMARKETS",3.18
13/10/2023,11307,IPS MH THE POD,5411,SAINSBURYS S MKTS,"GROCERY STORES, SUPERMARKETS",3.05
13/10/2023,12106,ASYLUM DISPERSAL SCHEME,5411,ASDA STORES 4801,"GROCERY STORES, SUPERMARKETS",11.70
13/10/2023,11507,CARE LEAVERS,9402,POST OFFICE COUNTER,POSTAL SERVICES-GOVERNMENT ONLY,1.25
13/10/2023,11507,CARE LEAVERS,5399,AMAZON  204-8313954-91,MISCELLANEOUS GENERAL MERCHANDISE,219.00
13/10/2023,11932,LAC THROUGHCARE TEAM,5812,GREGGS PLC,"EATING PLACES, RESTAURANTS",2.70
13/10/2023,10687,WEST SOCIAL WORKER CASEHOLDING TEAM,5111,STAPLES,STATIONERY/OFFICE SUPPLIES/PRINTING & WRITING PAP.,42.97
13/10/2023,11746,RESIDENTIAL - GRAYSWOOD,5999,AMZNMKTPLACE,MISCELLANEOUS AND SPECIALTY RETAIL STORES,11.86
13/10/2023,11255,ADULT ED ADMIN & MANAGEMENT,5999,AMZNMKTPLACE,MISCELLANEOUS AND SPECIALTY RETAIL STORES,9.99
13/10/2023,11928,COMMUNITY SUPPORT GRANTS,5999,AMZNMKTPLACE,MISCELLANEOUS AND SPECIALTY RETAIL STORES,-88.02
13/10/2023,10378,CHILDREN�S SERVICES MANAGEMENT TEAM,5999,AMZNMKTPLACE,MISCELLANEOUS AND SPECIALTY RETAIL STORES,46.90
13/10/2023,10360,JOB SHOP,5661,SHOE ZONE,SHOE STORES,19.99
13/10/2023,11507,CARE LEAVERS,5999,AMZNMKTPLACE,MISCELLANEOUS AND SPECIALTY RETAIL STORES,135.04
13/10/2023,11826,REPAIR & MAINTENANCE,5099,PAYPAL  SCREWFIX,"DURABLE GOODS, NOT ELSEWHERE CLASSIFIED",19.99
13/10/2023,11746,RESIDENTIAL - GRAYSWOOD,5999,AMZNMKTPLACE,MISCELLANEOUS AND SPECIALTY RETAIL STORES,9.98
13/10/2023,11984,IPS MAYMORN RESOURCE CENTRE,4111,WWW.WMCA.ORG.UK,"TRANSPRTN-SUBRBN & LOCAL COMTR PSNGR, INCL FERRIES",10.00
13/10/2023,11746,RESIDENTIAL - GRAYSWOOD,5999,AMZNMKTPLACE,MISCELLANEOUS AND SPECIALTY RETAIL STORES,2.99
13/10/2023,11507,CARE LEAVERS,7278,COSTCO WHOLESALE #115,"BUYING/SHOPPING CLUBS, SERVICES",86.47
13/10/2023,11507,CARE LEAVERS,7523,COVENTRY CITY COUNCIL,AUTOMOBILE PARKING LOTS AND GARAGES,1.00
13/10/2023,11507,CARE LEAVERS,5912,BOOTS 6459,"DRUG STORES, PHARMACIES",15.00
13/10/2023,11826,REPAIR & MAINTENANCE,5065,GRANADA BATTERIES LTD,ELECTRICAL PARTS AND EQUIPMENT,338.35
13/10/2023,11507,CARE LEAVERS,5814,JUST EAT,FAST FOOD RESTAURANTS,19.77
13/10/2023,11826,REPAIR & MAINTENANCE,5713,TOPPS TILES BINLEY,FLOOR COVERING STORES,53.96
13/10/2023,11354,IPS DAY OPPS GILBERT RICHARDS CENTRE,5735,AMAZON MUSIC H82MS8JX4,RECORD SHOPS,10.99
13/10/2023,10232,CHILDREN�S DISABILITY,5411,ALDI 113 772,"GROCERY STORES, SUPERMARKETS",3.68
13/10/2023,10232,CHILDREN�S DISABILITY,5411,ALDI 113 772,"GROCERY STORES, SUPERMARKETS",6.59
13/10/2023,11507,CARE LEAVERS,5814,MCDONALDS 1686,FAST FOOD RESTAURANTS,9.47
13/10/2023,11507,CARE LEAVERS,5947,CARD FACTORY,"GIFT, CARD, NOVELTY AND SOUVENIR SHOPS",3.47
13/10/2023,11507,CARE LEAVERS,5814,MCDONALDS 1686,FAST FOOD RESTAURANTS,11.76
13/10/2023,10300,INTERNAL FOSTERING TEAM,5712,DREAMS LTD,"EQUIP, FURNITURE, HOME FURNSHNGS STRS (EXCPT APPL)",59.00
13/10/2023,11282,POST AND FASTPRINT,8244,COURSRA 4ZW17VQMHAYMQD,"SCHOOLS, BUSINESS AND SECRETARIAL",38.00
13/10/2023,11277,FLEET SERVICES,8111,WWW.LICENCECHECK.CO.UK,"ATTORNEYS, LEGAL SERVICES",600.00
13/10/2023,11746,RESIDENTIAL - GRAYSWOOD,5999,AMZNMKTPLACE,MISCELLANEOUS AND SPECIALTY RETAIL STORES,18.95
13/10/2023,10378,CHILDREN�S SERVICES MANAGEMENT TEAM,5999,AMZNMKTPLACE,MISCELLANEOUS AND SPECIALTY RETAIL STORES,8.99
13/10/2023,11157,IPS HWC ELSIE JONES,5811,BRAKE BROS LIMITED,CATERERS,68.30
13/10/2023,11086,OUTDOOR EDUCATION CENTRE,5211,HUWS GRAY BLAENAU,"BUILDING MATERIALS, LUMBER STORES",72.74
13/10/2023,10411,IPS HWC QUINTON LODGE,5811,BRAKE BROS LIMITED,CATERERS,139.24
13/10/2023,11507,CARE LEAVERS,5399,AMAZON  205-7772423-66,MISCELLANEOUS GENERAL MERCHANDISE,500.00
12/10/2023,11166,SOUTH FAMILY HUB,5999,AMZNMKTPLACE,MISCELLANEOUS AND SPECIALTY RETAIL STORES,73.09
12/10/2023,11879,IPS LD MAURICE EDELMAN HOUSE,5422,WWW.MIDLANDFOODS.CO.UK,"FREEZER, LOCKER MEAT PROVISIONERS",49.24
12/10/2023,11354,IPS DAY OPPS GILBERT RICHARDS CENTRE,5499,WWW.JOHALDAIRIES.CO.UK,"MISC FOOD STORE-CONVENIENCE,MRKT,SPLTY,VENDNG MACS",21.75
12/10/2023,11197,WEST FAMILY HUB,5499,WWW.JOHALDAIRIES.CO.UK,"MISC FOOD STORE-CONVENIENCE,MRKT,SPLTY,VENDNG MACS",6.23
12/10/2023,11507,CARE LEAVERS,5651,PRIMARK - COVENTRY,FAMILY CLOTHING STORES,"1,000.00"
12/10/2023,11507,CARE LEAVERS,5999,TESCO ONLINE,MISCELLANEOUS AND SPECIALTY RETAIL STORES,52.99
12/10/2023,11826,REPAIR & MAINTENANCE,8699,EEF LTD,"ORGANIZATIONS, MEMBERSHIP-NOT ELSEWHERE CLASSIFIED","2,154.00"
12/10/2023,11995,IPS HWC HARRY CAPLAN,5422,WWW.MIDLANDFOODS.CO.UK,"FREEZER, LOCKER MEAT PROVISIONERS",48.33
12/10/2023,11307,IPS MH THE POD,5411,SAINSBURYS S MKTS,"GROCERY STORES, SUPERMARKETS",2.10
12/10/2023,10488,IPS LD JENNER8,4111,WWW.WMCA.ORG.UK,"TRANSPRTN-SUBRBN & LOCAL COMTR PSNGR, INCL FERRIES",10.00
12/10/2023,10040,IPS HWC COPTHORNE,5422,WWW.MIDLANDFOODS.CO.UK,"FREEZER, LOCKER MEAT PROVISIONERS",186.19
12/10/2023,11870,IPS LD WILFRED SPENCER CENTRE,5499,WWW.JOHALDAIRIES.CO.UK,"MISC FOOD STORE-CONVENIENCE,MRKT,SPLTY,VENDNG MACS",7.80
12/10/2023,11879,IPS LD MAURICE EDELMAN HOUSE,5310,WWW.THEWORKS.CO.UK,DISCOUNT STORES,58.50
12/10/2023,11307,IPS MH THE POD,5499,SQ  PETER MAC,"MISC FOOD STORE-CONVENIENCE,MRKT,SPLTY,VENDNG MACS",250.00
12/10/2023,11746,RESIDENTIAL - GRAYSWOOD,4899,DISNEY PLUS,"CABLE, SATELLITE, OTHER PAY TELEVISION, RADIO SVCS",7.99
12/10/2023,10040,IPS HWC COPTHORNE,5499,WWW.JOHALDAIRIES.CO.UK,"MISC FOOD STORE-CONVENIENCE,MRKT,SPLTY,VENDNG MACS",12.26
12/10/2023,11995,IPS HWC HARRY CAPLAN,5499,WWW.JOHALDAIRIES.CO.UK,"MISC FOOD STORE-CONVENIENCE,MRKT,SPLTY,VENDNG MACS",8.47
12/10/2023,11879,IPS LD MAURICE EDELMAN HOUSE,5499,WWW.JOHALDAIRIES.CO.UK,"MISC FOOD STORE-CONVENIENCE,MRKT,SPLTY,VENDNG MACS",139.56
12/10/2023,11507,CARE LEAVERS,4112,TRAINLINE,PASSENGER RAILWAYS,3.99
12/10/2023,11166,SOUTH FAMILY HUB,5999,AMZNMKTPLACE,MISCELLANEOUS AND SPECIALTY RETAIL STORES,23.54
12/10/2023,11746,RESIDENTIAL - GRAYSWOOD,5411,TESCO STORES 2328,"GROCERY STORES, SUPERMARKETS",154.87
12/10/2023,11995,IPS HWC HARRY CAPLAN,5422,WWW.MIDLANDFOODS.CO.UK,"FREEZER, LOCKER MEAT PROVISIONERS",73.21
12/10/2023,11879,IPS LD MAURICE EDELMAN HOUSE,5422,WWW.MIDLANDFOODS.CO.UK,"FREEZER, LOCKER MEAT PROVISIONERS",48.15
12/10/2023,10333,14-16 ALTERNATIVE CURRICULUM,5311,WWW.ARGOS.CO.UK,DEPARTMENT STORES,899.97
12/10/2023,11157,IPS HWC ELSIE JONES,5422,WWW.MIDLANDFOODS.CO.UK,"FREEZER, LOCKER MEAT PROVISIONERS",74.62
12/10/2023,10232,CHILDREN�S DISABILITY,5411,ALDI 15 772,"GROCERY STORES, SUPERMARKETS",4.54
12/10/2023,11307,IPS MH THE POD,5411,SAINSBURYS S MKTS,"GROCERY STORES, SUPERMARKETS",2.24
12/10/2023,10676,HOUSING AND HOMELESSNESS,9399,COVENTRY CITY COUNCIL,GOVERNMENT SERVICES-NOT ELSEWHERE CLASSIFIED,11.00
12/10/2023,11922,ICT USER SUPPORT,5999,AMZNMKTPLACE,MISCELLANEOUS AND SPECIALTY RETAIL STORES,-26.99
12/10/2023,11507,CARE LEAVERS,7523,SOLIHULL METROPOLITAN,AUTOMOBILE PARKING LOTS AND GARAGES,2.90
12/10/2023,11507,CARE LEAVERS,9399,HM PASSPORT OFFICE,GOVERNMENT SERVICES-NOT ELSEWHERE CLASSIFIED,93.00
12/10/2023,11507,CARE LEAVERS,5411,TESCO STORES 2898,"GROCERY STORES, SUPERMARKETS",272.65
12/10/2023,10779,PARTICIPATION SERVICE,5812,DOMINO S PIZZA,"EATING PLACES, RESTAURANTS",56.76
12/10/2023,11166,SOUTH FAMILY HUB,5999,AMZNMKTPLACE,MISCELLANEOUS AND SPECIALTY RETAIL STORES,19.54
12/10/2023,10541,COVENTRY EXTENDED LEARNING CENTRE,5411,ASDA GROCERIES ONLINE,"GROCERY STORES, SUPERMARKETS",43.14
12/10/2023,11507,CARE LEAVERS,5065,THE ELECTRICAL COUNTER,ELECTRICAL PARTS AND EQUIPMENT,89.82
12/10/2023,11507,CARE LEAVERS,5968,AMAZON PRIME H87SK8NL4,DIRECT MARKETING-CONTINUITY/SUBSCRIPTION MERCHANTS,8.99
12/10/2023,10411,IPS HWC QUINTON LODGE,5811,BRAKE BROS LIMITED,CATERERS,-7.91
12/10/2023,11166,SOUTH FAMILY HUB,5999,AMZNMKTPLACE,MISCELLANEOUS AND SPECIALTY RETAIL STORES,25.55
12/10/2023,11307,IPS MH THE POD,5411,WM MORRISONS STORE,"GROCERY STORES, SUPERMARKETS",11.45
12/10/2023,11193,SPORT ENGLAND LOCAL PRIORITY PLACE - ,3642,NOVOTEL HOTELS,NOVOTEL HOTELS,10.00
12/10/2023,11507,CARE LEAVERS,5311,WWW.ARGOS.CO.UK,DEPARTMENT STORES,78.75
12/10/2023,11879,IPS LD MAURICE EDELMAN HOUSE,5811,BRAKE BROS LIMITED,CATERERS,244.94
12/10/2023,10300,INTERNAL FOSTERING TEAM,9402,POST OFFICE COUNTER,POSTAL SERVICES-GOVERNMENT ONLY,20.00
12/10/2023,11984,IPS MAYMORN RESOURCE CENTRE,4111,WWW.WMCA.ORG.UK,"TRANSPRTN-SUBRBN & LOCAL COMTR PSNGR, INCL FERRIES",10.00
12/10/2023,11932,LAC THROUGHCARE TEAM,5814,MCDONALDS,FAST FOOD RESTAURANTS,10.98
12/10/2023,10488,IPS LD JENNER8,4111,WWW.WMCA.ORG.UK,"TRANSPRTN-SUBRBN & LOCAL COMTR PSNGR, INCL FERRIES",10.00
12/10/2023,11021,LAC & CARE LEAVERS,5411,SAINSBURYS S/MKTS,"GROCERY STORES, SUPERMARKETS",6.00
12/10/2023,10378,CHILDREN�S SERVICES MANAGEMENT TEAM,5310,THE WORKS,DISCOUNT STORES,17.10
12/10/2023,11166,SOUTH FAMILY HUB,5999,AMZNMKTPLACE,MISCELLANEOUS AND SPECIALTY RETAIL STORES,13.35
12/10/2023,11507,CARE LEAVERS,9399,DRIVING LICENCE WEB,GOVERNMENT SERVICES-NOT ELSEWHERE CLASSIFIED,34.00
12/10/2023,11507,CARE LEAVERS,9399,DVLA DRIVER ONLINE,GOVERNMENT SERVICES-NOT ELSEWHERE CLASSIFIED,34.00
12/10/2023,10378,CHILDREN�S SERVICES MANAGEMENT TEAM,5999,AMZNMKTPLACE,MISCELLANEOUS AND SPECIALTY RETAIL STORES,4.98
12/10/2023,11746,RESIDENTIAL - GRAYSWOOD,5999,AMZNMKTPLACE,MISCELLANEOUS AND SPECIALTY RETAIL STORES,16.99
11/10/2023,11507,CARE LEAVERS,4784,M6 TOLL,"BRIDGE AND ROAD FEES, TOLLS",8.60
11/10/2023,10291,SECTION17 PAYMENTS CENTRAL,7011,HYLANDS HOTEL,"LODGING-HOTELS,MOTELS,RESORTS-NOT CLASSIFIED",420.00
11/10/2023,11166,SOUTH FAMILY HUB,5999,AMZNMKTPLACE,MISCELLANEOUS AND SPECIALTY RETAIL STORES,47.98
11/10/2023,11163,COVENTRY MOVES,8220,CUE TECHNO CARPARK,"COLLEGES, UNIV, PRO SCHOOLS, JUNIOR COLLEGES",4.00
11/10/2023,10448,RESIDENTIAL - GRAVEL HILL,5812,THE PHANTOM COACH,"EATING PLACES, RESTAURANTS",116.67
11/10/2023,11602,IPS LD GOSFORD COMMUNITY HUB,5399,B&M 526 - ANSTY ROAD,MISCELLANEOUS GENERAL MERCHANDISE,94.97
11/10/2023,11166,SOUTH FAMILY HUB,5999,AMZNMKTPLACE,MISCELLANEOUS AND SPECIALTY RETAIL STORES,18.44
11/10/2023,11307,IPS MH THE POD,5411,SAINSBURYS S MKTS,"GROCERY STORES, SUPERMARKETS",11.92
11/10/2023,10225,HOUSING - B&B ACCOMMODATION,3811,PREMIER INN,PREMIER INN,-637.50
11/10/2023,11507,CARE LEAVERS,5499,WELCOME BREAK WAITROSE,"MISC FOOD STORE-CONVENIENCE,MRKT,SPLTY,VENDNG MACS",6.50
11/10/2023,11197,WEST FAMILY HUB,5311,WWW.ARGOS.CO.UK,DEPARTMENT STORES,65.00
11/10/2023,11602,IPS LD GOSFORD COMMUNITY HUB,5200,B & Q 1258,HOME SUPPLY WAREHOUSE STORES,100.00
11/10/2023,11166,SOUTH FAMILY HUB,5999,AMZNMKTPLACE,MISCELLANEOUS AND SPECIALTY RETAIL STORES,31.99
11/10/2023,11307,IPS MH THE POD,5411,SAINSBURYS S MKTS,"GROCERY STORES, SUPERMARKETS",5.50
11/10/2023,11887,DIRECTOR - PEOPLE,5411,ALDI UK,"GROCERY STORES, SUPERMARKETS",2.59
11/10/2023,11163,COVENTRY MOVES,8220,CUE TECHNO CARPARK,"COLLEGES, UNIV, PRO SCHOOLS, JUNIOR COLLEGES",4.00
11/10/2023,11507,CARE LEAVERS,5814,VMS ROADCHEF COSTA,FAST FOOD RESTAURANTS,3.70
11/10/2023,11086,OUTDOOR EDUCATION CENTRE,5999,AMZNMKTPLACE,MISCELLANEOUS AND SPECIALTY RETAIL STORES,12.14
11/10/2023,11687,RESIDENTIAL - BROAD PARK HOUSE,8299,WWW.TEAMTEACH.CO.UK,SCHOOLS & EDUCATIONAL SVC-NOT ELSEWHERE CLASSIFIED,245.99
11/10/2023,11984,IPS MAYMORN RESOURCE CENTRE,4111,WWW.WMCA.ORG.UK,"TRANSPRTN-SUBRBN & LOCAL COMTR PSNGR, INCL FERRIES",10.00
11/10/2023,11687,RESIDENTIAL - BROAD PARK HOUSE,5411,ASDA STORES 4602,"GROCERY STORES, SUPERMARKETS",6.30
11/10/2023,11507,CARE LEAVERS,8299,WWW.BILLPLANT.CO.UK,SCHOOLS & EDUCATIONAL SVC-NOT ELSEWHERE CLASSIFIED,136.99
11/10/2023,11507,CARE LEAVERS,9402,POST OFFICE COUNTER,POSTAL SERVICES-GOVERNMENT ONLY,7.35
11/10/2023,10541,COVENTRY EXTENDED LEARNING CENTRE,5411,ASDA GROCERIES ONLINE,"GROCERY STORES, SUPERMARKETS",46.95
11/10/2023,11984,IPS MAYMORN RESOURCE CENTRE,4111,WWW.WMCA.ORG.UK,"TRANSPRTN-SUBRBN & LOCAL COMTR PSNGR, INCL FERRIES",10.00
11/10/2023,11300,PEST CONTROL & ANIMAL WELFARE,5995,PETS AT HOME LTD,PET SHOPS - PET FOODS AND SUPPLIES,49.37
11/10/2023,11307,IPS MH THE POD,5251,UNIVERSAL DISCOUNT STO,HARDWARE STORES,18.96
11/10/2023,11307,IPS MH THE POD,5411,COSTCUTTER,"GROCERY STORES, SUPERMARKETS",1.79
11/10/2023,10225,HOUSING - B&B ACCOMMODATION,3811,PREMIER INN,PREMIER INN,-637.50
11/10/2023,11157,IPS HWC ELSIE JONES,5811,BRAKE BROS LIMITED,CATERERS,288.26
11/10/2023,10378,CHILDREN�S SERVICES MANAGEMENT TEAM,5970,BAKER ROSS,"ARTIST SUPPLY STORES, CRAFT SHOPS",42.80
11/10/2023,10383,IPS HWC KNIGHTLOW,5811,BRAKE BROS LIMITED,CATERERS,193.06
11/10/2023,11354,IPS DAY OPPS GILBERT RICHARDS CENTRE,5811,BRAKE BROS LIMITED,CATERERS,673.28
11/10/2023,11932,LAC THROUGHCARE TEAM,5969,AMAZON.CO.UK HT7M41W14,DIRECT MARKETING-OTHER DIRECT MARKETERS/NOT ELSEW.,50.00
11/10/2023,10040,IPS HWC COPTHORNE,5811,BRAKE BROS LIMITED,CATERERS,288.64
11/10/2023,11879,IPS LD MAURICE EDELMAN HOUSE,5964,NISBETS LTD,DIRECT MARKETING-CATALOG MERCHANTS,51.55
11/10/2023,10411,IPS HWC QUINTON LODGE,5811,BRAKE BROS LIMITED,CATERERS,147.67
11/10/2023,11609,ADULT ED AOL8 - VARIOUS,5411,CO-OPERATIVE FOOD,"GROCERY STORES, SUPERMARKETS",9.25
11/10/2023,10653,STRATEGIC TRANSPORTATION,4112,CROSS COUNTRY RAIL,PASSENGER RAILWAYS,92.50
11/10/2023,10291,SECTION17 PAYMENTS CENTRAL,9399,COVENTRY CITY COUNCIL,GOVERNMENT SERVICES-NOT ELSEWHERE CLASSIFIED,14.50
11/10/2023,11879,IPS LD MAURICE EDELMAN HOUSE,5411,TESCO STORES 2328,"GROCERY STORES, SUPERMARKETS",270.48
11/10/2023,10291,SECTION17 PAYMENTS CENTRAL,4112,TRAINLINE,PASSENGER RAILWAYS,70.30
11/10/2023,11539,CENTRALISED PROMOTIONS BUDGET,5999,AMZNMKTPLACE,MISCELLANEOUS AND SPECIALTY RETAIL STORES,7.45
11/10/2023,11879,IPS LD MAURICE EDELMAN HOUSE,5999,AMZNMKTPLACE,MISCELLANEOUS AND SPECIALTY RETAIL STORES,44.00
11/10/2023,11932,LAC THROUGHCARE TEAM,5814,KFC-COURTHOUSE GREEN,FAST FOOD RESTAURANTS,14.66
10/10/2023,11307,IPS MH THE POD,5411,SAINSBURYS S/MKTS,"GROCERY STORES, SUPERMARKETS",20.40
10/10/2023,11687,RESIDENTIAL - BROAD PARK HOUSE,5411,ASDA STORES 4602,"GROCERY STORES, SUPERMARKETS",63.10
10/10/2023,11507,CARE LEAVERS,7523,NCP LIMITED,AUTOMOBILE PARKING LOTS AND GARAGES,24.15
10/10/2023,11086,OUTDOOR EDUCATION CENTRE,5999,AMZNMKTPLACE,MISCELLANEOUS AND SPECIALTY RETAIL STORES,12.24
10/10/2023,11155,HIGHWAYS S38/278 ADOPTIONS,5999,AMZNMKTPLACE,MISCELLANEOUS AND SPECIALTY RETAIL STORES,100.73
10/10/2023,11307,IPS MH THE POD,5411,WM MORRISONS STORE,"GROCERY STORES, SUPERMARKETS",55.05
10/10/2023,11307,IPS MH THE POD,5411,AL HALAL SUPERMARKET(R,"GROCERY STORES, SUPERMARKETS",16.77
10/10/2023,11307,IPS MH THE POD,5411,SAINSBURYS S MKTS,"GROCERY STORES, SUPERMARKETS",1.92
10/10/2023,11086,OUTDOOR EDUCATION CENTRE,5999,AMZNMKTPLACE,MISCELLANEOUS AND SPECIALTY RETAIL STORES,18.00
10/10/2023,11507,CARE LEAVERS,5814,COSTA COFFEE 43010820,FAST FOOD RESTAURANTS,16.40
10/10/2023,11307,IPS MH THE POD,5941,DOLPHINFITNESS.CO,SPORTING GOODS STORES,89.35
10/10/2023,10541,COVENTRY EXTENDED LEARNING CENTRE,5411,ASDA GROCERIES ONLINE,"GROCERY STORES, SUPERMARKETS",-7.00
10/10/2023,11507,CARE LEAVERS,4900,WWW.OVOENERGY.COM,"UTLTS-ELCTRC, GAS, HEATING OIL, SANITARY, WATER",416.00
10/10/2023,11826,REPAIR & MAINTENANCE,5999,AMZNMKTPLACE,MISCELLANEOUS AND SPECIALTY RETAIL STORES,25.98
10/10/2023,11500,ADULT SOCIAL CARE MANAGEMENT TEAM,5411,SAINSBURYS S/MKTS,"GROCERY STORES, SUPERMARKETS",20.25
10/10/2023,10541,COVENTRY EXTENDED LEARNING CENTRE,5411,ASDA GROCERIES ONLINE,"GROCERY STORES, SUPERMARKETS",84.93
10/10/2023,11157,IPS HWC ELSIE JONES,5311,WWW.ARGOS.CO.UK,DEPARTMENT STORES,11.00
10/10/2023,10448,RESIDENTIAL - GRAVEL HILL,5999,AMZNMKTPLACE,MISCELLANEOUS AND SPECIALTY RETAIL STORES,11.99
10/10/2023,11021,LAC & CARE LEAVERS,5812,GREGGS,"EATING PLACES, RESTAURANTS",10.25
10/10/2023,11680,PROCUREMENT SERVICES,8699,WWW.CIPS.ORG,"ORGANIZATIONS, MEMBERSHIP-NOT ELSEWHERE CLASSIFIED",145.00
10/10/2023,10469,RESIDENTIAL - JOBS LANE,5999,AMZNMKTPLACE,MISCELLANEOUS AND SPECIALTY RETAIL STORES,25.98
10/10/2023,11086,OUTDOOR EDUCATION CENTRE,5411,TESCO STORES 3057,"GROCERY STORES, SUPERMARKETS",12.30
10/10/2023,10448,RESIDENTIAL - GRAVEL HILL,5999,AMZNMKTPLACE,MISCELLANEOUS AND SPECIALTY RETAIL STORES,19.99
10/10/2023,11507,CARE LEAVERS,5814,SUBWAY 65740 TILE HILL,FAST FOOD RESTAURANTS,11.38
10/10/2023,11049,CREMATORIUM,9399,COVENTRY CITY COUNCIL,GOVERNMENT SERVICES-NOT ELSEWHERE CLASSIFIED,11.00
10/10/2023,11507,CARE LEAVERS,5399,AMAZON  026-1009124-20,MISCELLANEOUS GENERAL MERCHANDISE,600.00
10/10/2023,11354,IPS DAY OPPS GILBERT RICHARDS CENTRE,5411,ASDA GROCERIES ONLINE,"GROCERY STORES, SUPERMARKETS",167.25
10/10/2023,11507,CARE LEAVERS,5969,AMAZON.CO.UK HT18497D4,DIRECT MARKETING-OTHER DIRECT MARKETERS/NOT ELSEW.,600.00
10/10/2023,11107,CENTRAL FAMILY HUB,5999,AMZNBUSINESS HT2BP0774,MISCELLANEOUS AND SPECIALTY RETAIL STORES,39.98
10/10/2023,11539,CENTRALISED PROMOTIONS BUDGET,5192,TIMES NEWSPAPERS LTD,"BOOKS,PERIODICALS AND NEWSPAPERS",26.00
10/10/2023,11507,CARE LEAVERS,5969,AMAZON.CO.UK,DIRECT MARKETING-OTHER DIRECT MARKETERS/NOT ELSEW.,-600.00
10/10/2023,11922,ICT USER SUPPORT,5999,AMZNMKTPLACE,MISCELLANEOUS AND SPECIALTY RETAIL STORES,19.64
10/10/2023,11282,POST AND FASTPRINT,5943,EUROFFICE.CO.UK,"OFFICE, SCHOOL SUPPLY, AND STATIONERY STORES",74.88
10/10/2023,11928,COMMUNITY SUPPORT GRANTS,5999,AMZNMKTPLACE,MISCELLANEOUS AND SPECIALTY RETAIL STORES,-227.40
09/10/2023,11539,CENTRALISED PROMOTIONS BUDGET,7311,GOOGLE ADS8599866235,ADVERTISING SERVICES,627.65
09/10/2023,11746,RESIDENTIAL - GRAYSWOOD,5814,MCDONALDS 1358,FAST FOOD RESTAURANTS,10.16
09/10/2023,10232,CHILDREN�S DISABILITY,5411,ALDI 113 772,"GROCERY STORES, SUPERMARKETS",8.95
09/10/2023,10232,CHILDREN�S DISABILITY,5411,ALDI 113 772,"GROCERY STORES, SUPERMARKETS",2.49
09/10/2023,11771,STREETPRIDE SOUTH,5999,AMZNMKTPLACE,MISCELLANEOUS AND SPECIALTY RETAIL STORES,289.99
09/10/2023,10291,SECTION17 PAYMENTS CENTRAL,7011,HYLANDS HOTEL,"LODGING-HOTELS,MOTELS,RESORTS-NOT CLASSIFIED",280.00
09/10/2023,11928,COMMUNITY SUPPORT GRANTS,5999,AMZNMKTPLACE,MISCELLANEOUS AND SPECIALTY RETAIL STORES,-7.99
09/10/2023,11307,IPS MH THE POD,7399,EB  CW FOODIE AWARDS 2,BUSINESS SERVICES-NOT ELSEWHERE CLASSIFIED,195.00
09/10/2023,11507,CARE LEAVERS,7523,COMMUNITY HEALTH PARTN,AUTOMOBILE PARKING LOTS AND GARAGES,4.50
09/10/2023,10232,CHILDREN�S DISABILITY,5411,ALDI 13 772,"GROCERY STORES, SUPERMARKETS",9.04
09/10/2023,11771,STREETPRIDE SOUTH,5722,MACHINE MART LTD,HOUSEHOLD APPLIANCE STORES,61.15
09/10/2023,10676,HOUSING AND HOMELESSNESS,5999,AMZNMKTPLACE,MISCELLANEOUS AND SPECIALTY RETAIL STORES,17.12
09/10/2023,11307,IPS MH THE POD,5411,BUDGENS,"GROCERY STORES, SUPERMARKETS",17.30
09/10/2023,10469,RESIDENTIAL - JOBS LANE,5411,ALDI STORES ATHERSTONE,"GROCERY STORES, SUPERMARKETS",261.49
09/10/2023,11086,OUTDOOR EDUCATION CENTRE,5211,WWW.SCREWFIX.COM,"BUILDING MATERIALS, LUMBER STORES",66.47
09/10/2023,10232,CHILDREN�S DISABILITY,5411,ALDI 13 772,"GROCERY STORES, SUPERMARKETS",1.98
09/10/2023,10232,CHILDREN�S DISABILITY,5411,ALDI 13 772,"GROCERY STORES, SUPERMARKETS",2.60
09/10/2023,11072,ADULT EDUCATION � WORK PLACE LEARNING,5999,AMZNMKTPLACE,MISCELLANEOUS AND SPECIALTY RETAIL STORES,35.97
09/10/2023,11166,SOUTH FAMILY HUB,5999,AMZNMKTPLACE,MISCELLANEOUS AND SPECIALTY RETAIL STORES,3.53
09/10/2023,11307,IPS MH THE POD,5811,BRAKE BROS LIMITED,CATERERS,-47.11
09/10/2023,10411,IPS HWC QUINTON LODGE,5811,BRAKE BROS LIMITED,CATERERS,-13.95
09/10/2023,11166,SOUTH FAMILY HUB,7523,COVENTRY CITY COUNCIL,AUTOMOBILE PARKING LOTS AND GARAGES,3.00
09/10/2023,10565,ROUGH SLEEPER AND RAPID HOUSING PATH,5651,PRIMARK - COVENTRY,FAMILY CLOTHING STORES,33.30
09/10/2023,11640,CPR5666 COMMERCIAL PROPERTY ,5999,AMZNMKTPLACE,MISCELLANEOUS AND SPECIALTY RETAIL STORES,3.97
09/10/2023,11136,EAST FAMILY HUB,5499,PREMIER,"MISC FOOD STORE-CONVENIENCE,MRKT,SPLTY,VENDNG MACS",11.57
09/10/2023,10448,RESIDENTIAL - GRAVEL HILL,5999,AMZNMKTPLACE,MISCELLANEOUS AND SPECIALTY RETAIL STORES,12.99
09/10/2023,10488,IPS LD JENNER8,4111,WWW.WMCA.ORG.UK,"TRANSPRTN-SUBRBN & LOCAL COMTR PSNGR, INCL FERRIES",10.00
09/10/2023,11136,EAST FAMILY HUB,7523,COVENTRY CITY COUNCIL,AUTOMOBILE PARKING LOTS AND GARAGES,5.00
09/10/2023,10448,RESIDENTIAL - GRAVEL HILL,5969,AMAZON.CO.UK HT9HX6DA4,DIRECT MARKETING-OTHER DIRECT MARKETERS/NOT ELSEW.,22.99
09/10/2023,11135,YOUTH OFFENDING SERVICE,5941,SPORTSDIRECT 364,SPORTING GOODS STORES,100.00
09/10/2023,10469,RESIDENTIAL - JOBS LANE,5712,IKEA LTD 142 BIRMINGHA,"EQUIP, FURNITURE, HOME FURNSHNGS STRS (EXCPT APPL)",84.00
09/10/2023,11107,CENTRAL FAMILY HUB,7523,COVENTRY CITY COUNCIL,AUTOMOBILE PARKING LOTS AND GARAGES,5.00
09/10/2023,11300,PEST CONTROL & ANIMAL WELFARE,5995,PETS AT HOME LTD,PET SHOPS - PET FOODS AND SUPPLIES,39.47
09/10/2023,10145,IPS LD BRANDON WOOD FARM,5655,TOWER FARM SADDLERS,"SPORTS APPAREL, RIDING APPAREL STORES",58.48
09/10/2023,10448,RESIDENTIAL - GRAVEL HILL,5999,AMZNMKTPLACE,MISCELLANEOUS AND SPECIALTY RETAIL STORES,12.99
09/10/2023,11197,WEST FAMILY HUB,7523,COVENTRY CITY COUNCIL,AUTOMOBILE PARKING LOTS AND GARAGES,4.00
09/10/2023,11300,PEST CONTROL & ANIMAL WELFARE,5200,B & Q 1231,HOME SUPPLY WAREHOUSE STORES,49.02
09/10/2023,10448,RESIDENTIAL - GRAVEL HILL,5999,AMZNMKTPLACE,MISCELLANEOUS AND SPECIALTY RETAIL STORES,16.99
09/10/2023,11507,CARE LEAVERS,5719,POSTURITE LTD,MISCELLANEOUS HOUSE FURNISHING SPECIALTY SHOPS,-584.16
09/10/2023,10225,HOUSING - B&B ACCOMMODATION,3811,PREMIER INN,PREMIER INN,-523.50
09/10/2023,11984,IPS MAYMORN RESOURCE CENTRE,4111,WWW.WMCA.ORG.UK,"TRANSPRTN-SUBRBN & LOCAL COMTR PSNGR, INCL FERRIES",10.00
09/10/2023,11704,COVENTRY MUSIC,5818,APPLE.COM/BILL,DIGITAL GOODS MULTI CATEGORY,2.99
09/10/2023,11403,IPS HWC COTTAGE FARM,5811,BRAKE BROS LIMITED,CATERERS,235.73
09/10/2023,10040,IPS HWC COPTHORNE,5411,ALDI 15 772,"GROCERY STORES, SUPERMARKETS",76.68
09/10/2023,10378,CHILDREN�S SERVICES MANAGEMENT TEAM,7523,COVENTRY CITY COUNCIL,AUTOMOBILE PARKING LOTS AND GARAGES,6.00
09/10/2023,11135,YOUTH OFFENDING SERVICE,5411,ALDI 113 772,"GROCERY STORES, SUPERMARKETS",10.36
09/10/2023,10368,PARKS � EVENTS & ACTIVITIES,5199,PB PACKAGING GROUP LTD,NONDURABLE GOODS (NOT ELSEWHERE CLASSIFIED),120.37
09/10/2023,11021,LAC & CARE LEAVERS,5310,THE WORKS,DISCOUNT STORES,8.50
09/10/2023,10469,RESIDENTIAL - JOBS LANE,5399,ETSY.COM ARTPAUSE,MISCELLANEOUS GENERAL MERCHANDISE,25.48
09/10/2023,11507,CARE LEAVERS,5411,ALDI 113 772,"GROCERY STORES, SUPERMARKETS",41.42
09/10/2023,10225,HOUSING - B&B ACCOMMODATION,3811,PREMIER INN,PREMIER INN,-523.50
09/10/2023,11984,IPS MAYMORN RESOURCE CENTRE,4111,WWW.WMCA.ORG.UK,"TRANSPRTN-SUBRBN & LOCAL COMTR PSNGR, INCL FERRIES",10.00
09/10/2023,11507,CARE LEAVERS,5712,FURNITURE VILLAGE,"EQUIP, FURNITURE, HOME FURNSHNGS STRS (EXCPT APPL)",350.00
09/10/2023,11539,CENTRALISED PROMOTIONS BUDGET,7299,SQ  MARK PEMBERTON PHO,OTHER SERVICES (NOT ELSEWHERE CLASSIFIED),500.00
09/10/2023,11507,CARE LEAVERS,5712,IKEA LTD 142 BIRMINGHA,"EQUIP, FURNITURE, HOME FURNSHNGS STRS (EXCPT APPL)",138.00
09/10/2023,11274,PUBLIC HEALTH STAFFING & OVERHEADS,7311,FACEBK  PNKWUUK6H2,ADVERTISING SERVICES,125.00
09/10/2023,11507,CARE LEAVERS,5999,AMZNMKTPLACE,MISCELLANEOUS AND SPECIALTY RETAIL STORES,34.98
09/10/2023,11507,CARE LEAVERS,5812,MCDONALDS   931,"EATING PLACES, RESTAURANTS",9.78
09/10/2023,11507,CARE LEAVERS,5651,ZAM ZAM ISLAMIC STORE,FAMILY CLOTHING STORES,35.00
09/10/2023,10416,LAC PERMANENCY,9399,HM PASSPORT OFFICE,GOVERNMENT SERVICES-NOT ELSEWHERE CLASSIFIED,-58.50
09/10/2023,11826,REPAIR & MAINTENANCE,5099,PAYPAL  WICKESBUILD,"DURABLE GOODS, NOT ELSEWHERE CLASSIFIED",89.00
09/10/2023,11746,RESIDENTIAL - GRAYSWOOD,5814,MCDONALDS 1358,FAST FOOD RESTAURANTS,35.67
09/10/2023,10300,INTERNAL FOSTERING TEAM,5969,AMAZON.CO.UK HT2EZ68Z4,DIRECT MARKETING-OTHER DIRECT MARKETERS/NOT ELSEW.,128.99
09/10/2023,11865,PUBLIC HEALTH - MIGRATION,9399,WWW.WMCA.CO.UK,GOVERNMENT SERVICES-NOT ELSEWHERE CLASSIFIED,60.00
09/10/2023,10225,HOUSING - B&B ACCOMMODATION,5311,WWW.ARGOS.CO.UK,DEPARTMENT STORES,412.00
09/10/2023,10676,HOUSING AND HOMELESSNESS,5211,WWW.SCREWFIX.COM,"BUILDING MATERIALS, LUMBER STORES",384.36
09/10/2023,10300,INTERNAL FOSTERING TEAM,5712,DREAMS LTD,"EQUIP, FURNITURE, HOME FURNSHNGS STRS (EXCPT APPL)",59.00
06/10/2023,11746,RESIDENTIAL - GRAYSWOOD,5812,ZETTLE_ ELMEXDC LIMITE,"EATING PLACES, RESTAURANTS",12.20
06/10/2023,11928,COMMUNITY SUPPORT GRANTS,5999,AMZNMKTPLACE,MISCELLANEOUS AND SPECIALTY RETAIL STORES,-41.83
06/10/2023,11072,ADULT EDUCATION � WORK PLACE LEARNING,5999,AMZNMKTPLACE,MISCELLANEOUS AND SPECIALTY RETAIL STORES,5.94
06/10/2023,10411,IPS HWC QUINTON LODGE,5811,BRAKE BROS LIMITED,CATERERS,231.15
06/10/2023,11072,ADULT EDUCATION � WORK PLACE LEARNING,5999,AMZNMKTPLACE,MISCELLANEOUS AND SPECIALTY RETAIL STORES,47.12
06/10/2023,11021,LAC & CARE LEAVERS,5814,PIZZA HUT COVENTRY SOU,FAST FOOD RESTAURANTS,42.57
06/10/2023,11507,CARE LEAVERS,5999,AMZNMKTPLACE,MISCELLANEOUS AND SPECIALTY RETAIL STORES,653.96
06/10/2023,10378,CHILDREN�S SERVICES MANAGEMENT TEAM,5999,AMZNMKTPLACE,MISCELLANEOUS AND SPECIALTY RETAIL STORES,18.99
06/10/2023,11072,ADULT EDUCATION � WORK PLACE LEARNING,5411,WM MORRISONS STORE,"GROCERY STORES, SUPERMARKETS",9.35
06/10/2023,11307,IPS MH THE POD,5411,SUMUP   LAVENDER ORIEN,"GROCERY STORES, SUPERMARKETS",1.99
06/10/2023,11746,RESIDENTIAL - GRAYSWOOD,5499,WELCOME BREAK-CORLEY S,"MISC FOOD STORE-CONVENIENCE,MRKT,SPLTY,VENDNG MACS",3.20
06/10/2023,11746,RESIDENTIAL - GRAYSWOOD,7922,COLOSSUS SHOP,"THEATRICAL PRODUCERS(EXCL MOTION PIX),TICKET AGNCY",2.90
06/10/2023,11746,RESIDENTIAL - GRAYSWOOD,5814,CHOZEN NOODLE BEACONSF,FAST FOOD RESTAURANTS,19.95
06/10/2023,11746,RESIDENTIAL - GRAYSWOOD,5499,WELCOME BREAK-CORLEY S,"MISC FOOD STORE-CONVENIENCE,MRKT,SPLTY,VENDNG MACS",3.20
06/10/2023,11746,RESIDENTIAL - GRAYSWOOD,5999,AMZNBUSINESS HT7PP5554,MISCELLANEOUS AND SPECIALTY RETAIL STORES,9.95
06/10/2023,11640,CPR5666 COMMERCIAL PROPERTY ,5999,AMZNMKTPLACE,MISCELLANEOUS AND SPECIALTY RETAIL STORES,53.54
06/10/2023,10951,IPS HWC SHORT TERM TENANCIES,4900,WWW.OVOENERGY.COM,"UTLTS-ELCTRC, GAS, HEATING OIL, SANITARY, WATER",34.01
06/10/2023,11746,RESIDENTIAL - GRAYSWOOD,5499,WELCOME BREAK WHS-STH,"MISC FOOD STORE-CONVENIENCE,MRKT,SPLTY,VENDNG MACS",19.40
06/10/2023,10951,IPS HWC SHORT TERM TENANCIES,4900,WWW.OVOENERGY.COM,"UTLTS-ELCTRC, GAS, HEATING OIL, SANITARY, WATER",51.50
06/10/2023,11746,RESIDENTIAL - GRAYSWOOD,5999,AMZNMKTPLACE,MISCELLANEOUS AND SPECIALTY RETAIL STORES,19.96
06/10/2023,10951,IPS HWC SHORT TERM TENANCIES,4900,WWW.OVOENERGY.COM,"UTLTS-ELCTRC, GAS, HEATING OIL, SANITARY, WATER",67.65
06/10/2023,10951,IPS HWC SHORT TERM TENANCIES,4900,WWW.OVOENERGY.COM,"UTLTS-ELCTRC, GAS, HEATING OIL, SANITARY, WATER",37.33
06/10/2023,11539,CENTRALISED PROMOTIONS BUDGET,8299,NEW SKILLS / BE-A,SCHOOLS & EDUCATIONAL SVC-NOT ELSEWHERE CLASSIFIED,99.00
06/10/2023,10951,IPS HWC SHORT TERM TENANCIES,4900,WWW.OVOENERGY.COM,"UTLTS-ELCTRC, GAS, HEATING OIL, SANITARY, WATER",36.79
06/10/2023,10951,IPS HWC SHORT TERM TENANCIES,4900,WWW.OVOENERGY.COM,"UTLTS-ELCTRC, GAS, HEATING OIL, SANITARY, WATER",37.76
06/10/2023,10232,CHILDREN�S DISABILITY,5411,SAINSBURYS S/MKTS,"GROCERY STORES, SUPERMARKETS",3.20
06/10/2023,10951,IPS HWC SHORT TERM TENANCIES,4900,WWW.OVOENERGY.COM,"UTLTS-ELCTRC, GAS, HEATING OIL, SANITARY, WATER",35.99
06/10/2023,10951,IPS HWC SHORT TERM TENANCIES,4900,WWW.OVOENERGY.COM,"UTLTS-ELCTRC, GAS, HEATING OIL, SANITARY, WATER",47.16
06/10/2023,10951,IPS HWC SHORT TERM TENANCIES,4900,WWW.OVOENERGY.COM,"UTLTS-ELCTRC, GAS, HEATING OIL, SANITARY, WATER",60.84
06/10/2023,11197,WEST FAMILY HUB,5311,WWW.ARGOS.CO.UK,DEPARTMENT STORES,90.00
06/10/2023,10541,COVENTRY EXTENDED LEARNING CENTRE,8249,WWW.DYSLEXIAACTIONSHOP,"SCHOOLS, TRADE AND VOCATIONAL","1,480.80"
06/10/2023,11687,RESIDENTIAL - BROAD PARK HOUSE,5722,AO RETAIL LIMITED,HOUSEHOLD APPLIANCE STORES,308.00
06/10/2023,10232,CHILDREN�S DISABILITY,5310,POUNDLAND LTD - 2243,DISCOUNT STORES,12.00
06/10/2023,11277,FLEET SERVICES,8111,WWW.LICENCECHECK.CO.UK,"ATTORNEYS, LEGAL SERVICES",600.00
06/10/2023,11374,PARTNERSHIPS & SOCIAL CARE OPERATIONAL,4111,WWW.WMCA.ORG.UK,"TRANSPRTN-SUBRBN & LOCAL COMTR PSNGR, INCL FERRIES",660.00
06/10/2023,11746,RESIDENTIAL - GRAYSWOOD,5814,JUST EAT,FAST FOOD RESTAURANTS,24.59
06/10/2023,11072,ADULT EDUCATION � WORK PLACE LEARNING,5999,AMZNMKTPLACE,MISCELLANEOUS AND SPECIALTY RETAIL STORES,33.60
06/10/2023,11507,CARE LEAVERS,5999,TIMPSON LTD,MISCELLANEOUS AND SPECIALTY RETAIL STORES,22.00
06/10/2023,11746,RESIDENTIAL - GRAYSWOOD,5999,AMZNMKTPLACE,MISCELLANEOUS AND SPECIALTY RETAIL STORES,21.99
06/10/2023,11300,PEST CONTROL & ANIMAL WELFARE,5200,B & Q 1258,HOME SUPPLY WAREHOUSE STORES,35.20
06/10/2023,10291,SECTION17 PAYMENTS CENTRAL,6513,WHITE & CO PROPERTY,REAL ESTATE AGENTS AND MANAGERS-RENTALS,880.00
06/10/2023,11072,ADULT EDUCATION � WORK PLACE LEARNING,5999,AMZNMKTPLACE,MISCELLANEOUS AND SPECIALTY RETAIL STORES,18.32
06/10/2023,10565,ROUGH SLEEPER AND RAPID HOUSING PATH,5311,WWW.ARGOS.CO.UK,DEPARTMENT STORES,39.98
06/10/2023,11307,IPS MH THE POD,5411,SAINSBURYS S MKTS,"GROCERY STORES, SUPERMARKETS",.95
06/10/2023,11507,CARE LEAVERS,5994,LADY GODIVA NEWS L,NEWS DEALERS AND NEWSSTANDS,3.75
06/10/2023,10291,SECTION17 PAYMENTS CENTRAL,4131,WEST MIDLANDS TRAV,BUS LINES,30.00
06/10/2023,10008,0-19 POLICY - PH,5814,SWEET MEMORIES,FAST FOOD RESTAURANTS,21.00
06/10/2023,11507,CARE LEAVERS,5814,STARBUCKS,FAST FOOD RESTAURANTS,6.29
06/10/2023,11072,ADULT EDUCATION � WORK PLACE LEARNING,5999,AMZNMKTPLACE,MISCELLANEOUS AND SPECIALTY RETAIL STORES,17.28
06/10/2023,11307,IPS MH THE POD,5411,SAINSBURYS S MKTS,"GROCERY STORES, SUPERMARKETS",1.10
06/10/2023,11103,RESIDENTIAL - BROAD LANE,5999,AMZNMKTPLACE,MISCELLANEOUS AND SPECIALTY RETAIL STORES,15.99
06/10/2023,11307,IPS MH THE POD,5411,COSTCUTTER,"GROCERY STORES, SUPERMARKETS",11.48
06/10/2023,11166,SOUTH FAMILY HUB,7523,COVENTRY CITY COUNCIL,AUTOMOBILE PARKING LOTS AND GARAGES,9.00
06/10/2023,11072,ADULT EDUCATION � WORK PLACE LEARNING,5999,AMZNMKTPLACE,MISCELLANEOUS AND SPECIALTY RETAIL STORES,31.76
05/10/2023,11107,CENTRAL FAMILY HUB,7523,COVENTRY CITY COUNCIL,AUTOMOBILE PARKING LOTS AND GARAGES,8.00
05/10/2023,10040,IPS HWC COPTHORNE,5422,WWW.MIDLANDFOODS.CO.UK,"FREEZER, LOCKER MEAT PROVISIONERS",158.84
05/10/2023,11507,CARE LEAVERS,5814,MCDONALDS,FAST FOOD RESTAURANTS,10.70
05/10/2023,11307,IPS MH THE POD,5411,SAINSBURYS S MKTS,"GROCERY STORES, SUPERMARKETS",1.30
05/10/2023,11507,CARE LEAVERS,5812,GREGGS PLC,"EATING PLACES, RESTAURANTS",3.40
05/10/2023,11129,INTERNAL FOSTERING FEES,5814,FINGER LICKING KITCHEN,FAST FOOD RESTAURANTS,9.50
05/10/2023,11307,IPS MH THE POD,5411,WM MORRISONS STORE,"GROCERY STORES, SUPERMARKETS",11.60
05/10/2023,11507,CARE LEAVERS,5732,CURRYS ONLINE,ELECTRONIC SALES,358.99
05/10/2023,10317,MH COMMUNITY MENTAL HEALTH TEAM,4722,BKG HOTEL AT BOOKING.C,TRAVEL AGENCIES AND TOUR OPERATORS,156.24
05/10/2023,11507,CARE LEAVERS,5310,ARGOS CANLEY,DISCOUNT STORES,22.00
05/10/2023,10565,ROUGH SLEEPER AND RAPID HOUSING PATH,5399,B&M 470 - HS COVENTRY,MISCELLANEOUS GENERAL MERCHANDISE,53.20
05/10/2023,11507,CARE LEAVERS,5732,CURRYS ONLINE,ELECTRONIC SALES,698.00
05/10/2023,11507,CARE LEAVERS,7523,WALSGRAVE CAR PARK,AUTOMOBILE PARKING LOTS AND GARAGES,5.00
05/10/2023,11932,LAC THROUGHCARE TEAM,5812,MCDONALDS   539,"EATING PLACES, RESTAURANTS",7.30
05/10/2023,11307,IPS MH THE POD,5411,SUMUP   BAIXING FOODS,"GROCERY STORES, SUPERMARKETS",4.58
05/10/2023,11307,IPS MH THE POD,5411,SAINSBURYS S/MKTS,"GROCERY STORES, SUPERMARKETS",20.80
05/10/2023,11507,CARE LEAVERS,5732,CURRYS ONLINE,ELECTRONIC SALES,358.99
05/10/2023,11687,RESIDENTIAL - BROAD PARK HOUSE,5999,AMZNMKTPLACE,MISCELLANEOUS AND SPECIALTY RETAIL STORES,69.50
05/10/2023,10232,CHILDREN�S DISABILITY,5411,ONE STOP 2901,"GROCERY STORES, SUPERMARKETS",6.35
05/10/2023,11687,RESIDENTIAL - BROAD PARK HOUSE,5999,AMZNMKTPLACE,MISCELLANEOUS AND SPECIALTY RETAIL STORES,39.99
05/10/2023,10232,CHILDREN�S DISABILITY,5411,TESCO STORES 2328,"GROCERY STORES, SUPERMARKETS",14.99
05/10/2023,11300,PEST CONTROL & ANIMAL WELFARE,5411,TESCO STORES 2323,"GROCERY STORES, SUPERMARKETS",30.50
05/10/2023,11687,RESIDENTIAL - BROAD PARK HOUSE,9402,POST OFFICE COUNTER,POSTAL SERVICES-GOVERNMENT ONLY,10.00
05/10/2023,10232,CHILDREN�S DISABILITY,5411,ALDI 15 772,"GROCERY STORES, SUPERMARKETS",1.40
05/10/2023,10291,SECTION17 PAYMENTS CENTRAL,4131,STAGECOACH SERVICES,BUS LINES,109.40
05/10/2023,11826,REPAIR & MAINTENANCE,5712,SP W HURST & SON,"EQUIP, FURNITURE, HOME FURNSHNGS STRS (EXCPT APPL)",-43.98
05/10/2023,10291,SECTION17 PAYMENTS CENTRAL,4225,RUGBY SELF STORAGE CEN,"PUBLIC WAREHOUSING-FARM, REFRIG GOODS, HHG STORAGE",267.81
05/10/2023,11307,IPS MH THE POD,5411,SAINSBURYS S/MKTS,"GROCERY STORES, SUPERMARKETS",4.75
05/10/2023,10469,RESIDENTIAL - JOBS LANE,5411,ALDI 108 772,"GROCERY STORES, SUPERMARKETS",15.59
05/10/2023,11507,CARE LEAVERS,5814,MCDONALDS,FAST FOOD RESTAURANTS,10.52
05/10/2023,10040,IPS HWC COPTHORNE,5811,BRAKE BROS LIMITED,CATERERS,-61.14
05/10/2023,10902,BEHAVIOUR SUPPORT - PRIMARY SERVICE,7399,EB  NATIONAL SEND AND,BUSINESS SERVICES-NOT ELSEWHERE CLASSIFIED,160.00
05/10/2023,10300,INTERNAL FOSTERING TEAM,7399,EB  OVERSEAS CONVENTIO,BUSINESS SERVICES-NOT ELSEWHERE CLASSIFIED,13.55
05/10/2023,11129,INTERNAL FOSTERING FEES,5311,ONE4ALL,DEPARTMENT STORES,50.99
05/10/2023,11307,IPS MH THE POD,5411,ALDI 113 772,"GROCERY STORES, SUPERMARKETS",1.98
05/10/2023,10333,14-16 ALTERNATIVE CURRICULUM,9399,WWW.WMCA.CO.UK,GOVERNMENT SERVICES-NOT ELSEWHERE CLASSIFIED,36.00
05/10/2023,10962,OUTDOOR EDUCATION SERVICE,5999,AMZNMKTPLACE,MISCELLANEOUS AND SPECIALTY RETAIL STORES,25.54
05/10/2023,11307,IPS MH THE POD,5411,TESCO STORES 2328,"GROCERY STORES, SUPERMARKETS",8.20
05/10/2023,10541,COVENTRY EXTENDED LEARNING CENTRE,5411,ASDA GROCERIES ONLINE,"GROCERY STORES, SUPERMARKETS",29.18
05/10/2023,10291,SECTION17 PAYMENTS CENTRAL,4131,WEST MIDLANDS TRAV,BUS LINES,90.00
05/10/2023,11995,IPS HWC HARRY CAPLAN,5422,WWW.MIDLANDFOODS.CO.UK,"FREEZER, LOCKER MEAT PROVISIONERS",78.90
05/10/2023,11507,CARE LEAVERS,5311,WWW.ARGOS.CO.UK,DEPARTMENT STORES,153.95
05/10/2023,10951,IPS HWC SHORT TERM TENANCIES,4900,WWW.OVOENERGY.COM,"UTLTS-ELCTRC, GAS, HEATING OIL, SANITARY, WATER",48.30
05/10/2023,10951,IPS HWC SHORT TERM TENANCIES,4900,WWW.OVOENERGY.COM,"UTLTS-ELCTRC, GAS, HEATING OIL, SANITARY, WATER",42.57
05/10/2023,11135,YOUTH OFFENDING SERVICE,5411,ALDI 22 772,"GROCERY STORES, SUPERMARKETS",5.29
05/10/2023,11995,IPS HWC HARRY CAPLAN,5422,WWW.MIDLANDFOODS.CO.UK,"FREEZER, LOCKER MEAT PROVISIONERS",53.07
05/10/2023,11879,IPS LD MAURICE EDELMAN HOUSE,5422,WWW.MIDLANDFOODS.CO.UK,"FREEZER, LOCKER MEAT PROVISIONERS",23.22
05/10/2023,10302,CPR0010 DOE BANK LANE 6,5999,AMZNMKTPLACE,MISCELLANEOUS AND SPECIALTY RETAIL STORES,9.99
05/10/2023,11507,CARE LEAVERS,5994,LADY GODIVA NEWS L,NEWS DEALERS AND NEWSSTANDS,4.80
05/10/2023,10676,HOUSING AND HOMELESSNESS,5200,B & Q 1231,HOME SUPPLY WAREHOUSE STORES,50.00
05/10/2023,11103,RESIDENTIAL - BROAD LANE,5999,AMZNMKTPLACE,MISCELLANEOUS AND SPECIALTY RETAIL STORES,57.42
05/10/2023,11135,YOUTH OFFENDING SERVICE,5812,MCDONALDS   539,"EATING PLACES, RESTAURANTS",7.59
05/10/2023,10951,IPS HWC SHORT TERM TENANCIES,4900,E.ON NEXT,"UTLTS-ELCTRC, GAS, HEATING OIL, SANITARY, WATER",35.71
05/10/2023,10761,REVENUES - CTAX AND NNDR COLLECTION TEAM,7011,RAMADA HOTEL,"LODGING-HOTELS,MOTELS,RESORTS-NOT CLASSIFIED",85.00
05/10/2023,10761,REVENUES - CTAX AND NNDR COLLECTION TEAM,7011,RAMADA HOTEL,"LODGING-HOTELS,MOTELS,RESORTS-NOT CLASSIFIED",85.00
05/10/2023,10951,IPS HWC SHORT TERM TENANCIES,4900,WWW.OVOENERGY.COM,"UTLTS-ELCTRC, GAS, HEATING OIL, SANITARY, WATER",16.11
05/10/2023,10951,IPS HWC SHORT TERM TENANCIES,4900,E.ON NEXT,"UTLTS-ELCTRC, GAS, HEATING OIL, SANITARY, WATER",54.44
05/10/2023,10302,CPR0010 DOE BANK LANE 6,5999,AMZNMKTPLACE,MISCELLANEOUS AND SPECIALTY RETAIL STORES,18.65
05/10/2023,11507,CARE LEAVERS,5812,GREGGS PLC,"EATING PLACES, RESTAURANTS",13.45
05/10/2023,11742,OPR0700 STATION SQUARE FRIARGATE,5964,NISBETS LTD,DIRECT MARKETING-CATALOG MERCHANTS,38.74
05/10/2023,10951,IPS HWC SHORT TERM TENANCIES,4900,E.ON NEXT,"UTLTS-ELCTRC, GAS, HEATING OIL, SANITARY, WATER",37.62
05/10/2023,11826,REPAIR & MAINTENANCE,5999,AMZNMKTPLACE,MISCELLANEOUS AND SPECIALTY RETAIL STORES,32.30
05/10/2023,11879,IPS LD MAURICE EDELMAN HOUSE,5411,TESCO STORES 2328,"GROCERY STORES, SUPERMARKETS",237.59
05/10/2023,10670,ADULT ED STAFF DEVELOPMENT,8220,EDUCATION & TRAINI,"COLLEGES, UNIV, PRO SCHOOLS, JUNIOR COLLEGES",-22.00
05/10/2023,10951,IPS HWC SHORT TERM TENANCIES,4900,WWW.OVOENERGY.COM,"UTLTS-ELCTRC, GAS, HEATING OIL, SANITARY, WATER",46.10
05/10/2023,11277,FLEET SERVICES,8111,WWW.LICENCECHECK.CO.UK,"ATTORNEYS, LEGAL SERVICES",600.00
05/10/2023,11879,IPS LD MAURICE EDELMAN HOUSE,5422,WWW.MIDLANDFOODS.CO.UK,"FREEZER, LOCKER MEAT PROVISIONERS",54.36
05/10/2023,11403,IPS HWC COTTAGE FARM,5422,WWW.MIDLANDFOODS.CO.UK,"FREEZER, LOCKER MEAT PROVISIONERS",61.42
05/10/2023,11771,STREETPRIDE SOUTH,5200,WICKES COVENTRY,HOME SUPPLY WAREHOUSE STORES,45.95
05/10/2023,11879,IPS LD MAURICE EDELMAN HOUSE,5422,WWW.MIDLANDFOODS.CO.UK,"FREEZER, LOCKER MEAT PROVISIONERS",52.46
05/10/2023,11103,RESIDENTIAL - BROAD LANE,5999,AMZNMKTPLACE,MISCELLANEOUS AND SPECIALTY RETAIL STORES,13.95
05/10/2023,11507,CARE LEAVERS,5411,ASDA STORES 4602,"GROCERY STORES, SUPERMARKETS",30.50
05/10/2023,11746,RESIDENTIAL - GRAYSWOOD,5999,AMZNMKTPLACE,MISCELLANEOUS AND SPECIALTY RETAIL STORES,23.71
04/10/2023,11197,WEST FAMILY HUB,7523,COVENTRY CITY COUNCIL,AUTOMOBILE PARKING LOTS AND GARAGES,8.00
04/10/2023,10145,IPS LD BRANDON WOOD FARM,5499,WWW.JOHALDAIRIES.CO.UK,"MISC FOOD STORE-CONVENIENCE,MRKT,SPLTY,VENDNG MACS",7.80
04/10/2023,11157,IPS HWC ELSIE JONES,5811,BRAKE BROS LIMITED,CATERERS,201.09
04/10/2023,10383,IPS HWC KNIGHTLOW,5811,BRAKE BROS LIMITED,CATERERS,301.95
04/10/2023,11135,YOUTH OFFENDING SERVICE,5812,GREGGS PLC,"EATING PLACES, RESTAURANTS",50.00
04/10/2023,11307,IPS MH THE POD,5311,WWW.ARGOS.CO.UK,DEPARTMENT STORES,15.00
04/10/2023,11507,CARE LEAVERS,5999,AMZNMKTPLACE,MISCELLANEOUS AND SPECIALTY RETAIL STORES,79.85
04/10/2023,11197,WEST FAMILY HUB,7523,COVENTRY CITY COUNCIL,AUTOMOBILE PARKING LOTS AND GARAGES,9.00
04/10/2023,10541,COVENTRY EXTENDED LEARNING CENTRE,5411,ASDA GROCERIES ONLINE,"GROCERY STORES, SUPERMARKETS",54.97
04/10/2023,11932,LAC THROUGHCARE TEAM,5399,B&M 031 - AIRPORT,MISCELLANEOUS GENERAL MERCHANDISE,6.25
04/10/2023,11307,IPS MH THE POD,5411,TESCO STORES 2328,"GROCERY STORES, SUPERMARKETS",21.64
04/10/2023,10541,COVENTRY EXTENDED LEARNING CENTRE,5411,ASDA GROCERIES ONLINE,"GROCERY STORES, SUPERMARKETS",46.30
04/10/2023,11826,REPAIR & MAINTENANCE,5722,MAX BUCH CABLES,HOUSEHOLD APPLIANCE STORES,58.00
04/10/2023,11826,REPAIR & MAINTENANCE,5251,IRONMONGERYDIRECT,HARDWARE STORES,114.30
04/10/2023,10480,"DIRECTOR � BUSINESS, INVESTMENT & CULTU",7523,RINGGO PARKING,AUTOMOBILE PARKING LOTS AND GARAGES,7.15
04/10/2023,11307,IPS MH THE POD,5999,AMZNMKTPLACE,MISCELLANEOUS AND SPECIALTY RETAIL STORES,21.99
04/10/2023,10541,COVENTRY EXTENDED LEARNING CENTRE,5411,ASDA GROCERIES ONLINE,"GROCERY STORES, SUPERMARKETS",-9.40
04/10/2023,10876,"SEN - OUTREACH, CASEWORK & SUPPORTED",9402,POST OFFICE COUNTER,POSTAL SERVICES-GOVERNMENT ONLY,8.15
04/10/2023,11135,YOUTH OFFENDING SERVICE,5310,POUNDLAND LTD - 1282,DISCOUNT STORES,33.20
04/10/2023,11103,RESIDENTIAL - BROAD LANE,5411,ALDI STORES ATHERSTONE,"GROCERY STORES, SUPERMARKETS",232.66
04/10/2023,11662,HOUSING AND HOMELESSNESS,7523,COVENTRY CITY COUNCIL,AUTOMOBILE PARKING LOTS AND GARAGES,8.00
04/10/2023,11307,IPS MH THE POD,5411,AL HALAL SUPERMARKET(R,"GROCERY STORES, SUPERMARKETS",2.00
04/10/2023,11307,IPS MH THE POD,5411,TESCO STORES 5779,"GROCERY STORES, SUPERMARKETS",.80
04/10/2023,11103,RESIDENTIAL - BROAD LANE,5814,JUST EAT,FAST FOOD RESTAURANTS,16.68
04/10/2023,11662,HOUSING AND HOMELESSNESS,7523,COVENTRY CITY COUNCIL,AUTOMOBILE PARKING LOTS AND GARAGES,8.00
04/10/2023,11307,IPS MH THE POD,5411,SAINSBURYS S MKTS,"GROCERY STORES, SUPERMARKETS",5.70
04/10/2023,10225,HOUSING - B&B ACCOMMODATION,3811,PREMIER INN,PREMIER INN,637.50
04/10/2023,11507,CARE LEAVERS,9399,COVENTRY CITY COUNCIL,GOVERNMENT SERVICES-NOT ELSEWHERE CLASSIFIED,-11.00
04/10/2023,11865,PUBLIC HEALTH - MIGRATION,9402,POST OFFICE SELF SERVE,POSTAL SERVICES-GOVERNMENT ONLY,1.95
04/10/2023,10225,HOUSING - B&B ACCOMMODATION,3811,PREMIER INN,PREMIER INN,591.00
04/10/2023,11507,CARE LEAVERS,9399,COVENTRY CITY COUNCIL,GOVERNMENT SERVICES-NOT ELSEWHERE CLASSIFIED,-11.00
04/10/2023,10469,RESIDENTIAL - JOBS LANE,5411,ALDI 108 772,"GROCERY STORES, SUPERMARKETS",35.61
04/10/2023,10225,HOUSING - B&B ACCOMMODATION,3811,PREMIER INN,PREMIER INN,637.50
04/10/2023,11662,HOUSING AND HOMELESSNESS,7523,COVENTRY CITY COUNCIL,AUTOMOBILE PARKING LOTS AND GARAGES,8.00
04/10/2023,11307,IPS MH THE POD,5411,COSTCUTTER,"GROCERY STORES, SUPERMARKETS",13.78
04/10/2023,10225,HOUSING - B&B ACCOMMODATION,3811,PREMIER INN,PREMIER INN,591.00
04/10/2023,10962,OUTDOOR EDUCATION SERVICE,5999,AMZNMKTPLACE,MISCELLANEOUS AND SPECIALTY RETAIL STORES,60.00
04/10/2023,11932,LAC THROUGHCARE TEAM,5814,MCDONALDS,FAST FOOD RESTAURANTS,7.60
04/10/2023,11507,CARE LEAVERS,4784,M6 TOLL,"BRIDGE AND ROAD FEES, TOLLS",8.60
04/10/2023,10040,IPS HWC COPTHORNE,5811,BRAKE BROS LIMITED,CATERERS,459.48
04/10/2023,10397,"AD - PLANNING, TRANSPORT & HIGHWAYS",5812,COFFEE NO 1 COVENTRY,"EATING PLACES, RESTAURANTS",6.45
04/10/2023,11602,IPS LD GOSFORD COMMUNITY HUB,5411,ADSA STORES LTD 4231,"GROCERY STORES, SUPERMARKETS",34.85
04/10/2023,10397,"AD - PLANNING, TRANSPORT & HIGHWAYS",4111,TFL TRAVEL CH,"TRANSPRTN-SUBRBN & LOCAL COMTR PSNGR, INCL FERRIES",5.50
04/10/2023,11021,LAC & CARE LEAVERS,5411,TESCO STORES 5779,"GROCERY STORES, SUPERMARKETS",21.45
04/10/2023,11086,OUTDOOR EDUCATION CENTRE,5399,WILKO RETAIL LIMITED,MISCELLANEOUS GENERAL MERCHANDISE,7.50
04/10/2023,11507,CARE LEAVERS,4784,M6 TOLL,"BRIDGE AND ROAD FEES, TOLLS",8.60
04/10/2023,10040,IPS HWC COPTHORNE,5411,ICELAND FOODS,"GROCERY STORES, SUPERMARKETS",61.25
04/10/2023,11995,IPS HWC HARRY CAPLAN,5499,WWW.JOHALDAIRIES.CO.UK,"MISC FOOD STORE-CONVENIENCE,MRKT,SPLTY,VENDNG MACS",8.47
04/10/2023,10029,COOMBE,5211,TOOLSTATION LTD - COVE,"BUILDING MATERIALS, LUMBER STORES",9.89
04/10/2023,11166,SOUTH FAMILY HUB,5499,WWW.JOHALDAIRIES.CO.UK,"MISC FOOD STORE-CONVENIENCE,MRKT,SPLTY,VENDNG MACS",20.00
04/10/2023,11277,FLEET SERVICES,5072,WWW.GOV.UK/PAY-DARTFOR,HARDWARE EQUIPMENT AND SUPPLIES,3.00
04/10/2023,11879,IPS LD MAURICE EDELMAN HOUSE,5499,WWW.JOHALDAIRIES.CO.UK,"MISC FOOD STORE-CONVENIENCE,MRKT,SPLTY,VENDNG MACS",136.57
04/10/2023,10469,RESIDENTIAL - JOBS LANE,5969,AMAZON.CO.UK HT84I1E54,DIRECT MARKETING-OTHER DIRECT MARKETERS/NOT ELSEW.,22.96
04/10/2023,10291,SECTION17 PAYMENTS CENTRAL,4112,TRAINLINE,PASSENGER RAILWAYS,-56.90
04/10/2023,11277,FLEET SERVICES,5072,WWW.GOV.UK/PAY-DARTFOR,HARDWARE EQUIPMENT AND SUPPLIES,2.50
04/10/2023,10090,LIBRARIES - OPERATIONS,5999,AMZNMKTPLACE,MISCELLANEOUS AND SPECIALTY RETAIL STORES,126.99
04/10/2023,10360,JOB SHOP,5719,WWW.THERANGE.CO.UK,MISCELLANEOUS HOUSE FURNISHING SPECIALTY SHOPS,-63.94
04/10/2023,11354,IPS DAY OPPS GILBERT RICHARDS CENTRE,5499,WWW.JOHALDAIRIES.CO.UK,"MISC FOOD STORE-CONVENIENCE,MRKT,SPLTY,VENDNG MACS",21.75
04/10/2023,11149,WAR MEMORIAL PARK,4214,NEIL BARTLETT HAULAGE,"FREIGHT CARRIER,TRUCKING-LCL/LNG DIST, MVG/STORAGE",40.00
04/10/2023,11307,IPS MH THE POD,5200,B & Q 1231,HOME SUPPLY WAREHOUSE STORES,10.50
04/10/2023,11197,WEST FAMILY HUB,5499,WWW.JOHALDAIRIES.CO.UK,"MISC FOOD STORE-CONVENIENCE,MRKT,SPLTY,VENDNG MACS",6.23
04/10/2023,10507,PARK RANGERS,5072,COVENTRY TIMBER PRODUC,HARDWARE EQUIPMENT AND SUPPLIES,20.40
04/10/2023,10507,PARK RANGERS,5099,COVENTRY TIMBER PRODUC,"DURABLE GOODS, NOT ELSEWHERE CLASSIFIED",95.76
04/10/2023,11300,PEST CONTROL & ANIMAL WELFARE,5995,PETS AT HOME LTD,PET SHOPS - PET FOODS AND SUPPLIES,91.37
04/10/2023,11149,WAR MEMORIAL PARK,5200,B & Q 1258,HOME SUPPLY WAREHOUSE STORES,10.50
04/10/2023,11307,IPS MH THE POD,5411,SAINSBURYS S/MKTS,"GROCERY STORES, SUPERMARKETS",12.00
04/10/2023,10040,IPS HWC COPTHORNE,5499,WWW.JOHALDAIRIES.CO.UK,"MISC FOOD STORE-CONVENIENCE,MRKT,SPLTY,VENDNG MACS",12.26
04/10/2023,11859,BUILDING CONTROL,9399,LAND REGISTRY ECOM CCC,GOVERNMENT SERVICES-NOT ELSEWHERE CLASSIFIED,3.00
04/10/2023,10291,SECTION17 PAYMENTS CENTRAL,4900,EDF ENERGY-IVR,"UTLTS-ELCTRC, GAS, HEATING OIL, SANITARY, WATER",52.37
04/10/2023,10029,COOMBE,5411,WM MORRISONS STORE,"GROCERY STORES, SUPERMARKETS",12.08
04/10/2023,10876,"SEN - OUTREACH, CASEWORK & SUPPORTED",9402,POST OFFICE COUNTER,POSTAL SERVICES-GOVERNMENT ONLY,8.15
03/10/2023,11307,IPS MH THE POD,5411,AL HALAL SUPERMARKET(R,"GROCERY STORES, SUPERMARKETS",21.07
03/10/2023,11662,HOUSING AND HOMELESSNESS,7523,COVENTRY CITY COUNCIL,AUTOMOBILE PARKING LOTS AND GARAGES,8.00
03/10/2023,11103,RESIDENTIAL - BROAD LANE,5814,JUST EAT,FAST FOOD RESTAURANTS,12.51
03/10/2023,11662,HOUSING AND HOMELESSNESS,7523,COVENTRY CITY COUNCIL,AUTOMOBILE PARKING LOTS AND GARAGES,8.00
03/10/2023,11103,RESIDENTIAL - BROAD LANE,5999,AMZNMKTPLACE,MISCELLANEOUS AND SPECIALTY RETAIL STORES,95.00
03/10/2023,11746,RESIDENTIAL - GRAYSWOOD,5814,COSTA COFFEE 43011649,FAST FOOD RESTAURANTS,25.20
03/10/2023,10951,IPS HWC SHORT TERM TENANCIES,4900,OVO ENERGY LTD,"UTLTS-ELCTRC, GAS, HEATING OIL, SANITARY, WATER",48.30
03/10/2023,11969,ICT SECURITY,4816,DNH GO DADDY EUROPE GB,COMPUTER NETWORK/INFORMATION SERVICES,43.13
03/10/2023,11746,RESIDENTIAL - GRAYSWOOD,5999,AMZNMKTPLACE,MISCELLANEOUS AND SPECIALTY RETAIL STORES,67.28
03/10/2023,10951,IPS HWC SHORT TERM TENANCIES,4900,E.ON NEXT,"UTLTS-ELCTRC, GAS, HEATING OIL, SANITARY, WATER",41.80
03/10/2023,11136,EAST FAMILY HUB,7523,COVENTRY CITY COUNCIL,AUTOMOBILE PARKING LOTS AND GARAGES,9.00
03/10/2023,11507,CARE LEAVERS,5732,JUBILEE APPLIANCES,ELECTRONIC SALES,400.00
03/10/2023,11197,WEST FAMILY HUB,7523,COVENTRY CITY COUNCIL,AUTOMOBILE PARKING LOTS AND GARAGES,8.00
03/10/2023,11746,RESIDENTIAL - GRAYSWOOD,5999,AMZNMKTPLACE,MISCELLANEOUS AND SPECIALTY RETAIL STORES,13.99
03/10/2023,10951,IPS HWC SHORT TERM TENANCIES,4900,E.ON NEXT,"UTLTS-ELCTRC, GAS, HEATING OIL, SANITARY, WATER",36.37
03/10/2023,11507,CARE LEAVERS,9399,GEN REGISTER OFFICE,GOVERNMENT SERVICES-NOT ELSEWHERE CLASSIFIED,42.25
03/10/2023,10378,CHILDREN�S SERVICES MANAGEMENT TEAM,5411,TESCO STORES 5309,"GROCERY STORES, SUPERMARKETS",6.25
03/10/2023,11307,IPS MH THE POD,4121,SUMUP   DAVIDLANGLEYTA,LIMOUSINES AND TAXICABS,5.60
03/10/2023,11398,REFUGEE TRANSITIONS OUTCOME FUND (RTOF),5411,SAINSBURYS S/MKTS,"GROCERY STORES, SUPERMARKETS",4.15
03/10/2023,11932,LAC THROUGHCARE TEAM,4784,M6 TOLL,"BRIDGE AND ROAD FEES, TOLLS",8.60
03/10/2023,11792,HOUSING AND HOMELESSNESS,5999,AMZNBUSINESS HT7RW53O4,MISCELLANEOUS AND SPECIALTY RETAIL STORES,39.99
03/10/2023,11307,IPS MH THE POD,5411,SAINSBURYS S MKTS,"GROCERY STORES, SUPERMARKETS",10.20
03/10/2023,11307,IPS MH THE POD,5999,HOLLAND & BARRETT,MISCELLANEOUS AND SPECIALTY RETAIL STORES,3.99
03/10/2023,10541,COVENTRY EXTENDED LEARNING CENTRE,5411,ASDA GROCERIES ONLINE,"GROCERY STORES, SUPERMARKETS",123.93
03/10/2023,10291,SECTION17 PAYMENTS CENTRAL,4131,WEST MIDLANDS TRAV,BUS LINES,60.00
03/10/2023,11086,OUTDOOR EDUCATION CENTRE,5999,AMZNMKTPLACE,MISCELLANEOUS AND SPECIALTY RETAIL STORES,36.45
03/10/2023,10378,CHILDREN�S SERVICES MANAGEMENT TEAM,7523,MY NCP PARKING,AUTOMOBILE PARKING LOTS AND GARAGES,14.97
03/10/2023,11792,HOUSING AND HOMELESSNESS,5999,AMZNBUSINESS HT5AM1394,MISCELLANEOUS AND SPECIALTY RETAIL STORES,11.99
03/10/2023,11307,IPS MH THE POD,5411,SAINSBURYS S/MKTS,"GROCERY STORES, SUPERMARKETS",6.25
03/10/2023,11307,IPS MH THE POD,5411,WM MORRISONS STORE,"GROCERY STORES, SUPERMARKETS",7.78
03/10/2023,11792,HOUSING AND HOMELESSNESS,5999,AMZNBUSINESS HT7Q08334,MISCELLANEOUS AND SPECIALTY RETAIL STORES,23.25
03/10/2023,11307,IPS MH THE POD,5999,AMZNMKTPLACE,MISCELLANEOUS AND SPECIALTY RETAIL STORES,18.75
03/10/2023,11826,REPAIR & MAINTENANCE,5099,PAYPAL  SCREWFIX,"DURABLE GOODS, NOT ELSEWHERE CLASSIFIED",26.97
03/10/2023,10291,SECTION17 PAYMENTS CENTRAL,4112,TRAINLINE,PASSENGER RAILWAYS,70.10
03/10/2023,11507,CARE LEAVERS,5310,POUNDLAND LTD - 2017,DISCOUNT STORES,1.50
03/10/2023,10291,SECTION17 PAYMENTS CENTRAL,4722,BKG HOTEL AT BOOKING.C,TRAVEL AGENCIES AND TOUR OPERATORS,"2,276.49"
03/10/2023,11086,OUTDOOR EDUCATION CENTRE,5411,TESCO STORES 3057,"GROCERY STORES, SUPERMARKETS",8.37
03/10/2023,11021,LAC & CARE LEAVERS,9399,COVENTRY CITY COUNCIL,GOVERNMENT SERVICES-NOT ELSEWHERE CLASSIFIED,70.00
03/10/2023,10676,HOUSING AND HOMELESSNESS,5200,B & Q 1258,HOME SUPPLY WAREHOUSE STORES,107.37
03/10/2023,10291,SECTION17 PAYMENTS CENTRAL,4131,WEST MIDLANDS TRAV,BUS LINES,99.00
03/10/2023,11307,IPS MH THE POD,5411,SUMUP   BAIXING FOODS,"GROCERY STORES, SUPERMARKETS",3.78
03/10/2023,11792,HOUSING AND HOMELESSNESS,5999,AMZNBUSINESS HT1SN53W4,MISCELLANEOUS AND SPECIALTY RETAIL STORES,51.19
03/10/2023,11932,LAC THROUGHCARE TEAM,5814,SUBWAY 65740 TILE HILL,FAST FOOD RESTAURANTS,9.66
03/10/2023,11197,WEST FAMILY HUB,7523,COVENTRY CITY COUNCIL,AUTOMOBILE PARKING LOTS AND GARAGES,9.00
03/10/2023,11932,LAC THROUGHCARE TEAM,5814,STARBUCKS,FAST FOOD RESTAURANTS,7.92
03/10/2023,11746,RESIDENTIAL - GRAYSWOOD,4112,COVENTRY T/O,PASSENGER RAILWAYS,23.40
03/10/2023,11166,SOUTH FAMILY HUB,7523,COVENTRY CITY COUNCIL,AUTOMOBILE PARKING LOTS AND GARAGES,10.00
03/10/2023,11662,HOUSING AND HOMELESSNESS,7523,COVENTRY CITY COUNCIL,AUTOMOBILE PARKING LOTS AND GARAGES,8.00
03/10/2023,11103,RESIDENTIAL - BROAD LANE,5814,JUST EAT,FAST FOOD RESTAURANTS,66.15
03/10/2023,11662,HOUSING AND HOMELESSNESS,5411,SAINSBURYS S/MKTS,"GROCERY STORES, SUPERMARKETS",9.30
03/10/2023,11248,IPS ERIC WILLIAMS HOUSE,5999,AMZNMKTPLACE,MISCELLANEOUS AND SPECIALTY RETAIL STORES,13.27
02/10/2023,11274,PUBLIC HEALTH STAFFING & OVERHEADS,7311,FACEBK  LF4UTU37H2,ADVERTISING SERVICES,6.21
02/10/2023,10291,SECTION17 PAYMENTS CENTRAL,7011,HYLANDS HOTEL,"LODGING-HOTELS,MOTELS,RESORTS-NOT CLASSIFIED",420.00
02/10/2023,11928,COMMUNITY SUPPORT GRANTS,5999,AMZNMKTPLACE,MISCELLANEOUS AND SPECIALTY RETAIL STORES,44.98
02/10/2023,11928,COMMUNITY SUPPORT GRANTS,5999,AMZNMKTPLACE,MISCELLANEOUS AND SPECIALTY RETAIL STORES,7.94
02/10/2023,11928,COMMUNITY SUPPORT GRANTS,5999,AMZNMKTPLACE,MISCELLANEOUS AND SPECIALTY RETAIL STORES,7.99
02/10/2023,11928,COMMUNITY SUPPORT GRANTS,5999,AMZNMKTPLACE,MISCELLANEOUS AND SPECIALTY RETAIL STORES,38.99
02/10/2023,11928,COMMUNITY SUPPORT GRANTS,5999,AMZNMKTPLACE,MISCELLANEOUS AND SPECIALTY RETAIL STORES,7.94
02/10/2023,11928,COMMUNITY SUPPORT GRANTS,5999,AMZNMKTPLACE,MISCELLANEOUS AND SPECIALTY RETAIL STORES,44.98
02/10/2023,11753,LIBRARIES - SERVICE DEVELOPMENT,5411,NEWS PLUS,"GROCERY STORES, SUPERMARKETS",120.45
02/10/2023,11984,IPS MAYMORN RESOURCE CENTRE,5411,TESCO STORES 2328,"GROCERY STORES, SUPERMARKETS",21.34
02/10/2023,11928,COMMUNITY SUPPORT GRANTS,5999,AMZNMKTPLACE,MISCELLANEOUS AND SPECIALTY RETAIL STORES,16.94
02/10/2023,11248,IPS ERIC WILLIAMS HOUSE,5999,AMZNMKTPLACE,MISCELLANEOUS AND SPECIALTY RETAIL STORES,79.56
02/10/2023,11149,WAR MEMORIAL PARK,5065,SKY BLUE FIXINGS LIMIT,ELECTRICAL PARTS AND EQUIPMENT,50.89
02/10/2023,11262,ADULT ED E LEARNING,5999,AMZNMKTPLACE,MISCELLANEOUS AND SPECIALTY RETAIL STORES,76.00
02/10/2023,11928,COMMUNITY SUPPORT GRANTS,5999,AMZNMKTPLACE,MISCELLANEOUS AND SPECIALTY RETAIL STORES,114.58
02/10/2023,11248,IPS ERIC WILLIAMS HOUSE,5047,WWW.GOMPELS.CO.UK,DENTAL/LAB/MED/OPHTHALMIC HOSP EQUIP & SUPPLIES,249.60
02/10/2023,11969,ICT SECURITY,4816,DNH GODADDY.COM EUROPE,COMPUTER NETWORK/INFORMATION SERVICES,43.13
02/10/2023,11928,COMMUNITY SUPPORT GRANTS,5999,AMZNMKTPLACE,MISCELLANEOUS AND SPECIALTY RETAIL STORES,6.95
02/10/2023,11928,COMMUNITY SUPPORT GRANTS,5999,AMZNMKTPLACE,MISCELLANEOUS AND SPECIALTY RETAIL STORES,23.90
02/10/2023,11507,CARE LEAVERS,5814,MCDONALDS,FAST FOOD RESTAURANTS,12.97
02/10/2023,11928,COMMUNITY SUPPORT GRANTS,5999,AMZNMKTPLACE,MISCELLANEOUS AND SPECIALTY RETAIL STORES,38.99
02/10/2023,11928,COMMUNITY SUPPORT GRANTS,5999,AMZNMKTPLACE,MISCELLANEOUS AND SPECIALTY RETAIL STORES,23.90
02/10/2023,11507,CARE LEAVERS,5941,SPORTSDIRECT.COM,SPORTING GOODS STORES,142.28
02/10/2023,11879,IPS LD MAURICE EDELMAN HOUSE,5999,AMZNMKTPLACE,MISCELLANEOUS AND SPECIALTY RETAIL STORES,-11.97
02/10/2023,11507,CARE LEAVERS,5411,ALDI 40 772,"GROCERY STORES, SUPERMARKETS",5.99
02/10/2023,11922,ICT USER SUPPORT,5065,PREMIER FARNELL,ELECTRICAL PARTS AND EQUIPMENT,163.20
02/10/2023,10317,MH COMMUNITY MENTAL HEALTH TEAM,9222,DERBYSHIRE010OFFIC,FINES,81.00
02/10/2023,10378,CHILDREN�S SERVICES MANAGEMENT TEAM,5999,AMZNMKTPLACE,MISCELLANEOUS AND SPECIALTY RETAIL STORES,8.89
02/10/2023,11403,IPS HWC COTTAGE FARM,5811,BRAKE BROS LIMITED,CATERERS,231.91
02/10/2023,10317,MH COMMUNITY MENTAL HEALTH TEAM,9222,DERBYSHIRE010OFFIC,FINES,81.00
02/10/2023,10378,CHILDREN�S SERVICES MANAGEMENT TEAM,7311,GOOGLE ADS5863587466,ADVERTISING SERVICES,348.37
02/10/2023,11507,CARE LEAVERS,5813,RILEYS SPORTS BARS COV,"BAR,LOUNGE,DISCO,NIGHTCLUB,TAVERN-ALCOHOLIC DRINKS",14.58
02/10/2023,11277,FLEET SERVICES,5999,AMZNMKTPLACE,MISCELLANEOUS AND SPECIALTY RETAIL STORES,37.98
02/10/2023,11103,RESIDENTIAL - BROAD LANE,5999,AMZNMKTPLACE,MISCELLANEOUS AND SPECIALTY RETAIL STORES,14.99
02/10/2023,11874,OPR0077 EARL STREET COUNCIL HOUSE,5200,WICKES COVENTRY,HOME SUPPLY WAREHOUSE STORES,1.75
02/10/2023,11409,HONG KONG BRITISH NATIONAL (OVERSEAS) UK,5310,POUNDLAND LTD - 1282,DISCOUNT STORES,13.75
02/10/2023,11507,CARE LEAVERS,5732,JUBILEE APPLIANCES,ELECTRONIC SALES,200.00
02/10/2023,11922,ICT USER SUPPORT,5999,AMZNMKTPLACE,MISCELLANEOUS AND SPECIALTY RETAIL STORES,9.79
02/10/2023,10488,IPS LD JENNER8,4111,WWW.WMCA.ORG.UK,"TRANSPRTN-SUBRBN & LOCAL COMTR PSNGR, INCL FERRIES",10.00
02/10/2023,11409,HONG KONG BRITISH NATIONAL (OVERSEAS) UK,5912,SUPERDRUG STORES PLC,"DRUG STORES, PHARMACIES",2.49
02/10/2023,11507,CARE LEAVERS,5411,ASDA STORES 4602,"GROCERY STORES, SUPERMARKETS",39.65
02/10/2023,11922,ICT USER SUPPORT,5999,AMZNMKTPLACE,MISCELLANEOUS AND SPECIALTY RETAIL STORES,26.99
02/10/2023,11409,HONG KONG BRITISH NATIONAL (OVERSEAS) UK,5812,SUMUP   COZY CORNER C9,"EATING PLACES, RESTAURANTS",292.60
02/10/2023,10211,MIGRATION PROJECT B,5814,COSTA COFFEE 43010860,FAST FOOD RESTAURANTS,14.80
02/10/2023,11865,PUBLIC HEALTH - MIGRATION,4131,NX BUS CONTACTLESS,BUS LINES,4.00
02/10/2023,10225,HOUSING - B&B ACCOMMODATION,3811,PREMIER INN,PREMIER INN,475.00
02/10/2023,11507,CARE LEAVERS,9399,HM PASSPORT OFFICE,GOVERNMENT SERVICES-NOT ELSEWHERE CLASSIFIED,82.50
02/10/2023,10565,ROUGH SLEEPER AND RAPID HOUSING PATH,5411,ALDI 15 772,"GROCERY STORES, SUPERMARKETS",4.37
02/10/2023,10225,HOUSING - B&B ACCOMMODATION,3615,TRAVELODG TRAVELODGE G,TRAVELODGE,608.86
02/10/2023,10225,HOUSING - B&B ACCOMMODATION,3615,TRAVELODG TRAVELODGE G,TRAVELODGE,239.66
02/10/2023,10225,HOUSING - B&B ACCOMMODATION,3811,PREMIER INN,PREMIER INN,280.50
02/10/2023,11021,LAC & CARE LEAVERS,5651,PRIMARK - COVENTRY,FAMILY CLOTHING STORES,40.50
02/10/2023,11984,IPS MAYMORN RESOURCE CENTRE,4111,WWW.WMCA.ORG.UK,"TRANSPRTN-SUBRBN & LOCAL COMTR PSNGR, INCL FERRIES",10.00
02/10/2023,11507,CARE LEAVERS,5812,MCDONALDS   539,"EATING PLACES, RESTAURANTS",9.28
02/10/2023,11507,CARE LEAVERS,5411,ASDA SUPERSTORE,"GROCERY STORES, SUPERMARKETS",40.81
02/10/2023,10084,SECTION17 PAYMENTS WEST,7011,HYLANDS HOTEL,"LODGING-HOTELS,MOTELS,RESORTS-NOT CLASSIFIED",560.00
02/10/2023,11507,CARE LEAVERS,4112,TRAINLINE,PASSENGER RAILWAYS,34.33
02/10/2023,11507,CARE LEAVERS,5399,WILKO RETAIL LIMITED,MISCELLANEOUS GENERAL MERCHANDISE,4.50
02/10/2023,11984,IPS MAYMORN RESOURCE CENTRE,4111,WWW.WMCA.ORG.UK,"TRANSPRTN-SUBRBN & LOCAL COMTR PSNGR, INCL FERRIES",10.00
02/10/2023,11507,CARE LEAVERS,5462,EGGFREE CAKE BOX,BAKERIES,30.49
02/10/2023,11507,CARE LEAVERS,5814,JUST EAT,FAST FOOD RESTAURANTS,87.52
02/10/2023,11072,ADULT EDUCATION � WORK PLACE LEARNING,5411,WM MORRISONS STORE,"GROCERY STORES, SUPERMARKETS",98.05
02/10/2023,11409,HONG KONG BRITISH NATIONAL (OVERSEAS) UK,5310,POUNDLAND LTD - 1282,DISCOUNT STORES,15.50
02/10/2023,11507,CARE LEAVERS,5814,MCDONALDS,FAST FOOD RESTAURANTS,15.90
02/10/2023,10448,RESIDENTIAL - GRAVEL HILL,4899,NETFLIX,"CABLE, SATELLITE, OTHER PAY TELEVISION, RADIO SVCS",10.99
02/10/2023,11766,CPR0462 QUEEN VICTORIA ROAD RETAIL MARK,5968,AMAZON PRIME 1K4U96UJ4,DIRECT MARKETING-CONTINUITY/SUBSCRIPTION MERCHANTS,8.99
02/10/2023,11409,HONG KONG BRITISH NATIONAL (OVERSEAS) UK,5399,HOME BARGAINS COVENTRY,MISCELLANEOUS GENERAL MERCHANDISE,21.78
02/10/2023,11248,IPS ERIC WILLIAMS HOUSE,5999,AMZNMKTPLACE,MISCELLANEOUS AND SPECIALTY RETAIL STORES,3.89
02/10/2023,11248,IPS ERIC WILLIAMS HOUSE,5999,AMZNMKTPLACE,MISCELLANEOUS AND SPECIALTY RETAIL STORES,23.98
02/10/2023,11307,IPS MH THE POD,5411,SEOUL PLAZA 8,"GROCERY STORES, SUPERMARKETS",30.34
02/10/2023,11103,RESIDENTIAL - BROAD LANE,5999,TIMPSON LTD,MISCELLANEOUS AND SPECIALTY RETAIL STORES,66.00
02/10/2023,11086,OUTDOOR EDUCATION CENTRE,5999,AMZNMKTPLACE,MISCELLANEOUS AND SPECIALTY RETAIL STORES,-13.72
02/10/2023,11248,IPS ERIC WILLIAMS HOUSE,5999,AMZNMKTPLACE,MISCELLANEOUS AND SPECIALTY RETAIL STORES,11.99
02/10/2023,11507,CARE LEAVERS,5399,B&M 526 - ANSTY ROAD,MISCELLANEOUS GENERAL MERCHANDISE,111.00
02/10/2023,11307,IPS MH THE POD,5411,SAINSBURYS S/MKTS,"GROCERY STORES, SUPERMARKETS",46.97
02/10/2023,11248,IPS ERIC WILLIAMS HOUSE,5999,AMZNMKTPLACE,MISCELLANEOUS AND SPECIALTY RETAIL STORES,3.59
02/10/2023,11507,CARE LEAVERS,5812,THE WALSGRAVE REST,"EATING PLACES, RESTAURANTS",18.98
02/10/2023,11307,IPS MH THE POD,5411,SAINSBURYS S MKTS,"GROCERY STORES, SUPERMARKETS",7.65
02/10/2023,11248,IPS ERIC WILLIAMS HOUSE,5999,AMZNMKTPLACE,MISCELLANEOUS AND SPECIALTY RETAIL STORES,10.99
02/10/2023,10300,INTERNAL FOSTERING TEAM,7399,EB  CHILDREN MOVING OV,BUSINESS SERVICES-NOT ELSEWHERE CLASSIFIED,13.55
02/10/2023,11764,HOSPITAL EDUCATION & OUTREACH SERVICE,5999,AMZNMKTPLACE,MISCELLANEOUS AND SPECIALTY RETAIL STORES,13.99
02/10/2023,11879,IPS LD MAURICE EDELMAN HOUSE,5999,AMZNMKTPLACE,MISCELLANEOUS AND SPECIALTY RETAIL STORES,49.94
29/09/2023,11248,IPS ERIC WILLIAMS HOUSE,5999,AMZNMKTPLACE,MISCELLANEOUS AND SPECIALTY RETAIL STORES,31.96
29/09/2023,11262,ADULT ED E LEARNING,5999,AMZNMKTPLACE,MISCELLANEOUS AND SPECIALTY RETAIL STORES,62.75
29/09/2023,11136,EAST FAMILY HUB,5999,AMZNBUSINESS 1K9UE87K4,MISCELLANEOUS AND SPECIALTY RETAIL STORES,10.96
29/09/2023,11859,BUILDING CONTROL,9399,LAND REGISTRY ECOM CCC,GOVERNMENT SERVICES-NOT ELSEWHERE CLASSIFIED,6.00
29/09/2023,11086,OUTDOOR EDUCATION CENTRE,5812,COFFEE NO 1 COVENTRY,"EATING PLACES, RESTAURANTS",9.90
29/09/2023,11928,COMMUNITY SUPPORT GRANTS,5999,AMZNMKTPLACE,MISCELLANEOUS AND SPECIALTY RETAIL STORES,77.98
29/09/2023,11107,CENTRAL FAMILY HUB,5999,AMZNMKTPLACE,MISCELLANEOUS AND SPECIALTY RETAIL STORES,9.29
29/09/2023,11013,"EARLY YEARS SUFFICIENCY, QUALITY & TR",5999,AMZNMKTPLACE,MISCELLANEOUS AND SPECIALTY RETAIL STORES,4.48
29/09/2023,10565,ROUGH SLEEPER AND RAPID HOUSING PATH,5411,TESCO STORES 4843,"GROCERY STORES, SUPERMARKETS",4.85
29/09/2023,11507,CARE LEAVERS,5311,WWW.ARGOS.CO.UK,DEPARTMENT STORES,-93.95
29/09/2023,10900,LOCAL WELFARE PROVISION COVID-19,5999,AMZNMKTPLACE,MISCELLANEOUS AND SPECIALTY RETAIL STORES,-164.97
29/09/2023,11507,CARE LEAVERS,9402,POST OFFICE COUNTER,POSTAL SERVICES-GOVERNMENT ONLY,6.85
29/09/2023,10225,HOUSING - B&B ACCOMMODATION,3615,TRAVELODG TRAVELODGE G,TRAVELODGE,336.53
29/09/2023,11507,CARE LEAVERS,5722,AO RETAIL LIMITED,HOUSEHOLD APPLIANCE STORES,578.00
29/09/2023,11307,IPS MH THE POD,5411,SAINSBURYS S/MKTS,"GROCERY STORES, SUPERMARKETS",11.18
29/09/2023,11507,CARE LEAVERS,5311,WWW.ARGOS.CO.UK,DEPARTMENT STORES,93.95
29/09/2023,11928,COMMUNITY SUPPORT GRANTS,5999,AMZNMKTPLACE,MISCELLANEOUS AND SPECIALTY RETAIL STORES,41.15
29/09/2023,11928,COMMUNITY SUPPORT GRANTS,5999,AMZNMKTPLACE,MISCELLANEOUS AND SPECIALTY RETAIL STORES,7.99
29/09/2023,10411,IPS HWC QUINTON LODGE,5811,BRAKE BROS LIMITED,CATERERS,278.56
29/09/2023,11984,IPS MAYMORN RESOURCE CENTRE,4111,WWW.WMCA.ORG.UK,"TRANSPRTN-SUBRBN & LOCAL COMTR PSNGR, INCL FERRIES",10.00
29/09/2023,11865,PUBLIC HEALTH - MIGRATION,5411,ALDI 113 772,"GROCERY STORES, SUPERMARKETS",96.81
29/09/2023,11879,IPS LD MAURICE EDELMAN HOUSE,5411,TESCO STORES 2328,"GROCERY STORES, SUPERMARKETS",157.51
29/09/2023,11507,CARE LEAVERS,5411,TESCO STORES 2849,"GROCERY STORES, SUPERMARKETS",102.70
29/09/2023,11135,YOUTH OFFENDING SERVICE,5812,MCDONALDS   539,"EATING PLACES, RESTAURANTS",10.08
29/09/2023,11507,CARE LEAVERS,5411,ASDA GEORGE COM LEEDS,"GROCERY STORES, SUPERMARKETS",208.50
29/09/2023,11928,COMMUNITY SUPPORT GRANTS,5999,AMZNMKTPLACE,MISCELLANEOUS AND SPECIALTY RETAIL STORES,13.74
29/09/2023,10232,CHILDREN�S DISABILITY,5411,ALDI 113 772,"GROCERY STORES, SUPERMARKETS",8.76
29/09/2023,10232,CHILDREN�S DISABILITY,5411,ALDI 113 772,"GROCERY STORES, SUPERMARKETS",1.98
29/09/2023,10488,IPS LD JENNER8,4111,WWW.WMCA.ORG.UK,"TRANSPRTN-SUBRBN & LOCAL COMTR PSNGR, INCL FERRIES",10.00
29/09/2023,11928,COMMUNITY SUPPORT GRANTS,5999,AMZNMKTPLACE,MISCELLANEOUS AND SPECIALTY RETAIL STORES,7.94
29/09/2023,11507,CARE LEAVERS,5999,SHEIN.CO.UK,MISCELLANEOUS AND SPECIALTY RETAIL STORES,-46.50
29/09/2023,11021,LAC & CARE LEAVERS,5814,MCDONALDS,FAST FOOD RESTAURANTS,32.52
29/09/2023,11507,CARE LEAVERS,5411,TESCO STORES 2302,"GROCERY STORES, SUPERMARKETS",4.40
29/09/2023,11928,COMMUNITY SUPPORT GRANTS,5999,AMZNMKTPLACE,MISCELLANEOUS AND SPECIALTY RETAIL STORES,13.74
29/09/2023,10291,SECTION17 PAYMENTS CENTRAL,7011,SECURITY DEPOSIT,"LODGING-HOTELS,MOTELS,RESORTS-NOT CLASSIFIED",250.00
29/09/2023,11507,CARE LEAVERS,5999,SHEIN.CO.UK,MISCELLANEOUS AND SPECIALTY RETAIL STORES,46.50
29/09/2023,11086,OUTDOOR EDUCATION CENTRE,5999,AMZNMKTPLACE,MISCELLANEOUS AND SPECIALTY RETAIL STORES,14.50
29/09/2023,11307,IPS MH THE POD,5411,TESCO STORES 2328,"GROCERY STORES, SUPERMARKETS",9.40
29/09/2023,11135,YOUTH OFFENDING SERVICE,5812,MCDONALDS   931,"EATING PLACES, RESTAURANTS",2.69
29/09/2023,10541,COVENTRY EXTENDED LEARNING CENTRE,5542,ASDA PETROL/UPT,"FUEL DISPENSER, AUTOMATED",99.00
29/09/2023,11764,HOSPITAL EDUCATION & OUTREACH SERVICE,5999,AMZNMKTPLACE,MISCELLANEOUS AND SPECIALTY RETAIL STORES,3.98
29/09/2023,11928,COMMUNITY SUPPORT GRANTS,5999,AMZNMKTPLACE,MISCELLANEOUS AND SPECIALTY RETAIL STORES,13.74
29/09/2023,11922,ICT USER SUPPORT,5999,AMZNMKTPLACE,MISCELLANEOUS AND SPECIALTY RETAIL STORES,11.99
29/09/2023,11928,COMMUNITY SUPPORT GRANTS,5999,AMZNMKTPLACE,MISCELLANEOUS AND SPECIALTY RETAIL STORES,77.98
29/09/2023,11507,CARE LEAVERS,7523,COVENTRY CITY COUNCIL,AUTOMOBILE PARKING LOTS AND GARAGES,5.00
29/09/2023,11021,LAC & CARE LEAVERS,5814,MCDONALDS,FAST FOOD RESTAURANTS,4.79
29/09/2023,10300,INTERNAL FOSTERING TEAM,5999,AMZNMKTPLACE,MISCELLANEOUS AND SPECIALTY RETAIL STORES,24.95
29/09/2023,11984,IPS MAYMORN RESOURCE CENTRE,4111,WWW.WMCA.ORG.UK,"TRANSPRTN-SUBRBN & LOCAL COMTR PSNGR, INCL FERRIES",10.00
29/09/2023,11865,PUBLIC HEALTH - MIGRATION,5411,ALDI 113 772,"GROCERY STORES, SUPERMARKETS",14.63
29/09/2023,11746,RESIDENTIAL - GRAYSWOOD,5999,AMZNMKTPLACE,MISCELLANEOUS AND SPECIALTY RETAIL STORES,53.25
29/09/2023,11928,COMMUNITY SUPPORT GRANTS,5999,AMZNMKTPLACE,MISCELLANEOUS AND SPECIALTY RETAIL STORES,14.49
29/09/2023,11928,COMMUNITY SUPPORT GRANTS,5999,AMZNMKTPLACE,MISCELLANEOUS AND SPECIALTY RETAIL STORES,57.89
29/09/2023,11107,CENTRAL FAMILY HUB,5814,COSTA COFFEE 43011127,FAST FOOD RESTAURANTS,5.90
29/09/2023,10541,COVENTRY EXTENDED LEARNING CENTRE,5999,AMZNMKTPLACE,MISCELLANEOUS AND SPECIALTY RETAIL STORES,9.29
29/09/2023,11135,YOUTH OFFENDING SERVICE,7933,TENPIN.CO.UK,BOWLING ALLEYS,30.00
29/09/2023,11932,LAC THROUGHCARE TEAM,5999,AMZNMKTPLACE,MISCELLANEOUS AND SPECIALTY RETAIL STORES,28.00
29/09/2023,11021,LAC & CARE LEAVERS,7278,COSTCO WHOLESALE #122,"BUYING/SHOPPING CLUBS, SERVICES",146.77
29/09/2023,11932,LAC THROUGHCARE TEAM,5814,COSTA COFFEE 43010820,FAST FOOD RESTAURANTS,9.70
29/09/2023,11107,CENTRAL FAMILY HUB,5999,AMZNMKTPLACE,MISCELLANEOUS AND SPECIALTY RETAIL STORES,18.04
29/09/2023,11166,SOUTH FAMILY HUB,5411,TESCO STORES 2335,"GROCERY STORES, SUPERMARKETS",21.95
29/09/2023,11932,LAC THROUGHCARE TEAM,5999,AMZNMKTPLACE,MISCELLANEOUS AND SPECIALTY RETAIL STORES,35.98
29/09/2023,11021,LAC & CARE LEAVERS,5411,TESCO STORES 2325,"GROCERY STORES, SUPERMARKETS",77.50
29/09/2023,11928,COMMUNITY SUPPORT GRANTS,5999,AMZNMKTPLACE,MISCELLANEOUS AND SPECIALTY RETAIL STORES,16.82
29/09/2023,11928,COMMUNITY SUPPORT GRANTS,5999,AMZNMKTPLACE,MISCELLANEOUS AND SPECIALTY RETAIL STORES,7.99
29/09/2023,11928,COMMUNITY SUPPORT GRANTS,5999,AMZNMKTPLACE,MISCELLANEOUS AND SPECIALTY RETAIL STORES,16.82
29/09/2023,11013,"EARLY YEARS SUFFICIENCY, QUALITY & TR",5999,AMZNMKTPLACE,MISCELLANEOUS AND SPECIALTY RETAIL STORES,14.99
29/09/2023,10565,ROUGH SLEEPER AND RAPID HOUSING PATH,5310,POUNDLAND LTD - 2017,DISCOUNT STORES,9.90
29/09/2023,11928,COMMUNITY SUPPORT GRANTS,5999,AMZNMKTPLACE,MISCELLANEOUS AND SPECIALTY RETAIL STORES,41.15
29/09/2023,11928,COMMUNITY SUPPORT GRANTS,5999,AMZNMKTPLACE,MISCELLANEOUS AND SPECIALTY RETAIL STORES,15.91
29/09/2023,11928,COMMUNITY SUPPORT GRANTS,5999,AMZNMKTPLACE,MISCELLANEOUS AND SPECIALTY RETAIL STORES,16.82
29/09/2023,11507,CARE LEAVERS,5311,WWW.ARGOS.CO.UK,DEPARTMENT STORES,93.95
29/09/2023,11928,COMMUNITY SUPPORT GRANTS,5999,AMZNMKTPLACE,MISCELLANEOUS AND SPECIALTY RETAIL STORES,14.49
29/09/2023,11928,COMMUNITY SUPPORT GRANTS,5999,AMZNMKTPLACE,MISCELLANEOUS AND SPECIALTY RETAIL STORES,57.89
29/09/2023,11507,CARE LEAVERS,5311,WWW.ARGOS.CO.UK,DEPARTMENT STORES,334.94
29/09/2023,10378,CHILDREN�S SERVICES MANAGEMENT TEAM,5970,BAKER ROSS,"ARTIST SUPPLY STORES, CRAFT SHOPS",16.90
29/09/2023,10378,CHILDREN�S SERVICES MANAGEMENT TEAM,7523,COVENTRY CITY COUNCIL,AUTOMOBILE PARKING LOTS AND GARAGES,4.00
29/09/2023,11602,IPS LD GOSFORD COMMUNITY HUB,5411,CO-OPERATIVE FOOD,"GROCERY STORES, SUPERMARKETS",3.50
29/09/2023,10378,CHILDREN�S SERVICES MANAGEMENT TEAM,5411,WM MORRISONS STORE,"GROCERY STORES, SUPERMARKETS",60.00
29/09/2023,11606,BUSINESS RELATIONSHIP & TOURISM,5812,THE TERRACE,"EATING PLACES, RESTAURANTS",5.80
29/09/2023,10378,CHILDREN�S SERVICES MANAGEMENT TEAM,5411,WM MORRISONS STORE,"GROCERY STORES, SUPERMARKETS",67.96
29/09/2023,11507,CARE LEAVERS,8398,BRITISH HEART FOUNDATI,"ORGANIZATIONS, CHARITABLE AND SOCIAL SERVICES",160.00
29/09/2023,10378,CHILDREN�S SERVICES MANAGEMENT TEAM,5947,PARTY BALLOONS OF COVE,"GIFT, CARD, NOVELTY AND SOUVENIR SHOPS",119.70
29/09/2023,10378,CHILDREN�S SERVICES MANAGEMENT TEAM,7523,COVENTRY CITY COUNCIL,AUTOMOBILE PARKING LOTS AND GARAGES,5.00
29/09/2023,11248,IPS ERIC WILLIAMS HOUSE,5047,WWW.GOMPELS.CO.UK,DENTAL/LAB/MED/OPHTHALMIC HOSP EQUIP & SUPPLIES,239.37
28/09/2023,11865,PUBLIC HEALTH - MIGRATION,4814,THREE STORE,TELECOM INCL PREPAID/RECURRING PHONE SVCS,70.00
28/09/2023,10096,SPORTS DEVELOPMENT,5712,DUNELM SOFTFURNISHINGS,"EQUIP, FURNITURE, HOME FURNSHNGS STRS (EXCPT APPL)",-38.50
28/09/2023,10565,ROUGH SLEEPER AND RAPID HOUSING PATH,5411,ONE STOP (6347),"GROCERY STORES, SUPERMARKETS",9.40
28/09/2023,11507,CARE LEAVERS,5310,ARGOS LTD,DISCOUNT STORES,210.50
28/09/2023,11507,CARE LEAVERS,5399,B&M 470 - HS COVENTRY,MISCELLANEOUS GENERAL MERCHANDISE,37.00
28/09/2023,11507,CARE LEAVERS,5732,CURRYS ONLINE,ELECTRONIC SALES,229.00
28/09/2023,11870,IPS LD WILFRED SPENCER CENTRE,5999,AMZNMKTPLACE,MISCELLANEOUS AND SPECIALTY RETAIL STORES,-46.98
28/09/2023,11398,REFUGEE TRANSITIONS OUTCOME FUND (RTOF),5812,COFFEE NO 1 COVENTRY,"EATING PLACES, RESTAURANTS",7.10
28/09/2023,11792,HOUSING AND HOMELESSNESS,5310,ARGOS LTD,DISCOUNT STORES,70.00
28/09/2023,11381,PUBLIC HEALTH,4131,WEST MIDLANDS TRAV,BUS LINES,60.00
28/09/2023,11021,LAC & CARE LEAVERS,4112,TRAINLINE,PASSENGER RAILWAYS,23.53
28/09/2023,10541,COVENTRY EXTENDED LEARNING CENTRE,5411,ASDA GROCERIES ONLINE,"GROCERY STORES, SUPERMARKETS",6.49
28/09/2023,11307,IPS MH THE POD,5411,TESCO STORES 2328,"GROCERY STORES, SUPERMARKETS",24.35
28/09/2023,11507,CARE LEAVERS,5331,T K MAXX,VARIETY STORES,1.79
28/09/2023,10225,HOUSING - B&B ACCOMMODATION,3811,PREMIER INN,PREMIER INN,586.00
28/09/2023,11507,CARE LEAVERS,4112,TRAINLINE,PASSENGER RAILWAYS,57.59
28/09/2023,11129,INTERNAL FOSTERING FEES,5399,B&M 468 - HS NUNEATON,MISCELLANEOUS GENERAL MERCHANDISE,14.65
28/09/2023,10368,PARKS � EVENTS & ACTIVITIES,9402,POST OFFICE COUNTER,POSTAL SERVICES-GOVERNMENT ONLY,28.19
28/09/2023,11984,IPS MAYMORN RESOURCE CENTRE,5411,TESCO STORES 2328,"GROCERY STORES, SUPERMARKETS",9.15
28/09/2023,11928,COMMUNITY SUPPORT GRANTS,5999,AMZNMKTPLACE,MISCELLANEOUS AND SPECIALTY RETAIL STORES,13.35
28/09/2023,11879,IPS LD MAURICE EDELMAN HOUSE,5422,WWW.MIDLANDFOODS.CO.UK,"FREEZER, LOCKER MEAT PROVISIONERS",89.27
28/09/2023,11407,CHIEF EXECUTIVE,3811,PREMIER INN,PREMIER INN,172.00
28/09/2023,11932,LAC THROUGHCARE TEAM,5311,WWW.ARGOS.CO.UK,DEPARTMENT STORES,332.95
28/09/2023,10541,COVENTRY EXTENDED LEARNING CENTRE,5411,ASDA GROCERIES ONLINE,"GROCERY STORES, SUPERMARKETS",68.49
28/09/2023,11282,POST AND FASTPRINT,5999,WITHINTHEBOX LIMITED,MISCELLANEOUS AND SPECIALTY RETAIL STORES,206.40
28/09/2023,11826,REPAIR & MAINTENANCE,5072,ZORO UK,HARDWARE EQUIPMENT AND SUPPLIES,36.99
28/09/2023,11255,ADULT ED ADMIN & MANAGEMENT,5999,AMZNMKTPLACE,MISCELLANEOUS AND SPECIALTY RETAIL STORES,31.96
28/09/2023,11928,COMMUNITY SUPPORT GRANTS,5999,AMZNMKTPLACE,MISCELLANEOUS AND SPECIALTY RETAIL STORES,14.49
28/09/2023,11995,IPS HWC HARRY CAPLAN,5422,WWW.MIDLANDFOODS.CO.UK,"FREEZER, LOCKER MEAT PROVISIONERS",88.13
28/09/2023,11507,CARE LEAVERS,4784,M6 TOLL,"BRIDGE AND ROAD FEES, TOLLS",8.60
28/09/2023,11507,CARE LEAVERS,5814,MCDONALDS,FAST FOOD RESTAURANTS,7.77
28/09/2023,11879,IPS LD MAURICE EDELMAN HOUSE,5811,BRAKE BROS LIMITED,CATERERS,202.73
28/09/2023,11409,HONG KONG BRITISH NATIONAL (OVERSEAS) UK,5411,MARKS&SPENCER PLC,"GROCERY STORES, SUPERMARKETS",160.00
28/09/2023,10153,BEHAVIOUR SUPPORT - EDUCATION KEY WORKER,5999,AMZNMKTPLACE,MISCELLANEOUS AND SPECIALTY RETAIL STORES,84.41
28/09/2023,10945,AD - STREETSCENE & GREENSPACE,5812,COFFEE NO 1 COVENTRY,"EATING PLACES, RESTAURANTS",27.35
28/09/2023,10541,COVENTRY EXTENDED LEARNING CENTRE,5411,ASDA GROCERIES ONLINE,"GROCERY STORES, SUPERMARKETS",6.50
28/09/2023,11826,REPAIR & MAINTENANCE,5969,AMAZON.CO.UK 1K5Z27SE4,DIRECT MARKETING-OTHER DIRECT MARKETERS/NOT ELSEW.,78.99
28/09/2023,11086,OUTDOOR EDUCATION CENTRE,5812,MURRAYS COFFEE SHOP,"EATING PLACES, RESTAURANTS",19.20
28/09/2023,10512,REGISTER OFFICE,5411,SPAR HAY LANE,"GROCERY STORES, SUPERMARKETS",1.35
28/09/2023,11879,IPS LD MAURICE EDELMAN HOUSE,5422,WWW.MIDLANDFOODS.CO.UK,"FREEZER, LOCKER MEAT PROVISIONERS",51.37
28/09/2023,11403,IPS HWC COTTAGE FARM,5422,WWW.MIDLANDFOODS.CO.UK,"FREEZER, LOCKER MEAT PROVISIONERS",78.32
28/09/2023,11764,HOSPITAL EDUCATION & OUTREACH SERVICE,5999,AMZNMKTPLACE,MISCELLANEOUS AND SPECIALTY RETAIL STORES,2.39
28/09/2023,10951,IPS HWC SHORT TERM TENANCIES,4900,E.ON NEXT,"UTLTS-ELCTRC, GAS, HEATING OIL, SANITARY, WATER",48.42
28/09/2023,11826,REPAIR & MAINTENANCE,5999,AMZNMKTPLACE,MISCELLANEOUS AND SPECIALTY RETAIL STORES,337.97
28/09/2023,11086,OUTDOOR EDUCATION CENTRE,4784,M6 TOLL,"BRIDGE AND ROAD FEES, TOLLS",14.90
28/09/2023,11135,YOUTH OFFENDING SERVICE,5999,AMZNMKTPLACE,MISCELLANEOUS AND SPECIALTY RETAIL STORES,50.48
28/09/2023,11086,OUTDOOR EDUCATION CENTRE,7523,COVENTRY CAR PARK,AUTOMOBILE PARKING LOTS AND GARAGES,12.50
28/09/2023,11687,RESIDENTIAL - BROAD PARK HOUSE,5411,ONE STOP 2901,"GROCERY STORES, SUPERMARKETS",2.50
28/09/2023,11507,CARE LEAVERS,5399,B&M 470 - HS COVENTRY,MISCELLANEOUS GENERAL MERCHANDISE,188.09
28/09/2023,11307,IPS MH THE POD,5261,COTS SEEDS,LAWN AND GARDEN SUPPLY STORES,76.23
28/09/2023,11865,PUBLIC HEALTH - MIGRATION,5099,FOLESHILL WAREHOUSE LI,"DURABLE GOODS, NOT ELSEWHERE CLASSIFIED",67.96
28/09/2023,11307,IPS MH THE POD,5411,WM MORRISONS STORE,"GROCERY STORES, SUPERMARKETS",15.80
28/09/2023,11135,YOUTH OFFENDING SERVICE,5999,TESCO ONLINE,MISCELLANEOUS AND SPECIALTY RETAIL STORES,30.00
28/09/2023,11307,IPS MH THE POD,5411,CO OP FOOD,"GROCERY STORES, SUPERMARKETS",8.35
28/09/2023,11307,IPS MH THE POD,5411,WM MORRISONS STORE,"GROCERY STORES, SUPERMARKETS",17.41
28/09/2023,11928,COMMUNITY SUPPORT GRANTS,5999,AMZNMKTPLACE,MISCELLANEOUS AND SPECIALTY RETAIL STORES,-15.99
28/09/2023,11248,IPS ERIC WILLIAMS HOUSE,5811,BRAKE BROS LIMITED,CATERERS,-4.17
28/09/2023,11507,CARE LEAVERS,9399,2MAA040561568 TD E-PMT,GOVERNMENT SERVICES-NOT ELSEWHERE CLASSIFIED,75.00
28/09/2023,11507,CARE LEAVERS,8398,ALLPAY  CITIZEN HOUSIN,"ORGANIZATIONS, CHARITABLE AND SOCIAL SERVICES",414.96
28/09/2023,10541,COVENTRY EXTENDED LEARNING CENTRE,5734,SPLICE.COM,COMPUTER SOFTWARE STORES,142.26
28/09/2023,11746,RESIDENTIAL - GRAYSWOOD,5999,AMZNBUSINESS 1K6ET4664,MISCELLANEOUS AND SPECIALTY RETAIL STORES,12.99
28/09/2023,10951,IPS HWC SHORT TERM TENANCIES,4900,E.ON NEXT,"UTLTS-ELCTRC, GAS, HEATING OIL, SANITARY, WATER",8.52
28/09/2023,10900,LOCAL WELFARE PROVISION COVID-19,5999,AMZNMKTPLACE,MISCELLANEOUS AND SPECIALTY RETAIL STORES,-76.79
28/09/2023,11640,CPR5666 COMMERCIAL PROPERTY ,7999,CROMA LOCKSMITHS & SEC,RECREATION SERVICES (NOT ELSEWHERE CLASSIFIED),46.20
28/09/2023,11928,COMMUNITY SUPPORT GRANTS,5999,AMZNMKTPLACE,MISCELLANEOUS AND SPECIALTY RETAIL STORES,135.99
28/09/2023,10308,RUGBY LEAGUE LOCAL DEVELOPMENT PROJECT,5137,TEAM AND WORKWEAR SUPP,MEN'S/WOMEN'S/CHILDREN'S UNIFORMS/COMMERCIAL CLOTH,51.84
28/09/2023,10416,LAC PERMANENCY,5411,ONE BELOW,"GROCERY STORES, SUPERMARKETS",10.00
28/09/2023,11103,RESIDENTIAL - BROAD LANE,5999,NOTONTHEHIGHSTREET.COM,MISCELLANEOUS AND SPECIALTY RETAIL STORES,38.50
28/09/2023,11928,COMMUNITY SUPPORT GRANTS,5999,AMZNMKTPLACE,MISCELLANEOUS AND SPECIALTY RETAIL STORES,57.89
28/09/2023,11928,COMMUNITY SUPPORT GRANTS,5999,AMZNMKTPLACE,MISCELLANEOUS AND SPECIALTY RETAIL STORES,89.96
28/09/2023,11928,COMMUNITY SUPPORT GRANTS,5999,AMZNMKTPLACE,MISCELLANEOUS AND SPECIALTY RETAIL STORES,11.99
28/09/2023,10169,SECTION17 PAYMENTS SOUTH,5999,AMZNMKTPLACE,MISCELLANEOUS AND SPECIALTY RETAIL STORES,34.49
28/09/2023,11865,PUBLIC HEALTH - MIGRATION,5411,MNK DADYAL HALAL MEAT,"GROCERY STORES, SUPERMARKETS",12.00
28/09/2023,11928,COMMUNITY SUPPORT GRANTS,5999,AMZNMKTPLACE,MISCELLANEOUS AND SPECIALTY RETAIL STORES,16.82
28/09/2023,11928,COMMUNITY SUPPORT GRANTS,5999,AMZNMKTPLACE,MISCELLANEOUS AND SPECIALTY RETAIL STORES,44.44
28/09/2023,11928,COMMUNITY SUPPORT GRANTS,5999,AMZNMKTPLACE,MISCELLANEOUS AND SPECIALTY RETAIL STORES,37.99
28/09/2023,11507,CARE LEAVERS,5411,TESCO STORES 6135,"GROCERY STORES, SUPERMARKETS",45.80
28/09/2023,11865,PUBLIC HEALTH - MIGRATION,5411,MNK DADYAL HALAL MEAT,"GROCERY STORES, SUPERMARKETS",12.00
28/09/2023,11928,COMMUNITY SUPPORT GRANTS,5999,AMZNMKTPLACE,MISCELLANEOUS AND SPECIALTY RETAIL STORES,89.96
28/09/2023,11771,STREETPRIDE SOUTH,5211,SCREWFIX DIR LTD,"BUILDING MATERIALS, LUMBER STORES",13.79
27/09/2023,11507,CARE LEAVERS,5812,STEAKOUT COVENTRY,"EATING PLACES, RESTAURANTS",34.90
27/09/2023,11865,PUBLIC HEALTH - MIGRATION,5411,ASDA STORES 4602,"GROCERY STORES, SUPERMARKETS",187.37
27/09/2023,11792,HOUSING AND HOMELESSNESS,4900,BRITISH GAS ONLINE,"UTLTS-ELCTRC, GAS, HEATING OIL, SANITARY, WATER",40.00
27/09/2023,11021,LAC & CARE LEAVERS,5812,GREGGS PLC,"EATING PLACES, RESTAURANTS",13.05
27/09/2023,11507,CARE LEAVERS,5411,ASDA STORES 4602,"GROCERY STORES, SUPERMARKETS",22.84
27/09/2023,11746,RESIDENTIAL - GRAYSWOOD,5999,AMZNMKTPLACE,MISCELLANEOUS AND SPECIALTY RETAIL STORES,37.31
27/09/2023,11792,HOUSING AND HOMELESSNESS,5411,ASDA STORES 4602,"GROCERY STORES, SUPERMARKETS",250.00
27/09/2023,11021,LAC & CARE LEAVERS,5814,KFC - CROSS CHEAPING,FAST FOOD RESTAURANTS,23.99
27/09/2023,10084,SECTION17 PAYMENTS WEST,4131,WEST MIDLANDS TRAV,BUS LINES,60.00
27/09/2023,11507,CARE LEAVERS,5814,STARBUCKS,FAST FOOD RESTAURANTS,11.60
27/09/2023,11507,CARE LEAVERS,5814,JUST EAT,FAST FOOD RESTAURANTS,66.95
27/09/2023,11640,CPR5666 COMMERCIAL PROPERTY ,5999,AMZNMKTPLACE,MISCELLANEOUS AND SPECIALTY RETAIL STORES,59.99
27/09/2023,11197,WEST FAMILY HUB,5499,WWW.JOHALDAIRIES.CO.UK,"MISC FOOD STORE-CONVENIENCE,MRKT,SPLTY,VENDNG MACS",6.23
27/09/2023,11879,IPS LD MAURICE EDELMAN HOUSE,5499,WWW.JOHALDAIRIES.CO.UK,"MISC FOOD STORE-CONVENIENCE,MRKT,SPLTY,VENDNG MACS",95.93
27/09/2023,11072,ADULT EDUCATION � WORK PLACE LEARNING,5411,WM MORRISONS STORE,"GROCERY STORES, SUPERMARKETS",86.47
27/09/2023,10448,RESIDENTIAL - GRAVEL HILL,5712,SHEPPARDS D.I.Y.,"EQUIP, FURNITURE, HOME FURNSHNGS STRS (EXCPT APPL)",15.36
27/09/2023,10507,PARK RANGERS,5211,SCREWFIX DIR LTD,"BUILDING MATERIALS, LUMBER STORES",12.54
27/09/2023,10448,RESIDENTIAL - GRAVEL HILL,5200,B & Q 1231,HOME SUPPLY WAREHOUSE STORES,52.00
27/09/2023,11248,IPS ERIC WILLIAMS HOUSE,5811,BRAKE BROS LIMITED,CATERERS,666.37
27/09/2023,11307,IPS MH THE POD,5411,SAINSBURYS S MKTS,"GROCERY STORES, SUPERMARKETS",5.50
27/09/2023,11507,CARE LEAVERS,5411,LIDL GB COVENTRY,"GROCERY STORES, SUPERMARKETS",28.91
27/09/2023,11507,CARE LEAVERS,4784,M6 TOLL,"BRIDGE AND ROAD FEES, TOLLS",8.60
27/09/2023,11307,IPS MH THE POD,5411,CO OP FOOD,"GROCERY STORES, SUPERMARKETS",3.95
27/09/2023,11179,PASSENGER TRANSPORT,5999,AMZNMKTPLACE,MISCELLANEOUS AND SPECIALTY RETAIL STORES,33.10
27/09/2023,11307,IPS MH THE POD,5411,SAINSBURYS S/MKTS,"GROCERY STORES, SUPERMARKETS",11.75
27/09/2023,11507,CARE LEAVERS,4784,M6 TOLL,"BRIDGE AND ROAD FEES, TOLLS",8.60
27/09/2023,11928,COMMUNITY SUPPORT GRANTS,5999,AMZNMKTPLACE,MISCELLANEOUS AND SPECIALTY RETAIL STORES,-41.83
27/09/2023,11507,CARE LEAVERS,5712,IKEA LTD SHOP ONLINE,"EQUIP, FURNITURE, HOME FURNSHNGS STRS (EXCPT APPL)",-45.00
27/09/2023,11307,IPS MH THE POD,5999,AMZNMKTPLACE,MISCELLANEOUS AND SPECIALTY RETAIL STORES,15.67
27/09/2023,11277,FLEET SERVICES,5999,AMZNMKTPLACE,MISCELLANEOUS AND SPECIALTY RETAIL STORES,13.85
27/09/2023,10040,IPS HWC COPTHORNE,5499,WWW.JOHALDAIRIES.CO.UK,"MISC FOOD STORE-CONVENIENCE,MRKT,SPLTY,VENDNG MACS",12.26
27/09/2023,11277,FLEET SERVICES,5200,B & Q 1258,HOME SUPPLY WAREHOUSE STORES,38.75
27/09/2023,11107,CENTRAL FAMILY HUB,7523,COVENTRY CITY COUNCIL,AUTOMOBILE PARKING LOTS AND GARAGES,4.00
27/09/2023,10029,COOMBE,7523,COVENTRY CITY COUNCIL,AUTOMOBILE PARKING LOTS AND GARAGES,2.00
27/09/2023,11354,IPS DAY OPPS GILBERT RICHARDS CENTRE,5499,WWW.JOHALDAIRIES.CO.UK,"MISC FOOD STORE-CONVENIENCE,MRKT,SPLTY,VENDNG MACS",21.75
27/09/2023,11197,WEST FAMILY HUB,7523,COVENTRY CITY COUNCIL,AUTOMOBILE PARKING LOTS AND GARAGES,5.00
27/09/2023,10670,ADULT ED STAFF DEVELOPMENT,8220,EDUCATION & TRAINI,"COLLEGES, UNIV, PRO SCHOOLS, JUNIOR COLLEGES",220.00
27/09/2023,10040,IPS HWC COPTHORNE,7375,DISCLOSURE.CO.UK,INFORMATION RETRIEVAL SERVICES,57.00
27/09/2023,11354,IPS DAY OPPS GILBERT RICHARDS CENTRE,5811,BRAKE BROS LIMITED,CATERERS,477.30
27/09/2023,10383,IPS HWC KNIGHTLOW,5811,BRAKE BROS LIMITED,CATERERS,264.64
27/09/2023,10951,IPS HWC SHORT TERM TENANCIES,4900,E.ON NEXT,"UTLTS-ELCTRC, GAS, HEATING OIL, SANITARY, WATER",36.34
27/09/2023,11687,RESIDENTIAL - BROAD PARK HOUSE,5999,AMZNMKTPLACE,MISCELLANEOUS AND SPECIALTY RETAIL STORES,13.98
27/09/2023,11928,COMMUNITY SUPPORT GRANTS,5999,AMZNMKTPLACE,MISCELLANEOUS AND SPECIALTY RETAIL STORES,139.09
27/09/2023,11282,POST AND FASTPRINT,5999,WITHINTHEBOX LIMITED,MISCELLANEOUS AND SPECIALTY RETAIL STORES,"3,834.00"
27/09/2023,11984,IPS MAYMORN RESOURCE CENTRE,5411,WM MORRISONS STORE,"GROCERY STORES, SUPERMARKETS",5.35
27/09/2023,11687,RESIDENTIAL - BROAD PARK HOUSE,5999,AMZNMKTPLACE,MISCELLANEOUS AND SPECIALTY RETAIL STORES,14.98
27/09/2023,11086,OUTDOOR EDUCATION CENTRE,5999,AMZNMKTPLACE,MISCELLANEOUS AND SPECIALTY RETAIL STORES,11.99
27/09/2023,11687,RESIDENTIAL - BROAD PARK HOUSE,5999,AMZNMKTPLACE,MISCELLANEOUS AND SPECIALTY RETAIL STORES,17.96
27/09/2023,11984,IPS MAYMORN RESOURCE CENTRE,5411,BOOKER LTD - 38535674,"GROCERY STORES, SUPERMARKETS",129.14
27/09/2023,11870,IPS LD WILFRED SPENCER CENTRE,5499,WWW.JOHALDAIRIES.CO.UK,"MISC FOOD STORE-CONVENIENCE,MRKT,SPLTY,VENDNG MACS",36.11
27/09/2023,11928,COMMUNITY SUPPORT GRANTS,5999,AMZNMKTPLACE,MISCELLANEOUS AND SPECIALTY RETAIL STORES,13.74
27/09/2023,11166,SOUTH FAMILY HUB,7523,COVENTRY CITY COUNCIL,AUTOMOBILE PARKING LOTS AND GARAGES,4.00
27/09/2023,11928,COMMUNITY SUPPORT GRANTS,5999,AMZNMKTPLACE,MISCELLANEOUS AND SPECIALTY RETAIL STORES,-135.28
27/09/2023,11103,RESIDENTIAL - BROAD LANE,5411,ALDI STORES ATHERSTONE,"GROCERY STORES, SUPERMARKETS",212.94
27/09/2023,11995,IPS HWC HARRY CAPLAN,5499,WWW.JOHALDAIRIES.CO.UK,"MISC FOOD STORE-CONVENIENCE,MRKT,SPLTY,VENDNG MACS",8.47
27/09/2023,11507,CARE LEAVERS,5411,ONE BELOW,"GROCERY STORES, SUPERMARKETS",5.60
27/09/2023,10145,IPS LD BRANDON WOOD FARM,5499,WWW.JOHALDAIRIES.CO.UK,"MISC FOOD STORE-CONVENIENCE,MRKT,SPLTY,VENDNG MACS",7.80
27/09/2023,10225,HOUSING - B&B ACCOMMODATION,3811,PREMIER INN,PREMIER INN,684.00
27/09/2023,10225,HOUSING - B&B ACCOMMODATION,3811,PREMIER INN,PREMIER INN,555.00
27/09/2023,11792,HOUSING AND HOMELESSNESS,5411,ASDA STORES 4602,"GROCERY STORES, SUPERMARKETS",189.95
27/09/2023,11307,IPS MH THE POD,5211,TOOLSTATION LTD,"BUILDING MATERIALS, LUMBER STORES",11.96
27/09/2023,11826,REPAIR & MAINTENANCE,5999,AMZNMKTPLACE,MISCELLANEOUS AND SPECIALTY RETAIL STORES,142.30
27/09/2023,11826,REPAIR & MAINTENANCE,5065,RS COMPONENTS,ELECTRICAL PARTS AND EQUIPMENT,317.71
27/09/2023,11792,HOUSING AND HOMELESSNESS,4900,BRITISH GAS ONLINE,"UTLTS-ELCTRC, GAS, HEATING OIL, SANITARY, WATER",30.00
27/09/2023,11021,LAC & CARE LEAVERS,5814,SUBWAY 21328 BURGES,FAST FOOD RESTAURANTS,14.38
27/09/2023,10541,COVENTRY EXTENDED LEARNING CENTRE,5411,ASDA GROCERIES ONLINE,"GROCERY STORES, SUPERMARKETS",61.05
27/09/2023,10448,RESIDENTIAL - GRAVEL HILL,5200,B & Q 1231,HOME SUPPLY WAREHOUSE STORES,27.00
26/09/2023,10040,IPS HWC COPTHORNE,5811,BRAKE BROS LIMITED,CATERERS,95.41
26/09/2023,11826,REPAIR & MAINTENANCE,5251,PRIMETOOLS,HARDWARE STORES,34.68
26/09/2023,11049,CREMATORIUM,5999,AMZNMKTPLACE,MISCELLANEOUS AND SPECIALTY RETAIL STORES,7.95
26/09/2023,11687,RESIDENTIAL - BROAD PARK HOUSE,4899,NETFLIX.COM,"CABLE, SATELLITE, OTHER PAY TELEVISION, RADIO SVCS",15.99
26/09/2023,11826,REPAIR & MAINTENANCE,5211,WWW.BUILDANDPLUMB.CO.U,"BUILDING MATERIALS, LUMBER STORES",312.69
26/09/2023,11507,CARE LEAVERS,5311,WWW.ARGOS.CO.UK,DEPARTMENT STORES,-63.00
26/09/2023,11826,REPAIR & MAINTENANCE,5999,AMZNMKTPLACE,MISCELLANEOUS AND SPECIALTY RETAIL STORES,65.98
26/09/2023,11640,CPR5666 COMMERCIAL PROPERTY ,5999,AMZNMKTPLACE,MISCELLANEOUS AND SPECIALTY RETAIL STORES,7.40
26/09/2023,11507,CARE LEAVERS,5814,JUST EAT,FAST FOOD RESTAURANTS,24.49
26/09/2023,11826,REPAIR & MAINTENANCE,5251,SP SHOPIFY TOOLSHOUS,HARDWARE STORES,29.00
26/09/2023,11307,IPS MH THE POD,5411,WM MORRISONS STORE,"GROCERY STORES, SUPERMARKETS",4.00
26/09/2023,10416,LAC PERMANENCY,9399,GEN REGISTER OFFICE,GOVERNMENT SERVICES-NOT ELSEWHERE CLASSIFIED,-31.50
26/09/2023,11826,REPAIR & MAINTENANCE,5999,AMZNMKTPLACE,MISCELLANEOUS AND SPECIALTY RETAIL STORES,17.59
26/09/2023,11640,CPR5666 COMMERCIAL PROPERTY ,5999,AMZNMKTPLACE,MISCELLANEOUS AND SPECIALTY RETAIL STORES,40.00
26/09/2023,11507,CARE LEAVERS,5814,SUBWAY 69742 COVENTRY,FAST FOOD RESTAURANTS,3.58
26/09/2023,11826,REPAIR & MAINTENANCE,5072,POWERTOOL WORLD,HARDWARE EQUIPMENT AND SUPPLIES,122.90
26/09/2023,11307,IPS MH THE POD,5411,SAINSBURYS S MKTS,"GROCERY STORES, SUPERMARKETS",4.80
26/09/2023,11307,IPS MH THE POD,5411,SAINSBURYS S MKTS,"GROCERY STORES, SUPERMARKETS",2.05
26/09/2023,10225,HOUSING - B&B ACCOMMODATION,3615,TRAVELODG TRAVELODGE G,TRAVELODGE,759.82
26/09/2023,11197,WEST FAMILY HUB,5814,COVENTRY ARENA SHOPPIN,FAST FOOD RESTAURANTS,20.70
26/09/2023,10541,COVENTRY EXTENDED LEARNING CENTRE,5411,ASDA GROCERIES ONLINE,"GROCERY STORES, SUPERMARKETS",150.12
26/09/2023,11507,CARE LEAVERS,5999,AMZNMKTPLACE,MISCELLANEOUS AND SPECIALTY RETAIL STORES,11.99
26/09/2023,10225,HOUSING - B&B ACCOMMODATION,3533,IBIS COVENTRY SOUTH,HOTEL IBIS,"2,610.00"
26/09/2023,10541,COVENTRY EXTENDED LEARNING CENTRE,5411,ASDA GROCERIES ONLINE,"GROCERY STORES, SUPERMARKETS",-1.65
26/09/2023,11307,IPS MH THE POD,5411,SAINSBURYS S/MKTS,"GROCERY STORES, SUPERMARKETS",11.75
26/09/2023,11307,IPS MH THE POD,5411,WM MORRISONS STORE,"GROCERY STORES, SUPERMARKETS",34.75
26/09/2023,10962,OUTDOOR EDUCATION SERVICE,5999,AMZNMKTPLACE,MISCELLANEOUS AND SPECIALTY RETAIL STORES,51.75
26/09/2023,10225,HOUSING - B&B ACCOMMODATION,3533,IBIS COVENTRY SOUTH,HOTEL IBIS,"1,710.00"
26/09/2023,11928,COMMUNITY SUPPORT GRANTS,5999,AMZNMKTPLACE,MISCELLANEOUS AND SPECIALTY RETAIL STORES,169.99
26/09/2023,11507,CARE LEAVERS,5814,KFC-LEICESTER HIGH STR,FAST FOOD RESTAURANTS,19.99
26/09/2023,11928,COMMUNITY SUPPORT GRANTS,5999,AMZNMKTPLACE,MISCELLANEOUS AND SPECIALTY RETAIL STORES,7.96
26/09/2023,11507,CARE LEAVERS,8299,WWW.BILLPLANT.CO.UK,SCHOOLS & EDUCATIONAL SVC-NOT ELSEWHERE CLASSIFIED,70.99
26/09/2023,10225,HOUSING - B&B ACCOMMODATION,3615,TRAVELODG TRAVELODGE G,TRAVELODGE,348.76
26/09/2023,10962,OUTDOOR EDUCATION SERVICE,5999,AMZNMKTPLACE,MISCELLANEOUS AND SPECIALTY RETAIL STORES,27.00
26/09/2023,11319,SPECIALIST FOSTERING,5411,LIDL GB NUNEATON,"GROCERY STORES, SUPERMARKETS",9.02
26/09/2023,11865,PUBLIC HEALTH - MIGRATION,4111,WWW.WMCA.ORG.UK,"TRANSPRTN-SUBRBN & LOCAL COMTR PSNGR, INCL FERRIES",30.00
26/09/2023,11640,CPR5666 COMMERCIAL PROPERTY ,5999,AMZNMKTPLACE,MISCELLANEOUS AND SPECIALTY RETAIL STORES,14.69
26/09/2023,11969,ICT SECURITY,4816,DNH GO DADDY EUROPE GB,COMPUTER NETWORK/INFORMATION SERVICES,21.56
26/09/2023,11407,CHIEF EXECUTIVE,5411,SPAR HAY LANE,"GROCERY STORES, SUPERMARKETS",5.35
26/09/2023,10096,SPORTS DEVELOPMENT,5712,DUNELM SOFTFURNISHINGS,"EQUIP, FURNITURE, HOME FURNSHNGS STRS (EXCPT APPL)",-3.50
26/09/2023,11826,REPAIR & MAINTENANCE,5251,TOOLSTATION UK,HARDWARE STORES,111.81
26/09/2023,11879,IPS LD MAURICE EDELMAN HOUSE,5968,AMAZON PRIME 1K4I20GG4,DIRECT MARKETING-CONTINUITY/SUBSCRIPTION MERCHANTS,8.99
26/09/2023,11602,IPS LD GOSFORD COMMUNITY HUB,5411,CO-OPERATIVE FOOD,"GROCERY STORES, SUPERMARKETS",3.50
26/09/2023,11826,REPAIR & MAINTENANCE,5211,WWW.SCREWFIX.COM,"BUILDING MATERIALS, LUMBER STORES",237.12
26/09/2023,11879,IPS LD MAURICE EDELMAN HOUSE,5411,TESCO STORES 2328,"GROCERY STORES, SUPERMARKETS",250.05
26/09/2023,10416,LAC PERMANENCY,4131,WEST MIDLANDS TRAV,BUS LINES,60.00
26/09/2023,11826,REPAIR & MAINTENANCE,5251,TOOLDEN LIMITED,HARDWARE STORES,80.91
26/09/2023,10225,HOUSING - B&B ACCOMMODATION,7399,NOTHING BUT PADLOC,BUSINESS SERVICES-NOT ELSEWHERE CLASSIFIED,35.27
26/09/2023,10512,REGISTER OFFICE,5621,BONMARCHE WEBSITE,WOMEN'S READY TO WEAR STORES,48.00
26/09/2023,11197,WEST FAMILY HUB,5200,B & Q 1231,HOME SUPPLY WAREHOUSE STORES,4.13
26/09/2023,11049,CREMATORIUM,5999,AMZNMKTPLACE,MISCELLANEOUS AND SPECIALTY RETAIL STORES,4.99
26/09/2023,10653,STRATEGIC TRANSPORTATION,4112,CROSS COUNTRY RAIL,PASSENGER RAILWAYS,92.50
26/09/2023,11277,FLEET SERVICES,5099,SETON,"DURABLE GOODS, NOT ELSEWHERE CLASSIFIED",97.10
26/09/2023,11464,DSG - FAMILY HUB BUDGET,4121,UBER    TRIP,LIMOUSINES AND TAXICABS,45.32
26/09/2023,10541,COVENTRY EXTENDED LEARNING CENTRE,5411,ASDA GROCERIES ONLINE,"GROCERY STORES, SUPERMARKETS",73.60
26/09/2023,10653,STRATEGIC TRANSPORTATION,4112,CROSS COUNTRY TRAINS,PASSENGER RAILWAYS,91.00
26/09/2023,11826,REPAIR & MAINTENANCE,5712,SP W HURST & SON,"EQUIP, FURNITURE, HOME FURNSHNGS STRS (EXCPT APPL)",43.98
26/09/2023,11166,SOUTH FAMILY HUB,5411,WM MORRISONS STORE,"GROCERY STORES, SUPERMARKETS",75.00
26/09/2023,11013,"EARLY YEARS SUFFICIENCY, QUALITY & TR",5999,AMZNBUSINESS 1K9XV6134,MISCELLANEOUS AND SPECIALTY RETAIL STORES,9.99
26/09/2023,11354,IPS DAY OPPS GILBERT RICHARDS CENTRE,5411,ASDA GROCERIES ONLINE,"GROCERY STORES, SUPERMARKETS",-8.40
26/09/2023,11354,IPS DAY OPPS GILBERT RICHARDS CENTRE,5411,ASDA GROCERIES ONLINE,"GROCERY STORES, SUPERMARKETS",125.20
26/09/2023,10653,STRATEGIC TRANSPORTATION,7399,EB  ITS UK PRESIDENTS,BUSINESS SERVICES-NOT ELSEWHERE CLASSIFIED,180.00
26/09/2023,11513,PROFESSIONAL SUPPORT SERVICE,5719,WWW.THERANGE.CO.UK,MISCELLANEOUS HOUSE FURNISHING SPECIALTY SHOPS,93.99
25/09/2023,11179,PASSENGER TRANSPORT,5999,AMZNMKTPLACE,MISCELLANEOUS AND SPECIALTY RETAIL STORES,6.85
25/09/2023,11507,CARE LEAVERS,5732,CURRYS ONLINE,ELECTRONIC SALES,348.99
25/09/2023,11507,CARE LEAVERS,5814,STARBUCKS,FAST FOOD RESTAURANTS,12.75
25/09/2023,11507,CARE LEAVERS,7523,WALSGRAVE CAR PARK,AUTOMOBILE PARKING LOTS AND GARAGES,3.60
25/09/2023,11928,COMMUNITY SUPPORT GRANTS,5999,AMZNMKTPLACE,MISCELLANEOUS AND SPECIALTY RETAIL STORES,-15.91
25/09/2023,10225,HOUSING - B&B ACCOMMODATION,3811,PREMIER INN,PREMIER INN,694.00
25/09/2023,11932,LAC THROUGHCARE TEAM,7523,COMMUNITY HEALTH PARTN,AUTOMOBILE PARKING LOTS AND GARAGES,2.50
25/09/2023,11507,CARE LEAVERS,5691,LAFFAIRE EXCLUSIVE,MEN'S AND WOMEN'S CLOTHING STORES,45.00
25/09/2023,11507,CARE LEAVERS,5691,MATALAN,MEN'S AND WOMEN'S CLOTHING STORES,89.10
25/09/2023,10084,SECTION17 PAYMENTS WEST,7011,HYLANDS HOTEL,"LODGING-HOTELS,MOTELS,RESORTS-NOT CLASSIFIED",560.00
25/09/2023,11513,PROFESSIONAL SUPPORT SERVICE,5311,WWW.ARGOS.CO.UK,DEPARTMENT STORES,74.99
25/09/2023,11307,IPS MH THE POD,5411,SEOUL PLAZA 8,"GROCERY STORES, SUPERMARKETS",29.42
25/09/2023,11928,COMMUNITY SUPPORT GRANTS,5999,AMZNMKTPLACE,MISCELLANEOUS AND SPECIALTY RETAIL STORES,31.82
25/09/2023,11928,COMMUNITY SUPPORT GRANTS,5999,AMZNMKTPLACE,MISCELLANEOUS AND SPECIALTY RETAIL STORES,-41.83
25/09/2023,11307,IPS MH THE POD,5411,TESCO STORES 2325,"GROCERY STORES, SUPERMARKETS",13.06
25/09/2023,11984,IPS MAYMORN RESOURCE CENTRE,4111,WWW.WMCA.ORG.UK,"TRANSPRTN-SUBRBN & LOCAL COMTR PSNGR, INCL FERRIES",10.00
25/09/2023,11539,CENTRALISED PROMOTIONS BUDGET,7311,FACEBK  Y5M6LRPGB2,ADVERTISING SERVICES,227.02
25/09/2023,10541,COVENTRY EXTENDED LEARNING CENTRE,5969,AMAZON.CO.UK 1K2D52ZV4,DIRECT MARKETING-OTHER DIRECT MARKETERS/NOT ELSEW.,20.00
25/09/2023,10541,COVENTRY EXTENDED LEARNING CENTRE,5999,AMZNMKTPLACE,MISCELLANEOUS AND SPECIALTY RETAIL STORES,25.98
25/09/2023,10448,RESIDENTIAL - GRAVEL HILL,5411,TESCO STORES 2328,"GROCERY STORES, SUPERMARKETS",198.45
25/09/2023,10360,JOB SHOP,5651,PRIMARK - COVENTRY,FAMILY CLOTHING STORES,90.00
25/09/2023,11764,HOSPITAL EDUCATION & OUTREACH SERVICE,5969,AMAZON.CO.UK 1K2PQ1NZ4,DIRECT MARKETING-OTHER DIRECT MARKETERS/NOT ELSEW.,105.00
25/09/2023,10902,BEHAVIOUR SUPPORT - PRIMARY SERVICE,8211,PATOSS LTD,"SCHOOLS, ELEMENTARY AND SECONDARY",93.00
25/09/2023,10541,COVENTRY EXTENDED LEARNING CENTRE,5999,AMZNMKTPLACE,MISCELLANEOUS AND SPECIALTY RETAIL STORES,31.72
25/09/2023,10448,RESIDENTIAL - GRAVEL HILL,5411,TESCO STORES 2328,"GROCERY STORES, SUPERMARKETS",-3.40
25/09/2023,10541,COVENTRY EXTENDED LEARNING CENTRE,5399,PHARMACY MEDICAL HEC,MISCELLANEOUS GENERAL MERCHANDISE,151.79
25/09/2023,11687,RESIDENTIAL - BROAD PARK HOUSE,5411,ASDA STORES 4602,"GROCERY STORES, SUPERMARKETS",83.72
25/09/2023,10541,COVENTRY EXTENDED LEARNING CENTRE,5411,ASDA GEORGE COM LEEDS,"GROCERY STORES, SUPERMARKETS",106.50
25/09/2023,10541,COVENTRY EXTENDED LEARNING CENTRE,5999,AMZNMKTPLACE,MISCELLANEOUS AND SPECIALTY RETAIL STORES,3.20
25/09/2023,11687,RESIDENTIAL - BROAD PARK HOUSE,5411,WM MORRISONS STORE,"GROCERY STORES, SUPERMARKETS",22.61
25/09/2023,11764,HOSPITAL EDUCATION & OUTREACH SERVICE,5999,AMZNMKTPLACE,MISCELLANEOUS AND SPECIALTY RETAIL STORES,-3.31
25/09/2023,11049,CREMATORIUM,9399,COVENTRY CITY COUNCIL,GOVERNMENT SERVICES-NOT ELSEWHERE CLASSIFIED,11.00
25/09/2023,10541,COVENTRY EXTENDED LEARNING CENTRE,5999,AMZNMKTPLACE,MISCELLANEOUS AND SPECIALTY RETAIL STORES,12.99
25/09/2023,10360,JOB SHOP,5999,AMZNMKTPLACE,MISCELLANEOUS AND SPECIALTY RETAIL STORES,16.28
25/09/2023,10232,CHILDREN�S DISABILITY,5399,B&M 470 - HS COVENTRY,MISCELLANEOUS GENERAL MERCHANDISE,6.00
25/09/2023,10291,SECTION17 PAYMENTS CENTRAL,5311,WWW.ARGOS.CO.UK,DEPARTMENT STORES,194.97
25/09/2023,11928,COMMUNITY SUPPORT GRANTS,5999,AMZNMKTPLACE,MISCELLANEOUS AND SPECIALTY RETAIL STORES,24.33
25/09/2023,11157,IPS HWC ELSIE JONES,5811,BRAKE BROS LIMITED,CATERERS,-54.45
25/09/2023,11995,IPS HWC HARRY CAPLAN,5811,ARTHURBRETT.CO.UK,CATERERS,54.27
25/09/2023,11766,CPR0462 QUEEN VICTORIA ROAD RETAIL MARK,5399,HOME BARGAINS COVENTRY,MISCELLANEOUS GENERAL MERCHANDISE,2.99
25/09/2023,11409,HONG KONG BRITISH NATIONAL (OVERSEAS) UK,4121,ZETTLE_ MR L WELDEALFA,LIMOUSINES AND TAXICABS,6.20
25/09/2023,10232,CHILDREN�S DISABILITY,5945,SMYTHS TOYS COVENTRY,"GAME, TOY, AND HOBBY SHOPS",17.99
25/09/2023,11879,IPS LD MAURICE EDELMAN HOUSE,9402,POST OFFICE COUNTER,POSTAL SERVICES-GOVERNMENT ONLY,7.65
25/09/2023,10232,CHILDREN�S DISABILITY,5310,POUNDLAND LTD - 2243,DISCOUNT STORES,5.50
25/09/2023,11179,PASSENGER TRANSPORT,5999,AMZNMKTPLACE,MISCELLANEOUS AND SPECIALTY RETAIL STORES,71.20
25/09/2023,11507,CARE LEAVERS,5814,MCDONALDS 1686,FAST FOOD RESTAURANTS,18.11
25/09/2023,10360,JOB SHOP,5651,PRIMARK - COVENTRY,FAMILY CLOTHING STORES,100.00
25/09/2023,11928,COMMUNITY SUPPORT GRANTS,5999,AMZNMKTPLACE,MISCELLANEOUS AND SPECIALTY RETAIL STORES,21.93
25/09/2023,10291,SECTION17 PAYMENTS CENTRAL,4900,SEVERN TRENT WATER,"UTLTS-ELCTRC, GAS, HEATING OIL, SANITARY, WATER",300.47
25/09/2023,11072,ADULT EDUCATION � WORK PLACE LEARNING,5912,SUPERDRUG 1630 COVENTR,"DRUG STORES, PHARMACIES",23.00
25/09/2023,10488,IPS LD JENNER8,4111,WWW.WMCA.ORG.UK,"TRANSPRTN-SUBRBN & LOCAL COMTR PSNGR, INCL FERRIES",10.00
25/09/2023,10360,JOB SHOP,5651,PRIMARK - COVENTRY,FAMILY CLOTHING STORES,120.00
25/09/2023,11403,IPS HWC COTTAGE FARM,5811,ARTHURBRETT.CO.UK,CATERERS,20.16
25/09/2023,10411,IPS HWC QUINTON LODGE,5811,ARTHURBRETT.CO.UK,CATERERS,38.67
25/09/2023,11409,HONG KONG BRITISH NATIONAL (OVERSEAS) UK,4121,ZETTLE_ TAXI SERVICE,LIMOUSINES AND TAXICABS,4.10
25/09/2023,11874,OPR0077 EARL STREET COUNCIL HOUSE,5211,WWW.SCREWFIX.COM,"BUILDING MATERIALS, LUMBER STORES",54.99
25/09/2023,11507,CARE LEAVERS,5311,WWW.ARGOS.CO.UK,DEPARTMENT STORES,177.94
25/09/2023,11403,IPS HWC COTTAGE FARM,5811,BRAKE BROS LIMITED,CATERERS,226.88
25/09/2023,10448,RESIDENTIAL - GRAVEL HILL,5200,B & Q 1231,HOME SUPPLY WAREHOUSE STORES,114.35
25/09/2023,10411,IPS HWC QUINTON LODGE,5811,ARTHURBRETT.CO.UK,CATERERS,29.15
25/09/2023,11409,HONG KONG BRITISH NATIONAL (OVERSEAS) UK,5812,SHIN KITCHEN AND BAR C,"EATING PLACES, RESTAURANTS",41.30
25/09/2023,10251,IPS LD PILS OPERATIONAL,5999,AMZNMKTPLACE,MISCELLANEOUS AND SPECIALTY RETAIL STORES,94.99
25/09/2023,10379,CHILDREN�S CRISIS INTERVENTION TEAM,5310,POUNDLAND LTD - 1282,DISCOUNT STORES,7.00
25/09/2023,11507,CARE LEAVERS,5719,THE RANGE,MISCELLANEOUS HOUSE FURNISHING SPECIALTY SHOPS,94.96
25/09/2023,11507,CARE LEAVERS,5411,ALDI STORES,"GROCERY STORES, SUPERMARKETS",34.95
25/09/2023,10962,OUTDOOR EDUCATION SERVICE,7011,COOMBE ABBEY HOTEL CAF,"LODGING-HOTELS,MOTELS,RESORTS-NOT CLASSIFIED",45.00
25/09/2023,11507,CARE LEAVERS,5411,ASDA SUPERSTORE,"GROCERY STORES, SUPERMARKETS",44.30
25/09/2023,11507,CARE LEAVERS,5691,TRADITIONAL BOUTIQUES,MEN'S AND WOMEN'S CLOTHING STORES,30.00
25/09/2023,11507,CARE LEAVERS,5651,PRIMARK - COVENTRY,FAMILY CLOTHING STORES,200.00
25/09/2023,11103,RESIDENTIAL - BROAD LANE,5411,SAINSBURY'S S/MKT,"GROCERY STORES, SUPERMARKETS",90.00
25/09/2023,11430,REUNIFICATION /SGO/PARTICIPATION,5947,PAYPAL  BEST BADGES,"GIFT, CARD, NOVELTY AND SOUVENIR SHOPS",174.00
25/09/2023,11928,COMMUNITY SUPPORT GRANTS,5999,AMZNMKTPLACE,MISCELLANEOUS AND SPECIALTY RETAIL STORES,88.88
25/09/2023,11507,CARE LEAVERS,5814,MCDONALDS,FAST FOOD RESTAURANTS,5.79
25/09/2023,11507,CARE LEAVERS,5814,MCDONALDS 1526,FAST FOOD RESTAURANTS,16.26
25/09/2023,11932,LAC THROUGHCARE TEAM,7523,PAYBYPHONE,AUTOMOBILE PARKING LOTS AND GARAGES,3.70
25/09/2023,11507,CARE LEAVERS,9399,OFSTED INTERNET,GOVERNMENT SERVICES-NOT ELSEWHERE CLASSIFIED,"4,500.00"
25/09/2023,11507,CARE LEAVERS,5814,MCDONALDS 1220,FAST FOOD RESTAURANTS,11.18
25/09/2023,11746,RESIDENTIAL - GRAYSWOOD,7997,TENPIN LTD - 124,"CLUBS-CNTRY,MBRSHIP(ATHLET,REC,SPRTS,PRIVATE GOLF",2.60
25/09/2023,11149,WAR MEMORIAL PARK,5411,SAINSBURYS S/MKTS,"GROCERY STORES, SUPERMARKETS",5.16
25/09/2023,11507,CARE LEAVERS,5651,PRIMARK - COVENTRY,FAMILY CLOTHING STORES,200.00
25/09/2023,11764,HOSPITAL EDUCATION & OUTREACH SERVICE,5411,ASDA SUPERSTORE,"GROCERY STORES, SUPERMARKETS",24.60
25/09/2023,10512,REGISTER OFFICE,5411,ADSA STORES LTD 4231,"GROCERY STORES, SUPERMARKETS",19.85
25/09/2023,11441,ADULT ED AOL 14.1 - NUMERACY,5999,AMZNMKTPLACE,MISCELLANEOUS AND SPECIALTY RETAIL STORES,44.97
25/09/2023,11829,PARKING ENFORCEMENT,5999,AMZNMKTPLACE,MISCELLANEOUS AND SPECIALTY RETAIL STORES,80.00
25/09/2023,10541,COVENTRY EXTENDED LEARNING CENTRE,5411,ASDA GEORGE COM LEEDS,"GROCERY STORES, SUPERMARKETS",-7.20
25/09/2023,11274,PUBLIC HEALTH STAFFING & OVERHEADS,5411,SAINSBURYS S/MKTS,"GROCERY STORES, SUPERMARKETS",4.70
25/09/2023,11274,PUBLIC HEALTH STAFFING & OVERHEADS,7333,CANVA  03916-28966646,"COMMERCIAL ART, GRAPHICS, PHOTOGRAPHY",7.46
25/09/2023,10539,ADULT ED AOL 9/3 - VISUAL ARTS/FLORISTRY,5999,AMZNMKTPLACE,MISCELLANEOUS AND SPECIALTY RETAIL STORES,47.92
25/09/2023,11507,CARE LEAVERS,7032,STONEY COVE LIMITED,RECREATIONAL AND SPORTING CAMPS,17.00
25/09/2023,11507,CARE LEAVERS,7523,BOURTON VALE PARKING L,AUTOMOBILE PARKING LOTS AND GARAGES,3.00
25/09/2023,11135,YOUTH OFFENDING SERVICE,5812,MCDONALDS   539,"EATING PLACES, RESTAURANTS",9.70
25/09/2023,11507,CARE LEAVERS,5812,GREEN & PLEASANT TEA R,"EATING PLACES, RESTAURANTS",19.50
25/09/2023,10300,INTERNAL FOSTERING TEAM,5815,CORAMBAAF,DIGITAL GOODS AUDIOVISUAL MEDIA,150.00
25/09/2023,11826,REPAIR & MAINTENANCE,5200,WICKES COVENTRY,HOME SUPPLY WAREHOUSE STORES,106.11
25/09/2023,10360,JOB SHOP,2741,PHOTOBOX LIMITED,MISCELLANEOUS PUBLISHING AND PRINTING,27.98
25/09/2023,10416,LAC PERMANENCY,9399,GEN REGISTER OFFICE,GOVERNMENT SERVICES-NOT ELSEWHERE CLASSIFIED,38.00
25/09/2023,10676,HOUSING AND HOMELESSNESS,5211,WWW.SCREWFIX.COM,"BUILDING MATERIALS, LUMBER STORES",22.99
25/09/2023,11507,CARE LEAVERS,5411,MARKS&SPENCER PLC,"GROCERY STORES, SUPERMARKETS",25.95
25/09/2023,11248,IPS ERIC WILLIAMS HOUSE,5811,ARTHURBRETT.CO.UK,CATERERS,106.16
25/09/2023,11507,CARE LEAVERS,5651,PRIMARK - COVENTRY,FAMILY CLOTHING STORES,200.00
25/09/2023,10300,INTERNAL FOSTERING TEAM,5999,AMZNMKTPLACE,MISCELLANEOUS AND SPECIALTY RETAIL STORES,79.99
25/09/2023,11984,IPS MAYMORN RESOURCE CENTRE,4111,WWW.WMCA.ORG.UK,"TRANSPRTN-SUBRBN & LOCAL COMTR PSNGR, INCL FERRIES",10.00
25/09/2023,11928,COMMUNITY SUPPORT GRANTS,5999,AMZNMKTPLACE,MISCELLANEOUS AND SPECIALTY RETAIL STORES,31.84
25/09/2023,11507,CARE LEAVERS,5399,B&M 353 - NENE VALLEY,MISCELLANEOUS GENERAL MERCHANDISE,9.00
25/09/2023,11507,CARE LEAVERS,5621,ANGEL,WOMEN'S READY TO WEAR STORES,37.10
25/09/2023,11507,CARE LEAVERS,5631,SQ  RANGOLI LIMITED,WOMEN'S ACCESSORY AND SPECIALTY STORES,22.00
25/09/2023,11507,CARE LEAVERS,5912,SUPERDRUG 1630 COVENTR,"DRUG STORES, PHARMACIES",48.36
25/09/2023,11746,RESIDENTIAL - GRAYSWOOD,5411,TESCO STORES 5168,"GROCERY STORES, SUPERMARKETS",16.00
25/09/2023,11879,IPS LD MAURICE EDELMAN HOUSE,5422,MIDLAND FOODS,"FREEZER, LOCKER MEAT PROVISIONERS",174.09
25/09/2023,10383,IPS HWC KNIGHTLOW,5811,ARTHURBRETT.CO.UK,CATERERS,28.70
25/09/2023,11248,IPS ERIC WILLIAMS HOUSE,5811,ARTHURBRETT.CO.UK,CATERERS,96.17
25/09/2023,11103,RESIDENTIAL - BROAD LANE,5411,ASDA STORES 4602,"GROCERY STORES, SUPERMARKETS",62.95
25/09/2023,11277,FLEET SERVICES,9399,DVSA,GOVERNMENT SERVICES-NOT ELSEWHERE CLASSIFIED,360.00
25/09/2023,11507,CARE LEAVERS,4131,NATIONAL EXPRESS WEST,BUS LINES,2.00
25/09/2023,11507,CARE LEAVERS,5814,JUST EAT,FAST FOOD RESTAURANTS,45.46
25/09/2023,10565,ROUGH SLEEPER AND RAPID HOUSING PATH,5411,ONE STOP 2253,"GROCERY STORES, SUPERMARKETS",8.25
25/09/2023,10225,HOUSING - B&B ACCOMMODATION,3811,PREMIER INN,PREMIER INN,728.00
25/09/2023,10225,HOUSING - B&B ACCOMMODATION,3533,IBIS COVENTRY SOUTH,HOTEL IBIS,630.00
25/09/2023,11507,CARE LEAVERS,5311,WWW.ARGOS.CO.UK,DEPARTMENT STORES,-43.75
25/09/2023,11984,IPS MAYMORN RESOURCE CENTRE,4111,WWW.WMCA.ORG.UK,"TRANSPRTN-SUBRBN & LOCAL COMTR PSNGR, INCL FERRIES",10.00
25/09/2023,11507,CARE LEAVERS,5651,KEYA DESIGN LTD,FAMILY CLOTHING STORES,50.00
25/09/2023,10876,"SEN - OUTREACH, CASEWORK & SUPPORTED",9402,POST OFFICE COUNTER,POSTAL SERVICES-GOVERNMENT ONLY,7.65
25/09/2023,10040,IPS HWC COPTHORNE,5411,TESCO STORES 2328,"GROCERY STORES, SUPERMARKETS",68.00
25/09/2023,11103,RESIDENTIAL - BROAD LANE,5399,B&M 526 - ANSTY ROAD,MISCELLANEOUS GENERAL MERCHANDISE,11.90
25/09/2023,11277,FLEET SERVICES,9399,DVSA,GOVERNMENT SERVICES-NOT ELSEWHERE CLASSIFIED,115.00
25/09/2023,11928,COMMUNITY SUPPORT GRANTS,5999,AMZNMKTPLACE,MISCELLANEOUS AND SPECIALTY RETAIL STORES,17.49
25/09/2023,10565,ROUGH SLEEPER AND RAPID HOUSING PATH,4814,VESTA VODAFONE TOPUP,TELECOM INCL PREPAID/RECURRING PHONE SVCS,15.00
25/09/2023,11103,RESIDENTIAL - BROAD LANE,7922,TICKETS 96506140,"THEATRICAL PRODUCERS(EXCL MOTION PIX),TICKET AGNCY",34.65
25/09/2023,11103,RESIDENTIAL - BROAD LANE,5411,ASDA GEORGE COM LEEDS,"GROCERY STORES, SUPERMARKETS",42.00
25/09/2023,10379,CHILDREN�S CRISIS INTERVENTION TEAM,5977,LUSH UK,COSMETIC STORES,8.50
25/09/2023,10379,CHILDREN�S CRISIS INTERVENTION TEAM,5651,PRIMARK - COVENTRY,FAMILY CLOTHING STORES,5.80
25/09/2023,11847,ICT & DIGITAL,4111,TFL TRAVEL CH,"TRANSPRTN-SUBRBN & LOCAL COMTR PSNGR, INCL FERRIES",3.00
25/09/2023,10876,"SEN - OUTREACH, CASEWORK & SUPPORTED",9402,POST OFFICE COUNTER,POSTAL SERVICES-GOVERNMENT ONLY,6.85
25/09/2023,10565,ROUGH SLEEPER AND RAPID HOUSING PATH,7523,WALSGRAVE CAR PARK,AUTOMOBILE PARKING LOTS AND GARAGES,3.60
25/09/2023,10379,CHILDREN�S CRISIS INTERVENTION TEAM,5912,"BOOTS,COVENTRY","DRUG STORES, PHARMACIES",1.00
25/09/2023,10469,RESIDENTIAL - JOBS LANE,5411,ALDI STORES ATHERSTONE,"GROCERY STORES, SUPERMARKETS",248.16
25/09/2023,10379,CHILDREN�S CRISIS INTERVENTION TEAM,5912,SUPERDRUG 1630 COVENTR,"DRUG STORES, PHARMACIES",1.89
25/09/2023,11580,FAMILY HUBS & START FOR LIFE,7523,COVENTRY CITY COUNCIL,AUTOMOBILE PARKING LOTS AND GARAGES,7.00
25/09/2023,10541,COVENTRY EXTENDED LEARNING CENTRE,5941,DECATHLON UK LIMITED,SPORTING GOODS STORES,25.44
25/09/2023,10541,COVENTRY EXTENDED LEARNING CENTRE,5999,AMZNMKTPLACE,MISCELLANEOUS AND SPECIALTY RETAIL STORES,14.00
25/09/2023,11753,LIBRARIES - SERVICE DEVELOPMENT,5411,TESCO STORES 2302,"GROCERY STORES, SUPERMARKETS",50.00
25/09/2023,11687,RESIDENTIAL - BROAD PARK HOUSE,7991,WWW.HATTONWORLD.COM,TOURIST ATTRACTIONS AND EXHIBITS,50.85
25/09/2023,11984,IPS MAYMORN RESOURCE CENTRE,5999,AMZNMKTPLACE,MISCELLANEOUS AND SPECIALTY RETAIL STORES,26.90
25/09/2023,11507,CARE LEAVERS,5411,CO OPERATIVE FOOD,"GROCERY STORES, SUPERMARKETS",15.70
